Council Name,Date,TransNo,Amount � (Excl VAT),Supplier name,Supplier Category,Expense Area,Expense Type,Expense Code,Unclaimed VAT
Royal Borough of Kingston,9/1/2022,90167711,"3,718.16",ABBEY 14LIMITED,SOCIAL SERVICES RESIDENTIAL,Adult Social Care & Health,Independent Placements,A56006,0
Royal Borough of Kingston,9/1/2022,90167589,"3,740.40",ABBEYFIELD,SOCIAL SERVICES RESIDENTIAL,Adult Social Care & Health,Independent Placements,A56006,0
Royal Borough of Kingston,9/1/2022,90167590,"3,740.40",ABBEYFIELD,SOCIAL SERVICES RESIDENTIAL,Adult Social Care & Health,Independent Placements,A56006,0
Royal Borough of Kingston,9/1/2022,90167591,"3,740.40",ABBEYFIELD,SOCIAL SERVICES RESIDENTIAL,Adult Social Care & Health,Independent Placements,A56006,0
Royal Borough of Kingston,9/1/2022,90167592,"3,740.40",ABBEYFIELD,SOCIAL SERVICES RESIDENTIAL,Adult Social Care & Health,Independent Placements,A56006,0
Royal Borough of Kingston,9/1/2022,90167603,"3,740.40",ABBEYFIELD,SOCIAL SERVICES RESIDENTIAL,Adult Social Care & Health,Independent Placements,A56006,0
Royal Borough of Kingston,9/1/2022,90167606,"3,740.40",ABBEYFIELD,SOCIAL SERVICES RESIDENTIAL,Adult Social Care & Health,Independent Placements,A56006,0
Royal Borough of Kingston,9/1/2022,90167607,"3,740.40",ABBEYFIELD,SOCIAL SERVICES RESIDENTIAL,Adult Social Care & Health,Independent Placements,A56006,0
Royal Borough of Kingston,9/1/2022,90167610,"3,740.40",ABBEYFIELD,SOCIAL SERVICES RESIDENTIAL,Adult Social Care & Health,Independent Placements,A56006,0
Royal Borough of Kingston,9/1/2022,90167612,"3,740.40",ABBEYFIELD,SOCIAL SERVICES RESIDENTIAL,Adult Social Care & Health,Independent Placements,A56006,0
Royal Borough of Kingston,9/1/2022,90167620,"1,870.20",ABBEYFIELD,SOCIAL SERVICES RESIDENTIAL,Adult Social Care & Health,Independent Placements,A56006,0
Royal Borough of Kingston,9/1/2022,90167621,"3,740.40",ABBEYFIELD,SOCIAL SERVICES RESIDENTIAL,Adult Social Care & Health,Independent Placements,A56006,0
Royal Borough of Kingston,9/1/2022,90167625,"3,740.40",ABBEYFIELD,SOCIAL SERVICES RESIDENTIAL,Adult Social Care & Health,Independent Placements,A56006,0
Royal Borough of Kingston,9/1/2022,90167628,"3,740.40",ABBEYFIELD,SOCIAL SERVICES RESIDENTIAL,Adult Social Care & Health,Independent Placements,A56006,0
Royal Borough of Kingston,9/1/2022,90167633,"3,740.40",ABBEYFIELD,SOCIAL SERVICES RESIDENTIAL,Adult Social Care & Health,Independent Placements,A56006,0
Royal Borough of Kingston,9/1/2022,90167635,"3,740.40",ABBEYFIELD,SOCIAL SERVICES RESIDENTIAL,Adult Social Care & Health,Independent Placements,A56006,0
Royal Borough of Kingston,9/1/2022,90167639,"3,740.40",ABBEYFIELD,SOCIAL SERVICES RESIDENTIAL,Adult Social Care & Health,Independent Placements,A56006,0
Royal Borough of Kingston,9/1/2022,90167641,"3,740.40",ABBEYFIELD,SOCIAL SERVICES RESIDENTIAL,Adult Social Care & Health,Independent Placements,A56006,0
Royal Borough of Kingston,9/1/2022,90167692,"4,007.57",ABBEYFIELD,SOCIAL SERVICES RESIDENTIAL,Adult Social Care & Health,Independent Placements,A56006,0
Royal Borough of Kingston,9/1/2022,90167705,"3,740.40",ABBEYFIELD,SOCIAL SERVICES RESIDENTIAL,Adult Social Care & Health,Independent Placements,A56006,0
Royal Borough of Kingston,9/1/2022,90167710,"4,007.57",ABBEYFIELD,SOCIAL SERVICES RESIDENTIAL,Adult Social Care & Health,Independent Placements,A56006,0
Royal Borough of Kingston,9/1/2022,90167717,"3,740.40",ABBEYFIELD,SOCIAL SERVICES RESIDENTIAL,Adult Social Care & Health,Independent Placements,A56006,0
Royal Borough of Kingston,9/1/2022,90167733,"3,740.40",ABBEYFIELD,SOCIAL SERVICES RESIDENTIAL,Adult Social Care & Health,Independent Placements,A56006,0
Royal Borough of Kingston,9/1/2022,90167738,"3,740.40",ABBEYFIELD,SOCIAL SERVICES RESIDENTIAL,Adult Social Care & Health,Independent Placements,A56006,0
Royal Borough of Kingston,9/1/2022,90167754,"3,740.40",ABBEYFIELD,SOCIAL SERVICES RESIDENTIAL,Adult Social Care & Health,Independent Placements,A56006,0
Royal Borough of Kingston,9/1/2022,90167770,"3,740.40",ABBEYFIELD,SOCIAL SERVICES RESIDENTIAL,Adult Social Care & Health,Independent Placements,A56006,0
Royal Borough of Kingston,9/1/2022,90169536,"5,559.77",ABC HILLINGDON LTD,ACCOMMODATION - OTHER,Adult Social Care & Health,Personal Budget - Third Party,A61019,0
Royal Borough of Kingston,9/1/2022,90167651,"5,333.91",Active Care Group Services,SOCIAL SERVICES RESIDENTIAL,Adult Social Care & Health,Independent Placements,A56006,0
Royal Borough of Kingston,9/1/2022,90169020,514.29,AGE CONCERN KINGSTON UPON THAMES,GRANTS & EX GRATIA PAYMENTS,Adult Social Care & Health,Personal Budget - Third Party,A61019,0
Royal Borough of Kingston,9/1/2022,90167506,"5,142.86",AIMS CARE LIMITED,SOCIAL SERVICES RESIDENTIAL,Adult Social Care & Health,Independent Placements,A56006,0
Royal Borough of Kingston,9/1/2022,90167658,"6,642.86",AIMS CARE LIMITED,SOCIAL SERVICES RESIDENTIAL,Adult Social Care & Health,Independent Placements,A56006,0
Royal Borough of Kingston,9/1/2022,90167849,"6,100.41",ASHCROFT CARE SERVICES LIMITED,SOCIAL SERVICES RESIDENTIAL,Adult Social Care & Health,Independent Placements,A56006,0
Royal Borough of Kingston,9/1/2022,90169336,921.6,ASHINGTON HOUSE LTD,SOCIAL SERVICES RESIDENTIAL,Adult Social Care & Health,Personal Budget - Third Party,A61019,0
Royal Borough of Kingston,9/1/2022,90169267,"1,305.73",ASHPRIME PROPERTIES LTD,SOCIAL SERVICES RESIDENTIAL,Adult Social Care & Health,Personal Budget - Third Party,A61019,0
Royal Borough of Kingston,9/1/2022,90169322,"2,569.84",Aspirations Care Ltd,SOCIAL SERVICES - OTHER,Adult Social Care & Health,Personal Budget - Third Party,A61019,0
Royal Borough of Kingston,9/1/2022,90167595,"5,217.94",ASPREY HEALTHCARE LTD,SOCIAL SERVICES RESIDENTIAL,Adult Social Care & Health,Independent Placements,A56006,0
Royal Borough of Kingston,9/1/2022,90167699,"3,822.77",ASPREY HEALTHCARE LTD,SOCIAL SERVICES RESIDENTIAL,Adult Social Care & Health,Independent Placements,A56006,0
Royal Borough of Kingston,9/1/2022,90167709,"4,384.97",ASPREY HEALTHCARE LTD,SOCIAL SERVICES RESIDENTIAL,Adult Social Care & Health,Independent Placements,A56006,0
Royal Borough of Kingston,9/1/2022,90167581,"4,695.56",ASTORIA HEALTHCARE LTD,SOCIAL SERVICES RESIDENTIAL,Adult Social Care & Health,Independent Placements,A56006,0
Royal Borough of Kingston,9/1/2022,90167789,"10,979.06",AUTISM CONSULTANTS LTD,SOCIAL SERVICES RESIDENTIAL,Adult Social Care & Health,Independent Placements,A56006,0
Royal Borough of Kingston,9/1/2022,90167918,509.5,BALANCE (SUPPORT) C.I.C,SOCIAL SERVICES - OTHER,Adult Social Care & Health,Supported Living - new framework,A56126,0
Royal Borough of Kingston,9/1/2022,90167919,"2,406.00",BALANCE (SUPPORT) C.I.C,SOCIAL SERVICES - OTHER,Adult Social Care & Health,Supported Living - new framework,A56126,0
Royal Borough of Kingston,9/1/2022,90167920,598.34,BALANCE (SUPPORT) C.I.C,SOCIAL SERVICES - OTHER,Adult Social Care & Health,Supported Living - new framework,A56126,0
Royal Borough of Kingston,9/1/2022,90167921,679.33,BALANCE (SUPPORT) C.I.C,SOCIAL SERVICES - OTHER,Adult Social Care & Health,Supported Living - new framework,A56126,0
Royal Borough of Kingston,9/1/2022,90167922,"1,804.49",BALANCE (SUPPORT) C.I.C,SOCIAL SERVICES - OTHER,Adult Social Care & Health,Supported Living - new framework,A56126,0
Royal Borough of Kingston,9/1/2022,90167935,"1,804.49",BALANCE (SUPPORT) C.I.C,SOCIAL SERVICES - OTHER,Adult Social Care & Health,Supported Living - new framework,A56126,0
Royal Borough of Kingston,9/1/2022,90167936,679.33,BALANCE (SUPPORT) C.I.C,SOCIAL SERVICES - OTHER,Adult Social Care & Health,Supported Living - new framework,A56126,0
Royal Borough of Kingston,9/1/2022,90167939,701.98,BALANCE (SUPPORT) C.I.C,SOCIAL SERVICES - OTHER,Adult Social Care & Health,Supported Living - new framework,A56126,0
Royal Borough of Kingston,9/1/2022,90167940,679.33,BALANCE (SUPPORT) C.I.C,SOCIAL SERVICES - OTHER,Adult Social Care & Health,Supported Living - new framework,A56126,0
Royal Borough of Kingston,9/1/2022,90169032,530.59,BALANCE (SUPPORT) C.I.C,SOCIAL SERVICES - OTHER,Adult Social Care & Health,Personal Budget - Third Party,A61019,0
Royal Borough of Kingston,9/1/2022,90169033,530.59,BALANCE (SUPPORT) C.I.C,SOCIAL SERVICES - OTHER,Adult Social Care & Health,Personal Budget - Third Party,A61019,0
Royal Borough of Kingston,9/1/2022,90169034,"12,516.43",BALANCE (SUPPORT) C.I.C,SOCIAL SERVICES - OTHER,Adult Social Care & Health,Personal Budget - Third Party,A61019,0
Royal Borough of Kingston,9/1/2022,90169133,"1,020.94",BALANCE (SUPPORT) C.I.C,SOCIAL SERVICES - OTHER,Adult Social Care & Health,Personal Budget - Third Party,A61019,0
Royal Borough of Kingston,9/1/2022,90169140,556.89,BALANCE (SUPPORT) C.I.C,SOCIAL SERVICES - OTHER,Adult Social Care & Health,Personal Budget - Third Party,A61019,0
Royal Borough of Kingston,9/1/2022,90169147,560.49,BALANCE (SUPPORT) C.I.C,SOCIAL SERVICES - OTHER,Adult Social Care & Health,Personal Budget - Third Party,A61019,0
Royal Borough of Kingston,9/1/2022,90169150,928.16,BALANCE (SUPPORT) C.I.C,SOCIAL SERVICES - OTHER,Adult Social Care & Health,Personal Budget - Third Party,A61019,0
Royal Borough of Kingston,9/1/2022,90169153,"1,299.39",BALANCE (SUPPORT) C.I.C,SOCIAL SERVICES - OTHER,Adult Social Care & Health,Personal Budget - Third Party,A61019,0
Royal Borough of Kingston,9/1/2022,90169154,928.16,BALANCE (SUPPORT) C.I.C,SOCIAL SERVICES - OTHER,Adult Social Care & Health,Personal Budget - Third Party,A61019,0
Royal Borough of Kingston,9/1/2022,90169155,510.47,BALANCE (SUPPORT) C.I.C,SOCIAL SERVICES - OTHER,Adult Social Care & Health,Personal Budget - Third Party,A61019,0
Royal Borough of Kingston,9/1/2022,90169160,"1,253.01",BALANCE (SUPPORT) C.I.C,SOCIAL SERVICES - OTHER,Adult Social Care & Health,Personal Budget - Third Party,A61019,0
Royal Borough of Kingston,9/1/2022,90169162,556.89,BALANCE (SUPPORT) C.I.C,SOCIAL SERVICES - OTHER,Adult Social Care & Health,Personal Budget - Third Party,A61019,0
Royal Borough of Kingston,9/1/2022,90169174,"2,134.71",BALANCE (SUPPORT) C.I.C,SOCIAL SERVICES - OTHER,Adult Social Care & Health,Personal Budget - Third Party,A61019,0
Royal Borough of Kingston,9/1/2022,90169177,"1,392.21",BALANCE (SUPPORT) C.I.C,SOCIAL SERVICES - OTHER,Adult Social Care & Health,Personal Budget - Third Party,A61019,0
Royal Borough of Kingston,9/1/2022,90169187,556.89,BALANCE (SUPPORT) C.I.C,SOCIAL SERVICES - OTHER,Adult Social Care & Health,Personal Budget - Third Party,A61019,0
Royal Borough of Kingston,9/1/2022,90169191,556.89,BALANCE (SUPPORT) C.I.C,SOCIAL SERVICES - OTHER,Adult Social Care & Health,Personal Budget - Third Party,A61019,0
Royal Borough of Kingston,9/1/2022,90169194,"1,485.00",BALANCE (SUPPORT) C.I.C,SOCIAL SERVICES - OTHER,Adult Social Care & Health,Personal Budget - Third Party,A61019,0
Royal Borough of Kingston,9/1/2022,90169195,"3,465.39",BALANCE (SUPPORT) C.I.C,SOCIAL SERVICES - OTHER,Adult Social Care & Health,Personal Budget - Third Party,A61019,0
Royal Borough of Kingston,9/1/2022,90169200,"2,559.43",BALANCE (SUPPORT) C.I.C,SOCIAL SERVICES - OTHER,Adult Social Care & Health,Personal Budget - Third Party,A61019,0
Royal Borough of Kingston,9/1/2022,90169201,649.71,BALANCE (SUPPORT) C.I.C,SOCIAL SERVICES - OTHER,Adult Social Care & Health,Personal Budget - Third Party,A61019,0
Royal Borough of Kingston,9/1/2022,90169203,742.5,BALANCE (SUPPORT) C.I.C,SOCIAL SERVICES - OTHER,Adult Social Care & Health,Personal Budget - Third Party,A61019,0
Royal Borough of Kingston,9/1/2022,90169206,"1,577.83",BALANCE (SUPPORT) C.I.C,SOCIAL SERVICES - OTHER,Adult Social Care & Health,Personal Budget - Third Party,A61019,0
Royal Borough of Kingston,9/1/2022,90169216,"1,392.21",BALANCE (SUPPORT) C.I.C,SOCIAL SERVICES - OTHER,Adult Social Care & Health,Personal Budget - Third Party,A61019,0
Royal Borough of Kingston,9/1/2022,90169224,835.33,BALANCE (SUPPORT) C.I.C,SOCIAL SERVICES - OTHER,Adult Social Care & Health,Personal Budget - Third Party,A61019,0
Royal Borough of Kingston,9/1/2022,90169225,"3,117.17",BALANCE (SUPPORT) C.I.C,SOCIAL SERVICES - OTHER,Adult Social Care & Health,Personal Budget - Third Party,A61019,0
Royal Borough of Kingston,9/1/2022,90169250,556.89,BALANCE (SUPPORT) C.I.C,SOCIAL SERVICES - OTHER,Adult Social Care & Health,Personal Budget - Third Party,A61019,0
Royal Borough of Kingston,9/1/2022,90169251,556.89,BALANCE (SUPPORT) C.I.C,SOCIAL SERVICES - OTHER,Adult Social Care & Health,Personal Budget - Third Party,A61019,0
Royal Borough of Kingston,9/1/2022,90169256,"3,038.49",BALANCE (SUPPORT) C.I.C,SOCIAL SERVICES - OTHER,Adult Social Care & Health,Personal Budget - Third Party,A61019,0
Royal Borough of Kingston,9/1/2022,90169257,"1,949.10",BALANCE (SUPPORT) C.I.C,SOCIAL SERVICES - OTHER,Adult Social Care & Health,Personal Budget - Third Party,A61019,0
Royal Borough of Kingston,9/1/2022,90169258,519.84,BALANCE (SUPPORT) C.I.C,SOCIAL SERVICES - OTHER,Adult Social Care & Health,Personal Budget - Third Party,A61019,0
Royal Borough of Kingston,9/1/2022,90169259,"3,301.41",BALANCE (SUPPORT) C.I.C,SOCIAL SERVICES - OTHER,Adult Social Care & Health,Personal Budget - Third Party,A61019,0
Royal Borough of Kingston,9/1/2022,90169276,"2,162.06",BALANCE (SUPPORT) C.I.C,SOCIAL SERVICES - OTHER,Adult Social Care & Health,Personal Budget - Third Party,A61019,0
Royal Borough of Kingston,9/1/2022,90169281,"1,206.60",BALANCE (SUPPORT) C.I.C,SOCIAL SERVICES - OTHER,Adult Social Care & Health,Personal Budget - Third Party,A61019,0
Royal Borough of Kingston,9/1/2022,90169290,742.5,BALANCE (SUPPORT) C.I.C,SOCIAL SERVICES - OTHER,Adult Social Care & Health,Personal Budget - Third Party,A61019,0
Royal Borough of Kingston,9/1/2022,90169293,"1,577.83",BALANCE (SUPPORT) C.I.C,SOCIAL SERVICES - OTHER,Adult Social Care & Health,Personal Budget - Third Party,A61019,0
Royal Borough of Kingston,9/1/2022,90169297,701.14,BALANCE (SUPPORT) C.I.C,SOCIAL SERVICES - OTHER,Adult Social Care & Health,Personal Budget - Third Party,A61019,0
Royal Borough of Kingston,9/1/2022,90169305,"2,925.30",BALANCE (SUPPORT) C.I.C,SOCIAL SERVICES - OTHER,Adult Social Care & Health,Personal Budget - Third Party,A61019,0
Royal Borough of Kingston,9/1/2022,90169317,"1,809.90",BALANCE (SUPPORT) C.I.C,SOCIAL SERVICES - OTHER,Adult Social Care & Health,Personal Budget - Third Party,A61019,0
Royal Borough of Kingston,9/1/2022,90169323,-682.2,BALANCE (SUPPORT) C.I.C,SOCIAL SERVICES - OTHER,Adult Social Care & Health,Personal Budget - Third Party,A61019,0
Royal Borough of Kingston,9/1/2022,90169324,"-1,007.06",BALANCE (SUPPORT) C.I.C,SOCIAL SERVICES - OTHER,Adult Social Care & Health,Personal Budget - Third Party,A61019,0
Royal Borough of Kingston,9/1/2022,90169325,556.89,BALANCE (SUPPORT) C.I.C,SOCIAL SERVICES - OTHER,Adult Social Care & Health,Personal Budget - Third Party,A61019,0
Royal Borough of Kingston,9/1/2022,90169327,"1,299.39",BALANCE (SUPPORT) C.I.C,SOCIAL SERVICES - OTHER,Adult Social Care & Health,Personal Budget - Third Party,A61019,0
Royal Borough of Kingston,9/1/2022,90169329,"1,206.60",BALANCE (SUPPORT) C.I.C,SOCIAL SERVICES - OTHER,Adult Social Care & Health,Personal Budget - Third Party,A61019,0
Royal Borough of Kingston,9/1/2022,90169330,556.89,BALANCE (SUPPORT) C.I.C,SOCIAL SERVICES - OTHER,Adult Social Care & Health,Personal Budget - Third Party,A61019,0
Royal Borough of Kingston,9/1/2022,90169332,"1,670.66",BALANCE (SUPPORT) C.I.C,SOCIAL SERVICES - OTHER,Adult Social Care & Health,Personal Budget - Third Party,A61019,0
Royal Borough of Kingston,9/1/2022,90169339,649.71,BALANCE (SUPPORT) C.I.C,SOCIAL SERVICES - OTHER,Adult Social Care & Health,Personal Budget - Third Party,A61019,0
Royal Borough of Kingston,9/1/2022,90169530,501.2,BALANCE (SUPPORT) C.I.C,SOCIAL SERVICES - OTHER,Adult Social Care & Health,Personal Budget - Third Party,A61019,0
Royal Borough of Kingston,9/1/2022,90169541,742.63,BALANCE (SUPPORT) C.I.C,SOCIAL SERVICES - OTHER,Adult Social Care & Health,Personal Budget - Third Party,A61019,0
Royal Borough of Kingston,9/1/2022,90169559,"1,113.94",BALANCE (SUPPORT) C.I.C,SOCIAL SERVICES - OTHER,Adult Social Care & Health,Personal Budget - Third Party,A61019,0
Royal Borough of Kingston,9/1/2022,90169563,742.63,BALANCE (SUPPORT) C.I.C,SOCIAL SERVICES - OTHER,Adult Social Care & Health,Personal Budget - Third Party,A61019,0
Royal Borough of Kingston,9/1/2022,90167489,"3,508.84",BARCHESTER HEALTHCARE ,SOCIAL SERVICES RESIDENTIAL,Adult Social Care & Health,Independent Placements,A56006,0
Royal Borough of Kingston,9/1/2022,90167703,"4,341.56",BAVANI CARE HOME LIMITED,SOCIAL SERVICES RESIDENTIAL,Adult Social Care & Health,Independent Placements,A56006,0
Royal Borough of Kingston,9/1/2022,90167708,"3,857.14",BAVANI CARE HOME LIMITED,SOCIAL SERVICES RESIDENTIAL,Adult Social Care & Health,Independent Placements,A56006,0
Royal Borough of Kingston,9/1/2022,70031912,"1,302.00",Buildvantage Limited,ACCOMMODATION BED & BREAKFAST,Place,Bed & Breakfast,A56000,0
Royal Borough of Kingston,9/1/2022,70031913,"1,488.00",Buildvantage Limited,ACCOMMODATION BED & BREAKFAST,Place,Bed & Breakfast,A56000,0
Royal Borough of Kingston,9/1/2022,70031914,"1,488.00",Buildvantage Limited,ACCOMMODATION BED & BREAKFAST,Place,Bed & Breakfast,A56000,0
Royal Borough of Kingston,9/1/2022,70031915,"1,488.00",Buildvantage Limited,ACCOMMODATION BED & BREAKFAST,Place,Bed & Breakfast,A56000,0
Royal Borough of Kingston,9/1/2022,70031916,"1,488.00",Buildvantage Limited,ACCOMMODATION BED & BREAKFAST,Place,Bed & Breakfast,A56000,0
Royal Borough of Kingston,9/1/2022,70031917,"1,488.00",Buildvantage Limited,ACCOMMODATION BED & BREAKFAST,Place,Bed & Breakfast,A56000,0
Royal Borough of Kingston,9/1/2022,70031918,"1,302.00",Buildvantage Limited,ACCOMMODATION BED & BREAKFAST,Place,Bed & Breakfast,A56000,0
Royal Borough of Kingston,9/1/2022,70031919,"1,488.00",Buildvantage Limited,ACCOMMODATION BED & BREAKFAST,Place,Bed & Breakfast,A56000,0
Royal Borough of Kingston,9/1/2022,70031920,"1,302.00",Buildvantage Limited,ACCOMMODATION BED & BREAKFAST,Place,Bed & Breakfast,A56000,0
Royal Borough of Kingston,9/1/2022,70031921,"1,488.00",Buildvantage Limited,ACCOMMODATION BED & BREAKFAST,Place,Bed & Breakfast,A56000,0
Royal Borough of Kingston,9/1/2022,70031922,"1,488.00",Buildvantage Limited,ACCOMMODATION BED & BREAKFAST,Place,Bed & Breakfast,A56000,0
Royal Borough of Kingston,9/1/2022,70031923,"1,488.00",Buildvantage Limited,ACCOMMODATION BED & BREAKFAST,Place,Bed & Breakfast,A56000,0
Royal Borough of Kingston,9/1/2022,70031924,"1,488.00",Buildvantage Limited,ACCOMMODATION BED & BREAKFAST,Place,Bed & Breakfast,A56000,0
Royal Borough of Kingston,9/1/2022,70031925,"1,488.00",Buildvantage Limited,ACCOMMODATION BED & BREAKFAST,Place,Bed & Breakfast,A56000,0
Royal Borough of Kingston,9/1/2022,70031926,"1,488.00",Buildvantage Limited,ACCOMMODATION BED & BREAKFAST,Place,Bed & Breakfast,A56000,0
Royal Borough of Kingston,9/1/2022,70031927,"1,488.00",Buildvantage Limited,ACCOMMODATION BED & BREAKFAST,Place,Bed & Breakfast,A56000,0
Royal Borough of Kingston,9/1/2022,70031928,"1,488.00",Buildvantage Limited,ACCOMMODATION BED & BREAKFAST,Place,Bed & Breakfast,A56000,0
Royal Borough of Kingston,9/1/2022,70031929,"1,488.00",Buildvantage Limited,ACCOMMODATION BED & BREAKFAST,Place,Bed & Breakfast,A56000,0
Royal Borough of Kingston,9/1/2022,70031930,"1,488.00",Buildvantage Limited,ACCOMMODATION BED & BREAKFAST,Place,Bed & Breakfast,A56000,0
Royal Borough of Kingston,9/1/2022,70031931,"1,488.00",Buildvantage Limited,ACCOMMODATION BED & BREAKFAST,Place,Bed & Breakfast,A56000,0
Royal Borough of Kingston,9/1/2022,70031932,"1,488.00",Buildvantage Limited,ACCOMMODATION BED & BREAKFAST,Place,Bed & Breakfast,A56000,0
Royal Borough of Kingston,9/1/2022,70031933,"1,488.00",Buildvantage Limited,ACCOMMODATION BED & BREAKFAST,Place,Bed & Breakfast,A56000,0
Royal Borough of Kingston,9/1/2022,90167556,"3,524.19",BUPA CARE  HOME (CFH CARE ) LTD,SOCIAL SERVICES RESIDENTIAL,Adult Social Care & Health,Independent Placements,A56006,0
Royal Borough of Kingston,9/1/2022,90167584,"8,050.93",BUPA CARE HOMES (AKW) LIMITED,SOCIAL SERVICES RESIDENTIAL,Adult Social Care & Health,Independent Placements,A56006,0
Royal Borough of Kingston,9/1/2022,90167585,"8,717.40",BUPA CARE HOMES (AKW) LIMITED,SOCIAL SERVICES RESIDENTIAL,Adult Social Care & Health,Independent Placements,A56006,0
Royal Borough of Kingston,9/1/2022,90167860,"5,153.40",BUPA CARE HOMES (AKW) LIMITED,SOCIAL SERVICES RESIDENTIAL,Adult Social Care & Health,Independent Placements,A56006,0
Royal Borough of Kingston,9/1/2022,90169222,"5,250.77",CARE MANAGEMENT GROUP LTD,SOCIAL SERVICES RESIDENTIAL,Adult Social Care & Health,Personal Budget - Third Party,A61019,0
Royal Borough of Kingston,9/1/2022,90167597,"3,238.11",CARE UK COMMUNITY PARTNERSHIPS LTD,SOCIAL SERVICES RESIDENTIAL,Adult Social Care & Health,Independent Placements,A56006,0
Royal Borough of Kingston,9/1/2022,90167604,"-2,226.43",CARE UK COMMUNITY PARTNERSHIPS LTD,SOCIAL SERVICES RESIDENTIAL,Adult Social Care & Health,Independent Placements,A56006,0
Royal Borough of Kingston,9/1/2022,90167676,983.57,CARE UK COMMUNITY PARTNERSHIPS LTD,SOCIAL SERVICES RESIDENTIAL,Adult Social Care & Health,Independent Placements,A56006,0
Royal Borough of Kingston,9/1/2022,90167728,"4,007.57",CARE UK COMMUNITY PARTNERSHIPS LTD,SOCIAL SERVICES RESIDENTIAL,Adult Social Care & Health,Independent Placements,A56006,0
Royal Borough of Kingston,9/1/2022,90167744,"2,698.41",CARE UK COMMUNITY PARTNERSHIPS LTD,SOCIAL SERVICES RESIDENTIAL,Adult Social Care & Health,Independent Placements,A56006,0
Royal Borough of Kingston,9/1/2022,90167507,"3,557.14",Caring Homes Healthcare Group Limited,SOCIAL SERVICES RESIDENTIAL,Adult Social Care & Health,Independent Placements,A56006,0
Royal Borough of Kingston,9/1/2022,90167753,"3,339.64",Jiva Healthcare Ltd,SOCIAL SERVICES RESIDENTIAL,Adult Social Care & Health,Independent Placements,A56006,0
Royal Borough of Kingston,9/1/2022,90167815,"9,164.96",CARTREF HOMES,SOCIAL SERVICES RESIDENTIAL,Adult Social Care & Health,Independent Placements,A56006,0
Royal Borough of Kingston,9/1/2022,90167791,"13,571.31",CAS CARE SERVICES LTD,SOCIAL SERVICES - OTHER,Adult Social Care & Health,Independent Placements,A56006,0
Royal Borough of Kingston,9/1/2022,90167831,"13,571.31",CAS CARE SERVICES LTD,SOCIAL SERVICES - OTHER,Adult Social Care & Health,Independent Placements,A56006,0
Royal Borough of Kingston,9/1/2022,90167806,"10,792.37",CAVENDISH CARE,SOCIAL SERVICES RESIDENTIAL,Adult Social Care & Health,Independent Placements,A56006,0
Royal Borough of Kingston,9/1/2022,90167657,"3,562.29",CHD (CARE HOMES) LTD,SOCIAL SERVICES RESIDENTIAL,Adult Social Care & Health,Independent Placements,A56006,0
Royal Borough of Kingston,9/1/2022,90167766,785.71,CHD (CARE HOMES) LTD,SOCIAL SERVICES RESIDENTIAL,Adult Social Care & Health,Independent Placements,A56006,0
Royal Borough of Kingston,9/1/2022,90167662,"1,068.69",CHD LIVING,SOCIAL SERVICES RESIDENTIAL,Adult Social Care & Health,Independent Placements,A56006,0
Royal Borough of Kingston,9/1/2022,90167493,"4,230.21",CHISWICK NURSING CENTRE,SOCIAL SERVICES RESIDENTIAL,Adult Social Care & Health,Independent Placements,A56006,0
Royal Borough of Kingston,9/1/2022,90167570,"4,674.90",CHISWICK NURSING CENTRE,SOCIAL SERVICES RESIDENTIAL,Adult Social Care & Health,Independent Placements,A56006,0
Royal Borough of Kingston,9/1/2022,90167571,"7,160.61",CHISWICK NURSING CENTRE,SOCIAL SERVICES RESIDENTIAL,Adult Social Care & Health,Independent Placements,A56006,0
Royal Borough of Kingston,9/1/2022,90167660,"3,633.90",CHISWICK NURSING CENTRE,SOCIAL SERVICES RESIDENTIAL,Adult Social Care & Health,Independent Placements,A56006,0
Royal Borough of Kingston,9/1/2022,90167689,"3,323.61",CHISWICK NURSING CENTRE,SOCIAL SERVICES RESIDENTIAL,Adult Social Care & Health,Independent Placements,A56006,0
Royal Borough of Kingston,9/1/2022,90167826,"7,870.41",CHOICE LTD,SOCIAL SERVICES RESIDENTIAL,Adult Social Care & Health,Independent Placements,A56006,0
Royal Borough of Kingston,9/1/2022,90167833,"6,954.39",CHOICE LTD,SOCIAL SERVICES RESIDENTIAL,Adult Social Care & Health,Independent Placements,A56006,0
Royal Borough of Kingston,9/1/2022,90169139,"5,747.70",CHRISTIES CARE LTD,SOCIAL SERVICES RESIDENTIAL,Adult Social Care & Health,Personal Budget - Third Party,A61019,0
Royal Borough of Kingston,9/1/2022,90169208,"5,373.04",CHRISTIES CARE LTD,SOCIAL SERVICES RESIDENTIAL,Adult Social Care & Health,Personal Budget - Third Party,A61019,0
Royal Borough of Kingston,9/1/2022,90169210,"5,590.63",CHRISTIES CARE LTD,SOCIAL SERVICES RESIDENTIAL,Adult Social Care & Health,Personal Budget - Third Party,A61019,0
Royal Borough of Kingston,9/1/2022,90169277,"5,394.47",CHRISTIES CARE LTD,SOCIAL SERVICES RESIDENTIAL,Adult Social Care & Health,Personal Budget - Third Party,A61019,0
Royal Borough of Kingston,9/1/2022,90167836,"8,527.24",CLEARWATER CARE (HACKNEY) LTD,SOCIAL SERVICES RESIDENTIAL,Adult Social Care & Health,Independent Placements,A56006,0
Royal Borough of Kingston,9/1/2022,70030971,450,CLEMENTS ENVIRONMENTAL SERVICES LTD,PEST CONTROL SERVICES,Corporate & Communities,Other Private Contractors - Third Party,A56080,0
Royal Borough of Kingston,9/1/2022,90169567,"6,113.23",CLIA Care Ltd,ACCOMMODATION - OTHER,Adult Social Care & Health,Personal Budget - Third Party,A61019,0
Royal Borough of Kingston,9/1/2022,90169205,"2,951.79",CMG LIMITED,SOCIAL SERVICES - OTHER,Adult Social Care & Health,Personal Budget - Third Party,A61019,0
Royal Borough of Kingston,9/1/2022,90169252,"5,355.51",CMG LIMITED,SOCIAL SERVICES - OTHER,Adult Social Care & Health,Personal Budget - Third Party,A61019,0
Royal Borough of Kingston,9/1/2022,90169253,"5,323.76",CMG LIMITED,SOCIAL SERVICES - OTHER,Adult Social Care & Health,Personal Budget - Third Party,A61019,0
Royal Borough of Kingston,9/1/2022,90169266,"5,845.67",CMG LIMITED,SOCIAL SERVICES - OTHER,Adult Social Care & Health,Personal Budget - Third Party,A61019,0
Royal Borough of Kingston,9/1/2022,90169279,900.26,CMG LIMITED,SOCIAL SERVICES - OTHER,Adult Social Care & Health,Personal Budget - Third Party,A61019,0
Royal Borough of Kingston,9/1/2022,90169280,"3,889.37",CMG LIMITED,SOCIAL SERVICES - OTHER,Adult Social Care & Health,Personal Budget - Third Party,A61019,0
Royal Borough of Kingston,9/1/2022,90169337,"4,639.59",CMG LIMITED,SOCIAL SERVICES - OTHER,Adult Social Care & Health,Personal Budget - Third Party,A61019,0
Royal Borough of Kingston,9/1/2022,90167863,"13,569.73",COGNITHAN,SOCIAL SERVICES RESIDENTIAL,Adult Social Care & Health,Independent Placements,A56006,0
Royal Borough of Kingston,9/1/2022,90167960,"3,010.84",COMFORT CARE SERVICES UK LTD,SOCIAL SERVICES-HOME CARE,Adult Social Care & Health,Supported Living - new framework,A56126,0
Royal Borough of Kingston,9/1/2022,90169021,"3,010.84",COMFORT CARE SERVICES UK LTD,SOCIAL SERVICES-HOME CARE,Adult Social Care & Health,Personal Budget - Third Party,A61019,0
Royal Borough of Kingston,9/1/2022,90169023,"3,010.84",COMFORT CARE SERVICES UK LTD,SOCIAL SERVICES-HOME CARE,Adult Social Care & Health,Personal Budget - Third Party,A61019,0
Royal Borough of Kingston,9/1/2022,90169135,"1,043.31",COMFORT CARE SERVICES UK LTD,SOCIAL SERVICES-HOME CARE,Adult Social Care & Health,Personal Budget - Third Party,A61019,0
Royal Borough of Kingston,9/1/2022,90169136,"4,156.24",COMFORT CARE SERVICES UK LTD,SOCIAL SERVICES-HOME CARE,Adult Social Care & Health,Personal Budget - Third Party,A61019,0
Royal Borough of Kingston,9/1/2022,90169138,"1,009.37",COMFORT CARE SERVICES UK LTD,SOCIAL SERVICES-HOME CARE,Adult Social Care & Health,Personal Budget - Third Party,A61019,0
Royal Borough of Kingston,9/1/2022,90169170,"1,043.31",COMFORT CARE SERVICES UK LTD,SOCIAL SERVICES-HOME CARE,Adult Social Care & Health,Personal Budget - Third Party,A61019,0
Royal Borough of Kingston,9/1/2022,90169171,"4,156.24",COMFORT CARE SERVICES UK LTD,SOCIAL SERVICES-HOME CARE,Adult Social Care & Health,Personal Budget - Third Party,A61019,0
Royal Borough of Kingston,9/1/2022,90169173,"1,009.37",COMFORT CARE SERVICES UK LTD,SOCIAL SERVICES-HOME CARE,Adult Social Care & Health,Personal Budget - Third Party,A61019,0
Royal Borough of Kingston,9/1/2022,90169282,"3,869.96",COMFORT CARE SERVICES UK LTD,SOCIAL SERVICES-HOME CARE,Adult Social Care & Health,Personal Budget - Third Party,A61019,0
Royal Borough of Kingston,9/1/2022,90169284,"1,374.13",COMFORT CARE SERVICES UK LTD,SOCIAL SERVICES-HOME CARE,Adult Social Care & Health,Personal Budget - Third Party,A61019,0
Royal Borough of Kingston,9/1/2022,90169285,"4,156.24",COMFORT CARE SERVICES UK LTD,SOCIAL SERVICES-HOME CARE,Adult Social Care & Health,Personal Budget - Third Party,A61019,0
Royal Borough of Kingston,9/1/2022,90169287,"1,009.37",COMFORT CARE SERVICES UK LTD,SOCIAL SERVICES-HOME CARE,Adult Social Care & Health,Personal Budget - Third Party,A61019,0
Royal Borough of Kingston,9/1/2022,90169307,"1,399.54",COMFORT CARE SERVICES UK LTD,SOCIAL SERVICES-HOME CARE,Adult Social Care & Health,Personal Budget - Third Party,A61019,0
Royal Borough of Kingston,9/1/2022,90169308,"4,156.24",COMFORT CARE SERVICES UK LTD,SOCIAL SERVICES-HOME CARE,Adult Social Care & Health,Personal Budget - Third Party,A61019,0
Royal Borough of Kingston,9/1/2022,90169310,"1,009.37",COMFORT CARE SERVICES UK LTD,SOCIAL SERVICES-HOME CARE,Adult Social Care & Health,Personal Budget - Third Party,A61019,0
Royal Borough of Kingston,9/1/2022,90169526,"2,700.47",COMFORT CARE SERVICES UK LTD,SOCIAL SERVICES-HOME CARE,Adult Social Care & Health,Personal Budget - Third Party,A61019,0
Royal Borough of Kingston,9/1/2022,90169531,"1,074.99",COMFORT CARE SERVICES UK LTD,SOCIAL SERVICES-HOME CARE,Adult Social Care & Health,Personal Budget - Third Party,A61019,0
Royal Borough of Kingston,9/1/2022,90169534,"2,700.47",COMFORT CARE SERVICES UK LTD,SOCIAL SERVICES-HOME CARE,Adult Social Care & Health,Personal Budget - Third Party,A61019,0
Royal Borough of Kingston,9/1/2022,90169535,"1,792.76",COMFORT CARE SERVICES UK LTD,SOCIAL SERVICES-HOME CARE,Adult Social Care & Health,Personal Budget - Third Party,A61019,0
Royal Borough of Kingston,9/1/2022,90169539,"2,700.47",COMFORT CARE SERVICES UK LTD,SOCIAL SERVICES-HOME CARE,Adult Social Care & Health,Personal Budget - Third Party,A61019,0
Royal Borough of Kingston,9/1/2022,90169545,"2,700.47",COMFORT CARE SERVICES UK LTD,SOCIAL SERVICES-HOME CARE,Adult Social Care & Health,Personal Budget - Third Party,A61019,0
Royal Borough of Kingston,9/1/2022,90169547,"2,700.47",COMFORT CARE SERVICES UK LTD,SOCIAL SERVICES-HOME CARE,Adult Social Care & Health,Personal Budget - Third Party,A61019,0
Royal Borough of Kingston,9/1/2022,90169550,"2,700.47",COMFORT CARE SERVICES UK LTD,SOCIAL SERVICES-HOME CARE,Adult Social Care & Health,Personal Budget - Third Party,A61019,0
Royal Borough of Kingston,9/1/2022,90169553,"1,074.99",COMFORT CARE SERVICES UK LTD,SOCIAL SERVICES-HOME CARE,Adult Social Care & Health,Personal Budget - Third Party,A61019,0
Royal Borough of Kingston,9/1/2022,90169554,"2,700.47",COMFORT CARE SERVICES UK LTD,SOCIAL SERVICES-HOME CARE,Adult Social Care & Health,Personal Budget - Third Party,A61019,0
Royal Borough of Kingston,9/1/2022,90169555,"3,010.84",COMFORT CARE SERVICES UK LTD,SOCIAL SERVICES-HOME CARE,Adult Social Care & Health,Personal Budget - Third Party,A61019,0
Royal Borough of Kingston,9/1/2022,90169557,"2,700.47",COMFORT CARE SERVICES UK LTD,SOCIAL SERVICES-HOME CARE,Adult Social Care & Health,Personal Budget - Third Party,A61019,0
Royal Borough of Kingston,9/1/2022,90169558,"2,700.47",COMFORT CARE SERVICES UK LTD,SOCIAL SERVICES-HOME CARE,Adult Social Care & Health,Personal Budget - Third Party,A61019,0
Royal Borough of Kingston,9/1/2022,90169560,"3,010.84",COMFORT CARE SERVICES UK LTD,SOCIAL SERVICES-HOME CARE,Adult Social Care & Health,Personal Budget - Third Party,A61019,0
Royal Borough of Kingston,9/1/2022,90169561,"2,700.47",COMFORT CARE SERVICES UK LTD,SOCIAL SERVICES-HOME CARE,Adult Social Care & Health,Personal Budget - Third Party,A61019,0
Royal Borough of Kingston,9/1/2022,90169562,"2,038.20",COMFORT CARE SERVICES UK LTD,SOCIAL SERVICES-HOME CARE,Adult Social Care & Health,Personal Budget - Third Party,A61019,0
Royal Borough of Kingston,9/1/2022,90169564,"3,010.84",COMFORT CARE SERVICES UK LTD,SOCIAL SERVICES-HOME CARE,Adult Social Care & Health,Personal Budget - Third Party,A61019,0
Royal Borough of Kingston,9/1/2022,90169565,"2,700.47",COMFORT CARE SERVICES UK LTD,SOCIAL SERVICES-HOME CARE,Adult Social Care & Health,Personal Budget - Third Party,A61019,0
Royal Borough of Kingston,9/1/2022,90169568,"1,672.67",COMFORT CARE SERVICES UK LTD,SOCIAL SERVICES-HOME CARE,Adult Social Care & Health,Personal Budget - Third Party,A61019,0
Royal Borough of Kingston,9/1/2022,90169571,"2,841.99",COMFORT CARE SERVICES UK LTD,SOCIAL SERVICES-HOME CARE,Adult Social Care & Health,Personal Budget - Third Party,A61019,0
Royal Borough of Kingston,9/1/2022,90167814,"7,841.49",COMMUNITY CARE SOLUTIONS LTD,SOCIAL SERVICES RESIDENTIAL,Adult Social Care & Health,Independent Placements,A56006,0
Royal Borough of Kingston,9/1/2022,90167817,"8,093.66",CONGRESS HOUSE LIMITED ,SOCIAL SERVICES RESIDENTIAL,Adult Social Care & Health,Independent Placements,A56006,0
Royal Borough of Kingston,9/1/2022,90167482,"1,714.29",COUNTRY COURT CARE HOMES 2 LTD,SOCIAL SERVICES RESIDENTIAL,Adult Social Care & Health,Independent Placements,A56006,0
Royal Borough of Kingston,9/1/2022,90167483,"3,542.86",COUNTRY COURT CARE HOMES 2 LTD,SOCIAL SERVICES RESIDENTIAL,Adult Social Care & Health,Independent Placements,A56006,0
Royal Borough of Kingston,9/1/2022,90167484,"3,542.86",COUNTRY COURT CARE HOMES 2 LTD,SOCIAL SERVICES RESIDENTIAL,Adult Social Care & Health,Independent Placements,A56006,0
Royal Borough of Kingston,9/1/2022,90167485,"3,428.57",COUNTRY COURT CARE HOMES 2 LTD,SOCIAL SERVICES RESIDENTIAL,Adult Social Care & Health,Independent Placements,A56006,0
Royal Borough of Kingston,9/1/2022,90167605,"3,415.07",COUNTRY COURT CARE HOMES 2 LTD,SOCIAL SERVICES RESIDENTIAL,Adult Social Care & Health,Independent Placements,A56006,0
Royal Borough of Kingston,9/1/2022,90167643,"3,339.64",COUNTRY COURT CARE HOMES 2 LTD,SOCIAL SERVICES RESIDENTIAL,Adult Social Care & Health,Independent Placements,A56006,0
Royal Borough of Kingston,9/1/2022,90167659,"3,415.33",COUNTRY COURT CARE HOMES 2 LTD,SOCIAL SERVICES RESIDENTIAL,Adult Social Care & Health,Independent Placements,A56006,0
Royal Borough of Kingston,9/1/2022,90167664,"3,415.33",COUNTRY COURT CARE HOMES 2 LTD,SOCIAL SERVICES RESIDENTIAL,Adult Social Care & Health,Independent Placements,A56006,0
Royal Borough of Kingston,9/1/2022,90167673,"3,348.56",COUNTRY COURT CARE HOMES 2 LTD,SOCIAL SERVICES RESIDENTIAL,Adult Social Care & Health,Independent Placements,A56006,0
Royal Borough of Kingston,9/1/2022,90167735,"3,642.86",COUNTRY COURT CARE HOMES 2 LTD,SOCIAL SERVICES RESIDENTIAL,Adult Social Care & Health,Independent Placements,A56006,0
Royal Borough of Kingston,9/1/2022,90167751,"1,092.86",COUNTRY COURT CARE HOMES 2 LTD,SOCIAL SERVICES RESIDENTIAL,Adult Social Care & Health,Independent Placements,A56006,0
Royal Borough of Kingston,9/1/2022,90167752,"3,642.86",COUNTRY COURT CARE HOMES 2 LTD,SOCIAL SERVICES RESIDENTIAL,Adult Social Care & Health,Independent Placements,A56006,0
Royal Borough of Kingston,9/1/2022,70031214,"338,897.75",COUNTRYSIDE PROPERTIES (UK) LTD,CONSTRUCTION INDUSTRY,Capital Programme,Payments to Contractors,C14000,0
Royal Borough of Kingston,9/1/2022,70031215,"415,475.60",COUNTRYSIDE PROPERTIES (UK) LTD,CONSTRUCTION INDUSTRY,Capital Programme,Payments to Contractors,C14000,0
Royal Borough of Kingston,9/1/2022,70031216,"354,057.01",COUNTRYSIDE PROPERTIES (UK) LTD,CONSTRUCTION INDUSTRY,Capital Programme,Payments to Contractors,C14000,0
Royal Borough of Kingston,9/1/2022,70031934,"1,922.00",CRYSTAL & CO,ACCOMMODATION BED & BREAKFAST,Place,Bed & Breakfast,A56000,0
Royal Borough of Kingston,9/1/2022,70031935,"1,581.00",CRYSTAL & CO,ACCOMMODATION BED & BREAKFAST,Place,Bed & Breakfast,A56000,0
Royal Borough of Kingston,9/1/2022,70031936,"1,581.00",CRYSTAL & CO,ACCOMMODATION BED & BREAKFAST,Place,Bed & Breakfast,A56000,0
Royal Borough of Kingston,9/1/2022,70031937,"1,705.00",CRYSTAL & CO,ACCOMMODATION BED & BREAKFAST,Place,Bed & Breakfast,A56000,0
Royal Borough of Kingston,9/1/2022,70031938,"1,581.00",CRYSTAL & CO,ACCOMMODATION BED & BREAKFAST,Place,Bed & Breakfast,A56000,0
Royal Borough of Kingston,9/1/2022,70031939,"1,643.00",CRYSTAL & CO,ACCOMMODATION BED & BREAKFAST,Place,Bed & Breakfast,A56000,0
Royal Borough of Kingston,9/1/2022,70031940,"1,643.00",CRYSTAL & CO,ACCOMMODATION BED & BREAKFAST,Place,Bed & Breakfast,A56000,0
Royal Borough of Kingston,9/1/2022,70031941,"1,922.00",CRYSTAL & CO,ACCOMMODATION BED & BREAKFAST,Place,Bed & Breakfast,A56000,0
Royal Borough of Kingston,9/1/2022,70031942,"1,581.00",CRYSTAL & CO,ACCOMMODATION BED & BREAKFAST,Place,Bed & Breakfast,A56000,0
Royal Borough of Kingston,9/1/2022,70031943,"1,302.00",CRYSTAL & CO,ACCOMMODATION BED & BREAKFAST,Place,Bed & Breakfast,A56000,0
Royal Borough of Kingston,9/1/2022,70031944,"1,922.00",CRYSTAL & CO,ACCOMMODATION BED & BREAKFAST,Place,Bed & Breakfast,A56000,0
Royal Borough of Kingston,9/1/2022,70031945,"1,240.00",CRYSTAL & CO,ACCOMMODATION BED & BREAKFAST,Place,Bed & Breakfast,A56000,0
Royal Borough of Kingston,9/1/2022,70031946,"1,922.00",CRYSTAL & CO,ACCOMMODATION BED & BREAKFAST,Place,Bed & Breakfast,A56000,0
Royal Borough of Kingston,9/1/2022,70031947,"1,581.00",CRYSTAL & CO,ACCOMMODATION BED & BREAKFAST,Place,Bed & Breakfast,A56000,0
Royal Borough of Kingston,9/1/2022,70031948,"1,922.00",CRYSTAL & CO,ACCOMMODATION BED & BREAKFAST,Place,Bed & Breakfast,A56000,0
Royal Borough of Kingston,9/1/2022,70031782,"3,069.00",Delta Wise Limited,ACCOMMODATION BED & BREAKFAST,Place,Bed & Breakfast,A56000,0
Royal Borough of Kingston,9/1/2022,70031783,"2,790.00",Delta Wise Limited,ACCOMMODATION BED & BREAKFAST,Place,Bed & Breakfast,A56000,0
Royal Borough of Kingston,9/1/2022,70031784,"1,860.00",Delta Wise Limited,ACCOMMODATION BED & BREAKFAST,Place,Bed & Breakfast,A56000,0
Royal Borough of Kingston,9/1/2022,70031785,"1,860.00",Delta Wise Limited,ACCOMMODATION BED & BREAKFAST,Place,Bed & Breakfast,A56000,0
Royal Borough of Kingston,9/1/2022,70031786,"1,860.00",Delta Wise Limited,ACCOMMODATION BED & BREAKFAST,Place,Bed & Breakfast,A56000,0
Royal Borough of Kingston,9/1/2022,90169527,"6,450.00",Dephinus Healthcare Ltd,ACCOMMODATION - OTHER,Adult Social Care & Health,Personal Budget - Third Party,A61019,0
Royal Borough of Kingston,9/1/2022,90169549,"11,785.71",Dephinus Healthcare Ltd,ACCOMMODATION - OTHER,Adult Social Care & Health,Personal Budget - Third Party,A61019,0
Royal Borough of Kingston,9/1/2022,90167842,"5,356.29",DOWNING (CHERTSEY ROAD) LTD,SOCIAL SERVICES RESIDENTIAL,Adult Social Care & Health,Independent Placements,A56006,0
Royal Borough of Kingston,9/1/2022,70031326,"2,121.79",EDF ENERGY CUSTOMER PLC,UTILITIES,Corporate & Communities,Site Management,A56063,0
Royal Borough of Kingston,9/1/2022,90162455,"2,785.71",ELMGLADE CARE HOME,SOCIAL SERVICES-HOME CARE,Adult Social Care & Health,Other Private Contractors - Third Party,A56080,0
Royal Borough of Kingston,9/1/2022,90162456,"3,321.43",ELMGLADE CARE HOME,SOCIAL SERVICES-HOME CARE,Adult Social Care & Health,Other Private Contractors - Third Party,A56080,0
Royal Borough of Kingston,9/1/2022,90162457,"3,321.43",ELMGLADE CARE HOME,SOCIAL SERVICES-HOME CARE,Adult Social Care & Health,Other Private Contractors - Third Party,A56080,0
Royal Borough of Kingston,9/1/2022,90167893,"2,678.57",ELMGLADE CARE HOME,SOCIAL SERVICES-HOME CARE,Adult Social Care & Health,Other Private Contractors - Third Party,A56080,0
Royal Borough of Kingston,9/1/2022,90167786,"9,565.71",ELYSIUM HEALTHCARE LTD,SOCIAL SERVICES - OTHER,Adult Social Care & Health,Independent Placements,A56006,0
Royal Borough of Kingston,9/1/2022,90167793,"9,229.16",ELYSIUM HEALTHCARE LTD,SOCIAL SERVICES - OTHER,Adult Social Care & Health,Independent Placements,A56006,0
Royal Borough of Kingston,9/1/2022,90167795,"10,980.99",ELYSIUM HEALTHCARE LTD,SOCIAL SERVICES - OTHER,Adult Social Care & Health,Independent Placements,A56006,0
Royal Borough of Kingston,9/1/2022,90167799,"7,792.50",ELYSIUM HEALTHCARE LTD,SOCIAL SERVICES - OTHER,Adult Social Care & Health,Independent Placements,A56006,0
Royal Borough of Kingston,9/1/2022,90167802,"9,759.34",ELYSIUM HEALTHCARE LTD,SOCIAL SERVICES - OTHER,Adult Social Care & Health,Independent Placements,A56006,0
Royal Borough of Kingston,9/1/2022,90167822,"9,565.71",ELYSIUM HEALTHCARE LTD,SOCIAL SERVICES - OTHER,Adult Social Care & Health,Independent Placements,A56006,0
Royal Borough of Kingston,9/1/2022,90167924,"3,702.26",EMEZZIONS LIMITED,SOCIAL SERVICES - OTHER,Adult Social Care & Health,Supported Living - new framework,A56126,0
Royal Borough of Kingston,9/1/2022,90167925,"2,082.42",EMEZZIONS LIMITED,SOCIAL SERVICES - OTHER,Adult Social Care & Health,Supported Living - new framework,A56126,0
Royal Borough of Kingston,9/1/2022,90167926,"-3,068.66",EMEZZIONS LIMITED,SOCIAL SERVICES - OTHER,Adult Social Care & Health,Supported Living - new framework,A56126,0
Royal Borough of Kingston,9/1/2022,90167927,"-1,656.28",EMEZZIONS LIMITED,SOCIAL SERVICES - OTHER,Adult Social Care & Health,Supported Living - new framework,A56126,0
Royal Borough of Kingston,9/1/2022,90167928,"4,990.01",EMEZZIONS LIMITED,SOCIAL SERVICES - OTHER,Adult Social Care & Health,Supported Living - new framework,A56126,0
Royal Borough of Kingston,9/1/2022,90167929,"2,806.74",EMEZZIONS LIMITED,SOCIAL SERVICES - OTHER,Adult Social Care & Health,Supported Living - new framework,A56126,0
Royal Borough of Kingston,9/1/2022,90167930,"-4,136.02",EMEZZIONS LIMITED,SOCIAL SERVICES - OTHER,Adult Social Care & Health,Supported Living - new framework,A56126,0
Royal Borough of Kingston,9/1/2022,90167931,"-2,232.37",EMEZZIONS LIMITED,SOCIAL SERVICES - OTHER,Adult Social Care & Health,Supported Living - new framework,A56126,0
Royal Borough of Kingston,9/1/2022,90167933,"4,829.04",EMEZZIONS LIMITED,SOCIAL SERVICES - OTHER,Adult Social Care & Health,Supported Living - new framework,A56126,0
Royal Borough of Kingston,9/1/2022,90167934,"2,716.20",EMEZZIONS LIMITED,SOCIAL SERVICES - OTHER,Adult Social Care & Health,Supported Living - new framework,A56126,0
Royal Borough of Kingston,9/1/2022,90167949,"2,940.99",EMEZZIONS LIMITED,SOCIAL SERVICES - OTHER,Adult Social Care & Health,Supported Living - new framework,A56126,0
Royal Borough of Kingston,9/1/2022,90167950,"2,160.36",EMEZZIONS LIMITED,SOCIAL SERVICES - OTHER,Adult Social Care & Health,Supported Living - new framework,A56126,0
Royal Borough of Kingston,9/1/2022,90167951,"5,318.30",EMEZZIONS LIMITED,SOCIAL SERVICES - OTHER,Adult Social Care & Health,Supported Living - new framework,A56126,0
Royal Borough of Kingston,9/1/2022,90167952,"-2,232.37",EMEZZIONS LIMITED,SOCIAL SERVICES - OTHER,Adult Social Care & Health,Supported Living - new framework,A56126,0
Royal Borough of Kingston,9/1/2022,90167953,"4,578.96",EMEZZIONS LIMITED,SOCIAL SERVICES - OTHER,Adult Social Care & Health,Supported Living - new framework,A56126,0
Royal Borough of Kingston,9/1/2022,90167954,"5,146.74",EMEZZIONS LIMITED,SOCIAL SERVICES - OTHER,Adult Social Care & Health,Supported Living - new framework,A56126,0
Royal Borough of Kingston,9/1/2022,90167956,"9,452.03",EMEZZIONS LIMITED,SOCIAL SERVICES - OTHER,Adult Social Care & Health,Supported Living - new framework,A56126,0
Royal Borough of Kingston,9/1/2022,90167958,"2,564.38",EMEZZIONS LIMITED,SOCIAL SERVICES - OTHER,Adult Social Care & Health,Supported Living - new framework,A56126,0
Royal Borough of Kingston,9/1/2022,90167959,"3,420.54",EMEZZIONS LIMITED,SOCIAL SERVICES - OTHER,Adult Social Care & Health,Supported Living - new framework,A56126,0
Royal Borough of Kingston,9/1/2022,90167962,"13,724.64",EMEZZIONS LIMITED,SOCIAL SERVICES - OTHER,Adult Social Care & Health,Supported Living - new framework,A56126,0
Royal Borough of Kingston,9/1/2022,90167965,"2,160.36",EMEZZIONS LIMITED,SOCIAL SERVICES - OTHER,Adult Social Care & Health,Supported Living - new framework,A56126,0
Royal Borough of Kingston,9/1/2022,90167967,"3,533.28",EMEZZIONS LIMITED,SOCIAL SERVICES - OTHER,Adult Social Care & Health,Supported Living - new framework,A56126,0
Royal Borough of Kingston,9/1/2022,90167968,"2,160.36",EMEZZIONS LIMITED,SOCIAL SERVICES - OTHER,Adult Social Care & Health,Supported Living - new framework,A56126,0
Royal Borough of Kingston,9/1/2022,90167656,"3,241.63",ENHAM,SOCIAL SERVICES - OTHER,Adult Social Care & Health,Independent Placements,A56006,0
Royal Borough of Kingston,9/1/2022,90166671,"1,453.03",ENHANCEABLE,SOCIAL SERVICES - OTHER,Adult Social Care & Health,Personal Budget - Third Party,A61019,0
Royal Borough of Kingston,9/1/2022,90167910,"30,219.77",ENHANCEABLE,SOCIAL SERVICES - OTHER,Adult Social Care & Health,Other Private Contractors - Third Party,A56080,0
Royal Borough of Kingston,9/1/2022,90167914,508.07,ENHANCEABLE,SOCIAL SERVICES - OTHER,Adult Social Care & Health,Other Private Contractors - Third Party,A56080,0
Royal Borough of Kingston,9/1/2022,90169261,"1,633.89",ENHANCEABLE,SOCIAL SERVICES - OTHER,Adult Social Care & Health,Personal Budget - Third Party,A61019,0
Royal Borough of Kingston,9/1/2022,90169629,907.71,ENHANCEABLE,SOCIAL SERVICES - OTHER,Adult Social Care & Health,Personal Budget - Third Party,A61019,0
Royal Borough of Kingston,9/1/2022,90169630,998.49,ENHANCEABLE,SOCIAL SERVICES - OTHER,Adult Social Care & Health,Personal Budget - Third Party,A61019,0
Royal Borough of Kingston,9/1/2022,90167858,"4,823.70",FAMILY INVESTMENT (THREE) LIMITED,SOCIAL SERVICES RESIDENTIAL,Adult Social Care & Health,Independent Placements,A56006,0
Royal Borough of Kingston,9/1/2022,90167534,"2,768.91",FOUR SEASONS 2000 LTD,SOCIAL SERVICES RESIDENTIAL,Adult Social Care & Health,Independent Placements,A56006,0
Royal Borough of Kingston,9/1/2022,90162454,"1,800.00",FOUR SEASONS HEALTHCARE,SOCIAL SERVICES RESIDENTIAL,Adult Social Care & Health,Independent Placements,A56006,0
Royal Borough of Kingston,9/1/2022,90167470,"3,406.46",FOUR SEASONS HEALTHCARE,SOCIAL SERVICES RESIDENTIAL,Adult Social Care & Health,Independent Placements,A56006,0
Royal Borough of Kingston,9/1/2022,90167474,"3,339.64",FOUR SEASONS HEALTHCARE,SOCIAL SERVICES RESIDENTIAL,Adult Social Care & Health,Independent Placements,A56006,0
Royal Borough of Kingston,9/1/2022,90167476,"3,428.57",FOUR SEASONS HEALTHCARE,SOCIAL SERVICES RESIDENTIAL,Adult Social Care & Health,Independent Placements,A56006,0
Royal Borough of Kingston,9/1/2022,90167486,571.43,FOUR SEASONS HEALTHCARE,SOCIAL SERVICES RESIDENTIAL,Adult Social Care & Health,Independent Placements,A56006,0
Royal Borough of Kingston,9/1/2022,90167487,"3,428.57",FOUR SEASONS HEALTHCARE,SOCIAL SERVICES RESIDENTIAL,Adult Social Care & Health,Independent Placements,A56006,0
Royal Borough of Kingston,9/1/2022,90167494,"3,323.61",FOUR SEASONS HEALTHCARE,SOCIAL SERVICES RESIDENTIAL,Adult Social Care & Health,Independent Placements,A56006,0
Royal Borough of Kingston,9/1/2022,90167502,"5,297.14",FOUR SEASONS HEALTHCARE,SOCIAL SERVICES RESIDENTIAL,Adult Social Care & Health,Independent Placements,A56006,0
Royal Borough of Kingston,9/1/2022,90167508,"2,916.64",FOUR SEASONS HEALTHCARE,SOCIAL SERVICES RESIDENTIAL,Adult Social Care & Health,Independent Placements,A56006,0
Royal Borough of Kingston,9/1/2022,90167511,"3,406.46",FOUR SEASONS HEALTHCARE,SOCIAL SERVICES RESIDENTIAL,Adult Social Care & Health,Independent Placements,A56006,0
Royal Borough of Kingston,9/1/2022,90167513,"3,339.64",FOUR SEASONS HEALTHCARE,SOCIAL SERVICES RESIDENTIAL,Adult Social Care & Health,Independent Placements,A56006,0
Royal Borough of Kingston,9/1/2022,90167532,"2,916.64",FOUR SEASONS HEALTHCARE,SOCIAL SERVICES RESIDENTIAL,Adult Social Care & Health,Independent Placements,A56006,0
Royal Borough of Kingston,9/1/2022,90167535,"3,125.44",FOUR SEASONS HEALTHCARE,SOCIAL SERVICES RESIDENTIAL,Adult Social Care & Health,Independent Placements,A56006,0
Royal Borough of Kingston,9/1/2022,90167568,"3,210.51",FOUR SEASONS HEALTHCARE,SOCIAL SERVICES RESIDENTIAL,Adult Social Care & Health,Independent Placements,A56006,0
Royal Borough of Kingston,9/1/2022,90167569,"3,428.57",FOUR SEASONS HEALTHCARE,SOCIAL SERVICES RESIDENTIAL,Adult Social Care & Health,Independent Placements,A56006,0
Royal Borough of Kingston,9/1/2022,90167573,-890.57,FOUR SEASONS HEALTHCARE,SOCIAL SERVICES RESIDENTIAL,Adult Social Care & Health,Independent Placements,A56006,0
Royal Borough of Kingston,9/1/2022,90167574,"2,115.11",FOUR SEASONS HEALTHCARE,SOCIAL SERVICES RESIDENTIAL,Adult Social Care & Health,Independent Placements,A56006,0
Royal Borough of Kingston,9/1/2022,90167575,"-3,339.64",FOUR SEASONS HEALTHCARE,SOCIAL SERVICES RESIDENTIAL,Adult Social Care & Health,Independent Placements,A56006,0
Royal Borough of Kingston,9/1/2022,90167576,"1,781.14",FOUR SEASONS HEALTHCARE,SOCIAL SERVICES RESIDENTIAL,Adult Social Care & Health,Independent Placements,A56006,0
Royal Borough of Kingston,9/1/2022,90167577,"-3,450.96",FOUR SEASONS HEALTHCARE,SOCIAL SERVICES RESIDENTIAL,Adult Social Care & Health,Independent Placements,A56006,0
Royal Borough of Kingston,9/1/2022,90167578,"2,560.39",FOUR SEASONS HEALTHCARE,SOCIAL SERVICES RESIDENTIAL,Adult Social Care & Health,Independent Placements,A56006,0
Royal Borough of Kingston,9/1/2022,90167579,"-3,450.96",FOUR SEASONS HEALTHCARE,SOCIAL SERVICES RESIDENTIAL,Adult Social Care & Health,Independent Placements,A56006,0
Royal Borough of Kingston,9/1/2022,90167580,"3,339.64",FOUR SEASONS HEALTHCARE,SOCIAL SERVICES RESIDENTIAL,Adult Social Care & Health,Independent Placements,A56006,0
Royal Borough of Kingston,9/1/2022,90167661,"3,112.54",FOUR SEASONS HEALTHCARE,SOCIAL SERVICES RESIDENTIAL,Adult Social Care & Health,Independent Placements,A56006,0
Royal Borough of Kingston,9/1/2022,90167665,"3,857.14",FOUR SEASONS HEALTHCARE,SOCIAL SERVICES RESIDENTIAL,Adult Social Care & Health,Independent Placements,A56006,0
Royal Borough of Kingston,9/1/2022,90167671,"3,250.59",FOUR SEASONS HEALTHCARE,SOCIAL SERVICES RESIDENTIAL,Adult Social Care & Health,Independent Placements,A56006,0
Royal Borough of Kingston,9/1/2022,90167683,"3,125.44",FOUR SEASONS HEALTHCARE,SOCIAL SERVICES RESIDENTIAL,Adult Social Care & Health,Independent Placements,A56006,0
Royal Borough of Kingston,9/1/2022,90167757,535.71,FOUR SEASONS HEALTHCARE,SOCIAL SERVICES RESIDENTIAL,Adult Social Care & Health,Independent Placements,A56006,0
Royal Borough of Kingston,9/1/2022,90167758,"2,785.71",FOUR SEASONS HEALTHCARE,SOCIAL SERVICES RESIDENTIAL,Adult Social Care & Health,Independent Placements,A56006,0
Royal Borough of Kingston,9/1/2022,90167768,"2,250.00",FOUR SEASONS HEALTHCARE,SOCIAL SERVICES RESIDENTIAL,Adult Social Care & Health,Independent Placements,A56006,0
Royal Borough of Kingston,9/1/2022,90169544,"17,060.49",Freshstart Care Solutions Ltd,ACCOMMODATION - OTHER,Adult Social Care & Health,Personal Budget - Third Party,A61019,0
Royal Borough of Kingston,9/1/2022,70031787,"348,565.00",KINGSTON HOSPITAL NHS FT,CENTRAL & LOCAL GOVERNMENT,Adult Social Care & Health,Other Private Contractors - Third Party,A56080,0
Royal Borough of Kingston,9/1/2022,90169027,621.43,GENEVA ROAD LIMITED,SOCIAL SERVICES RESIDENTIAL,Adult Social Care & Health,Personal Budget - Third Party,A61019,0
Royal Borough of Kingston,9/1/2022,90169028,671.14,GENEVA ROAD LIMITED,SOCIAL SERVICES RESIDENTIAL,Adult Social Care & Health,Personal Budget - Third Party,A61019,0
Royal Borough of Kingston,9/1/2022,90169029,"1,800.00",GENEVA ROAD LIMITED,SOCIAL SERVICES RESIDENTIAL,Adult Social Care & Health,Personal Budget - Third Party,A61019,0
Royal Borough of Kingston,9/1/2022,90169043,"1,071.43",GENEVA ROAD LIMITED,SOCIAL SERVICES RESIDENTIAL,Adult Social Care & Health,Personal Budget - Third Party,A61019,0
Royal Borough of Kingston,9/1/2022,90169044,"1,071.43",GENEVA ROAD LIMITED,SOCIAL SERVICES RESIDENTIAL,Adult Social Care & Health,Personal Budget - Third Party,A61019,0
Royal Borough of Kingston,9/1/2022,90169058,"1,230.43",GENEVA ROAD LIMITED,SOCIAL SERVICES RESIDENTIAL,Adult Social Care & Health,Personal Budget - Third Party,A61019,0
Royal Borough of Kingston,9/1/2022,90169059,"1,071.43",GENEVA ROAD LIMITED,SOCIAL SERVICES RESIDENTIAL,Adult Social Care & Health,Personal Budget - Third Party,A61019,0
Royal Borough of Kingston,9/1/2022,90169064,428.57,GENEVA ROAD LIMITED,SOCIAL SERVICES RESIDENTIAL,Adult Social Care & Health,Personal Budget - Third Party,A61019,0
Royal Borough of Kingston,9/1/2022,90169065,428.57,GENEVA ROAD LIMITED,SOCIAL SERVICES RESIDENTIAL,Adult Social Care & Health,Personal Budget - Third Party,A61019,0
Royal Borough of Kingston,9/1/2022,90169067,642.86,GENEVA ROAD LIMITED,SOCIAL SERVICES RESIDENTIAL,Adult Social Care & Health,Personal Budget - Third Party,A61019,0
Royal Borough of Kingston,9/1/2022,90169068,642.86,GENEVA ROAD LIMITED,SOCIAL SERVICES RESIDENTIAL,Adult Social Care & Health,Personal Budget - Third Party,A61019,0
Royal Borough of Kingston,9/1/2022,90169069,"1,118.57",GENEVA ROAD LIMITED,SOCIAL SERVICES RESIDENTIAL,Adult Social Care & Health,Personal Budget - Third Party,A61019,0
Royal Borough of Kingston,9/1/2022,90169070,"1,071.43",GENEVA ROAD LIMITED,SOCIAL SERVICES RESIDENTIAL,Adult Social Care & Health,Personal Budget - Third Party,A61019,0
Royal Borough of Kingston,9/1/2022,90169071,"1,071.43",GENEVA ROAD LIMITED,SOCIAL SERVICES RESIDENTIAL,Adult Social Care & Health,Personal Budget - Third Party,A61019,0
Royal Borough of Kingston,9/1/2022,90169075,428.57,GENEVA ROAD LIMITED,SOCIAL SERVICES RESIDENTIAL,Adult Social Care & Health,Personal Budget - Third Party,A61019,0
Royal Borough of Kingston,9/1/2022,90169078,642.37,GENEVA ROAD LIMITED,SOCIAL SERVICES RESIDENTIAL,Adult Social Care & Health,Personal Budget - Third Party,A61019,0
Royal Borough of Kingston,9/1/2022,90169097,857.14,GENEVA ROAD LIMITED,SOCIAL SERVICES RESIDENTIAL,Adult Social Care & Health,Personal Budget - Third Party,A61019,0
Royal Borough of Kingston,9/1/2022,90169112,490.54,GENEVA ROAD LIMITED,SOCIAL SERVICES RESIDENTIAL,Adult Social Care & Health,Personal Budget - Third Party,A61019,0
Royal Borough of Kingston,9/1/2022,90169113,847.54,GENEVA ROAD LIMITED,SOCIAL SERVICES RESIDENTIAL,Adult Social Care & Health,Personal Budget - Third Party,A61019,0
Royal Borough of Kingston,9/1/2022,90169126,535.71,GENEVA ROAD LIMITED,SOCIAL SERVICES RESIDENTIAL,Adult Social Care & Health,Personal Budget - Third Party,A61019,0
Royal Borough of Kingston,9/1/2022,90169129,642.86,GENEVA ROAD LIMITED,SOCIAL SERVICES RESIDENTIAL,Adult Social Care & Health,Personal Budget - Third Party,A61019,0
Royal Borough of Kingston,9/1/2022,90169631,470.36,GENEVA ROAD LIMITED,SOCIAL SERVICES RESIDENTIAL,Adult Social Care & Health,Personal Budget - Third Party,A61019,0
Royal Borough of Kingston,9/1/2022,90167669,"3,339.64",GEORGIAN HOUSE NURSING HOME,SOCIAL SERVICES RESIDENTIAL,Adult Social Care & Health,Independent Placements,A56006,0
Royal Borough of Kingston,9/1/2022,90167613,"4,318.29",Gold Care Homes,SOCIAL SERVICES RESIDENTIAL,Adult Social Care & Health,Independent Placements,A56006,0
Royal Borough of Kingston,9/1/2022,90167630,"4,608.73",Gold Care Homes,SOCIAL SERVICES RESIDENTIAL,Adult Social Care & Health,Independent Placements,A56006,0
Royal Borough of Kingston,9/1/2022,90167632,"3,339.64",Gold Care Homes,SOCIAL SERVICES RESIDENTIAL,Adult Social Care & Health,Independent Placements,A56006,0
Royal Borough of Kingston,9/1/2022,90167707,"4,318.29",Gold Care Homes,SOCIAL SERVICES RESIDENTIAL,Adult Social Care & Health,Independent Placements,A56006,0
Royal Borough of Kingston,9/1/2022,90167724,"4,028.23",Gold Care Homes,SOCIAL SERVICES RESIDENTIAL,Adult Social Care & Health,Independent Placements,A56006,0
Royal Borough of Kingston,9/1/2022,90167725,"4,318.29",Gold Care Homes,SOCIAL SERVICES RESIDENTIAL,Adult Social Care & Health,Independent Placements,A56006,0
Royal Borough of Kingston,9/1/2022,90167726,"4,608.73",Gold Care Homes,SOCIAL SERVICES RESIDENTIAL,Adult Social Care & Health,Independent Placements,A56006,0
Royal Borough of Kingston,9/1/2022,90167737,"4,318.29",Gold Care Homes,SOCIAL SERVICES RESIDENTIAL,Adult Social Care & Health,Independent Placements,A56006,0
Royal Borough of Kingston,9/1/2022,90167740,"4,608.73",Gold Care Homes,SOCIAL SERVICES RESIDENTIAL,Adult Social Care & Health,Independent Placements,A56006,0
Royal Borough of Kingston,9/1/2022,90167741,"4,028.23",Gold Care Homes,SOCIAL SERVICES RESIDENTIAL,Adult Social Care & Health,Independent Placements,A56006,0
Royal Borough of Kingston,9/1/2022,90167748,"4,608.73",Gold Care Homes,SOCIAL SERVICES RESIDENTIAL,Adult Social Care & Health,Independent Placements,A56006,0
Royal Borough of Kingston,9/1/2022,90167749,"4,608.73",Gold Care Homes,SOCIAL SERVICES RESIDENTIAL,Adult Social Care & Health,Independent Placements,A56006,0
Royal Borough of Kingston,9/1/2022,90167759,"3,528.57",Gold Care Homes,SOCIAL SERVICES RESIDENTIAL,Adult Social Care & Health,Independent Placements,A56006,0
Royal Borough of Kingston,9/1/2022,90167761,"2,307.14",Gold Care Homes,SOCIAL SERVICES RESIDENTIAL,Adult Social Care & Health,Independent Placements,A56006,0
Royal Borough of Kingston,9/1/2022,90167762,950,Gold Care Homes,SOCIAL SERVICES RESIDENTIAL,Adult Social Care & Health,Independent Placements,A56006,0
Royal Borough of Kingston,9/1/2022,90167763,"3,121.43",Gold Care Homes,SOCIAL SERVICES RESIDENTIAL,Adult Social Care & Health,Independent Placements,A56006,0
Royal Borough of Kingston,9/1/2022,90168963,626.86,Gold Care Homes,SOCIAL SERVICES RESIDENTIAL,Adult Social Care & Health,Personal Budget - Third Party,A61019,0
Royal Borough of Kingston,9/1/2022,90168964,626.86,Gold Care Homes,SOCIAL SERVICES RESIDENTIAL,Adult Social Care & Health,Personal Budget - Third Party,A61019,0
Royal Borough of Kingston,9/1/2022,90168967,"1,509.64",Gold Care Homes,SOCIAL SERVICES RESIDENTIAL,Adult Social Care & Health,Personal Budget - Third Party,A61019,0
Royal Borough of Kingston,9/1/2022,90169009,"3,600.00",Gold Care Homes,SOCIAL SERVICES RESIDENTIAL,Adult Social Care & Health,Personal Budget - Third Party,A61019,0
Royal Borough of Kingston,9/1/2022,90169012,723.3,Gold Care Homes,SOCIAL SERVICES RESIDENTIAL,Adult Social Care & Health,Personal Budget - Third Party,A61019,0
Royal Borough of Kingston,9/1/2022,90169013,"1,060.84",Gold Care Homes,SOCIAL SERVICES RESIDENTIAL,Adult Social Care & Health,Personal Budget - Third Party,A61019,0
Royal Borough of Kingston,9/1/2022,90167619,"2,894.36",GREYDALES LIMITED,SOCIAL SERVICES RESIDENTIAL,Adult Social Care & Health,Independent Placements,A56006,0
Royal Borough of Kingston,9/1/2022,90167778,"3,818.36",Grove Care Partnership Limited,SOCIAL SERVICES RESIDENTIAL,Adult Social Care & Health,Independent Placements,A56006,0
Royal Borough of Kingston,9/1/2022,90167794,"9,818.57",Grove Care Partnership Limited,SOCIAL SERVICES RESIDENTIAL,Adult Social Care & Health,Independent Placements,A56006,0
Royal Borough of Kingston,9/1/2022,90167810,"14,406.60",Grove Care Partnership Limited,SOCIAL SERVICES RESIDENTIAL,Adult Social Care & Health,Independent Placements,A56006,0
Royal Borough of Kingston,9/1/2022,90167813,"9,712.59",Grove Care Partnership Limited,SOCIAL SERVICES RESIDENTIAL,Adult Social Care & Health,Independent Placements,A56006,0
Royal Borough of Kingston,9/1/2022,90167821,"15,117.47",Grove Care Partnership Limited,SOCIAL SERVICES RESIDENTIAL,Adult Social Care & Health,Independent Placements,A56006,0
Royal Borough of Kingston,9/1/2022,90167837,"14,261.91",Grove Care Partnership Limited,SOCIAL SERVICES RESIDENTIAL,Adult Social Care & Health,Independent Placements,A56006,0
Royal Borough of Kingston,9/1/2022,90167845,"19,661.86",Grove Care Partnership Limited,SOCIAL SERVICES RESIDENTIAL,Adult Social Care & Health,Independent Placements,A56006,0
Royal Borough of Kingston,9/1/2022,90167846,"11,500.34",Grove Care Partnership Limited,SOCIAL SERVICES RESIDENTIAL,Adult Social Care & Health,Independent Placements,A56006,0
Royal Borough of Kingston,9/1/2022,90167847,"11,129.36",Grove Care Partnership Limited,SOCIAL SERVICES RESIDENTIAL,Adult Social Care & Health,Independent Placements,A56006,0
Royal Borough of Kingston,9/1/2022,90167850,"9,300.09",Grove Care Partnership Limited,SOCIAL SERVICES RESIDENTIAL,Adult Social Care & Health,Independent Placements,A56006,0
Royal Borough of Kingston,9/1/2022,90167868,"7,488.69",Grove Care Partnership Limited,SOCIAL SERVICES RESIDENTIAL,Adult Social Care & Health,Independent Placements,A56006,0
Royal Borough of Kingston,9/1/2022,90167877,"10,951.63",Grove Care Partnership Limited,SOCIAL SERVICES RESIDENTIAL,Adult Social Care & Health,Independent Placements,A56006,0
Royal Borough of Kingston,9/1/2022,90167878,"11,132.14",Grove Care Partnership Limited,SOCIAL SERVICES RESIDENTIAL,Adult Social Care & Health,Independent Placements,A56006,0
Royal Borough of Kingston,9/1/2022,90167688,"4,452.86",HAMPTON CARE LIMITED,SOCIAL SERVICES RESIDENTIAL,Adult Social Care & Health,Independent Placements,A56006,0
Royal Borough of Kingston,9/1/2022,90169106,882.86,HAZELDENE UK LTD,SOCIAL SERVICES RESIDENTIAL,Adult Social Care & Health,Personal Budget - Third Party,A61019,0
Royal Borough of Kingston,9/1/2022,90167730,"4,898.14",HAZELWOOD HOUSE,SOCIAL SERVICES RESIDENTIAL,Adult Social Care & Health,Independent Placements,A56006,0
Royal Borough of Kingston,9/1/2022,90167499,"3,690.30",HC-1 LIMITED ASHGROVE CARE HOME,SOCIAL SERVICES RESIDENTIAL,Adult Social Care & Health,Independent Placements,A56006,0
Royal Borough of Kingston,9/1/2022,90167785,"13,148.53",HEATHCOTES (SOUTHERN) LTD,SOCIAL SERVICES RESIDENTIAL,Adult Social Care & Health,Independent Placements,A56006,0
Royal Borough of Kingston,9/1/2022,90167807,"9,796.29",HEATHCOTES (SOUTHERN) LTD,SOCIAL SERVICES RESIDENTIAL,Adult Social Care & Health,Independent Placements,A56006,0
Royal Borough of Kingston,9/1/2022,90167809,"11,627.44",HEATHCOTES (SOUTHERN) LTD,SOCIAL SERVICES RESIDENTIAL,Adult Social Care & Health,Independent Placements,A56006,0
Royal Borough of Kingston,9/1/2022,90169343,"16,520.40",HEATHCOTES (SOUTHERN) LTD,SOCIAL SERVICES RESIDENTIAL,Adult Social Care & Health,Personal Budget - Third Party,A61019,0
Royal Borough of Kingston,9/1/2022,90169344,"-15,600.00",HEATHCOTES (SOUTHERN) LTD,SOCIAL SERVICES RESIDENTIAL,Adult Social Care & Health,Personal Budget - Third Party,A61019,0
Royal Borough of Kingston,9/1/2022,90169345,"17,071.08",HEATHCOTES (SOUTHERN) LTD,SOCIAL SERVICES RESIDENTIAL,Adult Social Care & Health,Personal Budget - Third Party,A61019,0
Royal Borough of Kingston,9/1/2022,90169346,"-16,120.00",HEATHCOTES (SOUTHERN) LTD,SOCIAL SERVICES RESIDENTIAL,Adult Social Care & Health,Personal Budget - Third Party,A61019,0
Royal Borough of Kingston,9/1/2022,90169347,"16,520.40",HEATHCOTES (SOUTHERN) LTD,SOCIAL SERVICES RESIDENTIAL,Adult Social Care & Health,Personal Budget - Third Party,A61019,0
Royal Borough of Kingston,9/1/2022,90169348,"-15,600.00",HEATHCOTES (SOUTHERN) LTD,SOCIAL SERVICES RESIDENTIAL,Adult Social Care & Health,Personal Budget - Third Party,A61019,0
Royal Borough of Kingston,9/1/2022,90169349,"17,071.08",HEATHCOTES (SOUTHERN) LTD,SOCIAL SERVICES RESIDENTIAL,Adult Social Care & Health,Personal Budget - Third Party,A61019,0
Royal Borough of Kingston,9/1/2022,90169350,"-16,120.00",HEATHCOTES (SOUTHERN) LTD,SOCIAL SERVICES RESIDENTIAL,Adult Social Care & Health,Personal Budget - Third Party,A61019,0
Royal Borough of Kingston,9/1/2022,90169351,"17,071.08",HEATHCOTES (SOUTHERN) LTD,SOCIAL SERVICES RESIDENTIAL,Adult Social Care & Health,Personal Budget - Third Party,A61019,0
Royal Borough of Kingston,9/1/2022,90169352,"-16,120.00",HEATHCOTES (SOUTHERN) LTD,SOCIAL SERVICES RESIDENTIAL,Adult Social Care & Health,Personal Budget - Third Party,A61019,0
Royal Borough of Kingston,9/1/2022,90169353,"16,520.40",HEATHCOTES (SOUTHERN) LTD,SOCIAL SERVICES RESIDENTIAL,Adult Social Care & Health,Personal Budget - Third Party,A61019,0
Royal Borough of Kingston,9/1/2022,90167670,"3,094.50",JESYEM MEDICARE LTD,SOCIAL SERVICES RESIDENTIAL,Adult Social Care & Health,Independent Placements,A56006,0
Royal Borough of Kingston,9/1/2022,90167674,"4,230.21",JESYEM MEDICARE LTD,SOCIAL SERVICES RESIDENTIAL,Adult Social Care & Health,Independent Placements,A56006,0
Royal Borough of Kingston,9/1/2022,90167682,"4,230.21",JESYEM MEDICARE LTD,SOCIAL SERVICES RESIDENTIAL,Adult Social Care & Health,Independent Placements,A56006,0
Royal Borough of Kingston,9/1/2022,90169056,558.09,HERTFORDSHIRE COUNTY COUNCIL,SOCIAL SERVICES RESIDENTIAL,Adult Social Care & Health,Personal Budget - Third Party,A61019,0
Royal Borough of Kingston,9/1/2022,90169025,903.27,HF TRUST LTD ,SOCIAL SERVICES DAY CARE,Adult Social Care & Health,Personal Budget - Third Party,A61019,0
Royal Borough of Kingston,9/1/2022,90169026,"2,258.19",HF TRUST LTD ,SOCIAL SERVICES DAY CARE,Adult Social Care & Health,Personal Budget - Third Party,A61019,0
Royal Borough of Kingston,9/1/2022,90169035,642.86,HF TRUST LTD ,SOCIAL SERVICES DAY CARE,Adult Social Care & Health,Personal Budget - Third Party,A61019,0
Royal Borough of Kingston,9/1/2022,90169037,964.29,HF TRUST LTD ,SOCIAL SERVICES DAY CARE,Adult Social Care & Health,Personal Budget - Third Party,A61019,0
Royal Borough of Kingston,9/1/2022,90169050,642.86,HF TRUST LTD ,SOCIAL SERVICES DAY CARE,Adult Social Care & Health,Personal Budget - Third Party,A61019,0
Royal Borough of Kingston,9/1/2022,90169052,857.14,HF TRUST LTD ,SOCIAL SERVICES DAY CARE,Adult Social Care & Health,Personal Budget - Third Party,A61019,0
Royal Borough of Kingston,9/1/2022,90169054,857.14,HF TRUST LTD ,SOCIAL SERVICES DAY CARE,Adult Social Care & Health,Personal Budget - Third Party,A61019,0
Royal Borough of Kingston,9/1/2022,90169063,857.14,HF TRUST LTD ,SOCIAL SERVICES DAY CARE,Adult Social Care & Health,Personal Budget - Third Party,A61019,0
Royal Borough of Kingston,9/1/2022,90169072,"1,071.43",HF TRUST LTD ,SOCIAL SERVICES DAY CARE,Adult Social Care & Health,Personal Budget - Third Party,A61019,0
Royal Borough of Kingston,9/1/2022,90169082,809.89,HF TRUST LTD ,SOCIAL SERVICES DAY CARE,Adult Social Care & Health,Personal Budget - Third Party,A61019,0
Royal Borough of Kingston,9/1/2022,90169086,642.86,HF TRUST LTD ,SOCIAL SERVICES DAY CARE,Adult Social Care & Health,Personal Budget - Third Party,A61019,0
Royal Borough of Kingston,9/1/2022,90169088,"1,071.43",HF TRUST LTD ,SOCIAL SERVICES DAY CARE,Adult Social Care & Health,Personal Budget - Third Party,A61019,0
Royal Borough of Kingston,9/1/2022,90169090,770.57,HF TRUST LTD ,SOCIAL SERVICES DAY CARE,Adult Social Care & Health,Personal Budget - Third Party,A61019,0
Royal Borough of Kingston,9/1/2022,90169092,857.14,HF TRUST LTD ,SOCIAL SERVICES DAY CARE,Adult Social Care & Health,Personal Budget - Third Party,A61019,0
Royal Borough of Kingston,9/1/2022,90169093,642.86,HF TRUST LTD ,SOCIAL SERVICES DAY CARE,Adult Social Care & Health,Personal Budget - Third Party,A61019,0
Royal Borough of Kingston,9/1/2022,90169098,"1,071.43",HF TRUST LTD ,SOCIAL SERVICES DAY CARE,Adult Social Care & Health,Personal Budget - Third Party,A61019,0
Royal Borough of Kingston,9/1/2022,90169101,857.14,HF TRUST LTD ,SOCIAL SERVICES DAY CARE,Adult Social Care & Health,Personal Budget - Third Party,A61019,0
Royal Borough of Kingston,9/1/2022,90169102,642.86,HF TRUST LTD ,SOCIAL SERVICES DAY CARE,Adult Social Care & Health,Personal Budget - Third Party,A61019,0
Royal Borough of Kingston,9/1/2022,90169103,642.86,HF TRUST LTD ,SOCIAL SERVICES DAY CARE,Adult Social Care & Health,Personal Budget - Third Party,A61019,0
Royal Borough of Kingston,9/1/2022,90169107,642.86,HF TRUST LTD ,SOCIAL SERVICES DAY CARE,Adult Social Care & Health,Personal Budget - Third Party,A61019,0
Royal Borough of Kingston,9/1/2022,90169108,857.14,HF TRUST LTD ,SOCIAL SERVICES DAY CARE,Adult Social Care & Health,Personal Budget - Third Party,A61019,0
Royal Borough of Kingston,9/1/2022,90169109,"1,071.43",HF TRUST LTD ,SOCIAL SERVICES DAY CARE,Adult Social Care & Health,Personal Budget - Third Party,A61019,0
Royal Borough of Kingston,9/1/2022,90169114,"1,071.43",HF TRUST LTD ,SOCIAL SERVICES DAY CARE,Adult Social Care & Health,Personal Budget - Third Party,A61019,0
Royal Borough of Kingston,9/1/2022,90169117,642.86,HF TRUST LTD ,SOCIAL SERVICES DAY CARE,Adult Social Care & Health,Personal Budget - Third Party,A61019,0
Royal Borough of Kingston,9/1/2022,90169118,"1,071.43",HF TRUST LTD ,SOCIAL SERVICES DAY CARE,Adult Social Care & Health,Personal Budget - Third Party,A61019,0
Royal Borough of Kingston,9/1/2022,90169120,"1,071.43",HF TRUST LTD ,SOCIAL SERVICES DAY CARE,Adult Social Care & Health,Personal Budget - Third Party,A61019,0
Royal Borough of Kingston,9/1/2022,90169123,642.86,HF TRUST LTD ,SOCIAL SERVICES DAY CARE,Adult Social Care & Health,Personal Budget - Third Party,A61019,0
Royal Borough of Kingston,9/1/2022,70030894,910,HML INDEPENDENT MEDICAL ADVICE LTD,LEGAL & PROFESSIONAL SERVICES,Place,Professional Fees,A44066,0
Royal Borough of Kingston,9/1/2022,70031022,"1,147.00",HOUSING ACTION  MANAGEMENT,ACCOMMODATION BED & BREAKFAST,Place,Bed & Breakfast,A56000,0
Royal Borough of Kingston,9/1/2022,90167729,"3,339.64",IDDENSHALL HALL ,ACCOMMODATION - OTHER,Adult Social Care & Health,Independent Placements,A56006,0
Royal Borough of Kingston,9/1/2022,90169326,"12,923.44",INDEPENDENCE HOMES LIMITED,SOCIAL SERVICES RESIDENTIAL,Adult Social Care & Health,Personal Budget - Third Party,A61019,0
Royal Borough of Kingston,9/1/2022,90167859,"4,671.43",JESMUND CARE LIMITED,SOCIAL SERVICES - PERSONAL BUDGETS,Adult Social Care & Health,Independent Placements,A56006,0
Royal Borough of Kingston,9/1/2022,70030955,900,JGP RESOURCING LTD,PRESS & PUBLICITY,Corporate & Communities,Advertising - Staff,A15027,0
Royal Borough of Kingston,9/1/2022,90169223,"8,616.99",JOYMAC CARE LTD,SOCIAL SERVICES RESIDENTIAL,Adult Social Care & Health,Personal Budget - Third Party,A61019,0
Royal Borough of Kingston,9/1/2022,90166664,"6,546.43",REDACTED - PERSONAL DATA,SOCIAL SERVICES RESIDENTIAL,Adult Social Care & Health,Personal Budget - Third Party,A61019,0
Royal Borough of Kingston,9/1/2022,90166667,973.92,REDACTED - PERSONAL DATA,SOCIAL SERVICES RESIDENTIAL,Adult Social Care & Health,Personal Budget - Third Party,A61019,0
Royal Borough of Kingston,9/1/2022,90166668,"5,869.61",REDACTED - PERSONAL DATA,SOCIAL SERVICES RESIDENTIAL,Adult Social Care & Health,Personal Budget - Third Party,A61019,0
Royal Borough of Kingston,9/1/2022,90166675,"8,537.02",REDACTED - PERSONAL DATA,SOCIAL SERVICES RESIDENTIAL,Adult Social Care & Health,Personal Budget - Third Party,A61019,0
Royal Borough of Kingston,9/1/2022,90166677,657.22,REDACTED - PERSONAL DATA,SOCIAL SERVICES RESIDENTIAL,Adult Social Care & Health,Personal Budget - Third Party,A61019,0
Royal Borough of Kingston,9/1/2022,90169024,"2,647.16",REDACTED - PERSONAL DATA,SOCIAL SERVICES RESIDENTIAL,Adult Social Care & Health,Personal Budget - Third Party,A61019,0
Royal Borough of Kingston,9/1/2022,90169265,"2,154.60",REDACTED - PERSONAL DATA,SOCIAL SERVICES RESIDENTIAL,Adult Social Care & Health,Personal Budget - Third Party,A61019,0
Royal Borough of Kingston,9/1/2022,90167598,"3,339.64",KATHRYNS HOUSE CARE HOME,SOCIAL SERVICES RESIDENTIAL,Adult Social Care & Health,Independent Placements,A56006,0
Royal Borough of Kingston,9/1/2022,90168991,922.5,KINGSTON VOLUNTARY ACTION CIO,CHARITIES & VOLUNTARY ORGNS,Adult Social Care & Health,Personal Budget - Third Party,A61019,0
Royal Borough of Kingston,9/1/2022,90169601,833.14,KINGSTON VOLUNTARY ACTION CIO,CHARITIES & VOLUNTARY ORGNS,Adult Social Care & Health,Personal Budget - Third Party,A61019,0
Royal Borough of Kingston,9/1/2022,90167596,"3,562.29",LANGLEY COURT REST HOME,SOCIAL SERVICES RESIDENTIAL,Adult Social Care & Health,Independent Placements,A56006,0
Royal Borough of Kingston,9/1/2022,90167609,"3,562.29",LANGLEY COURT REST HOME,SOCIAL SERVICES RESIDENTIAL,Adult Social Care & Health,Independent Placements,A56006,0
Royal Borough of Kingston,9/1/2022,90167615,"1,543.66",LANGLEY COURT REST HOME,SOCIAL SERVICES RESIDENTIAL,Adult Social Care & Health,Independent Placements,A56006,0
Royal Borough of Kingston,9/1/2022,90167616,"3,562.29",LANGLEY COURT REST HOME,SOCIAL SERVICES RESIDENTIAL,Adult Social Care & Health,Independent Placements,A56006,0
Royal Borough of Kingston,9/1/2022,90167617,"3,214.29",LANGLEY COURT REST HOME,SOCIAL SERVICES RESIDENTIAL,Adult Social Care & Health,Independent Placements,A56006,0
Royal Borough of Kingston,9/1/2022,90167618,"3,857.14",LANGLEY COURT REST HOME,SOCIAL SERVICES RESIDENTIAL,Adult Social Care & Health,Independent Placements,A56006,0
Royal Borough of Kingston,9/1/2022,90167622,"3,562.29",LANGLEY COURT REST HOME,SOCIAL SERVICES RESIDENTIAL,Adult Social Care & Health,Independent Placements,A56006,0
Royal Borough of Kingston,9/1/2022,90167626,"3,562.29",LANGLEY COURT REST HOME,SOCIAL SERVICES RESIDENTIAL,Adult Social Care & Health,Independent Placements,A56006,0
Royal Borough of Kingston,9/1/2022,90167629,"3,562.29",LANGLEY COURT REST HOME,SOCIAL SERVICES RESIDENTIAL,Adult Social Care & Health,Independent Placements,A56006,0
Royal Borough of Kingston,9/1/2022,90167636,"3,339.64",LANGLEY COURT REST HOME,SOCIAL SERVICES RESIDENTIAL,Adult Social Care & Health,Independent Placements,A56006,0
Royal Borough of Kingston,9/1/2022,90167637,"-3,443.54",LANGLEY COURT REST HOME,SOCIAL SERVICES RESIDENTIAL,Adult Social Care & Health,Independent Placements,A56006,0
Royal Borough of Kingston,9/1/2022,90167649,"3,561.43",LANGLEY COURT REST HOME,SOCIAL SERVICES RESIDENTIAL,Adult Social Care & Health,Independent Placements,A56006,0
Royal Borough of Kingston,9/1/2022,90167739,"4,007.57",LANGLEY COURT REST HOME,SOCIAL SERVICES RESIDENTIAL,Adult Social Care & Health,Independent Placements,A56006,0
Royal Borough of Kingston,9/1/2022,90167764,"2,828.57",LANGLEY COURT REST HOME,SOCIAL SERVICES RESIDENTIAL,Adult Social Care & Health,Independent Placements,A56006,0
Royal Borough of Kingston,9/1/2022,90167765,771.43,LANGLEY COURT REST HOME,SOCIAL SERVICES RESIDENTIAL,Adult Social Care & Health,Independent Placements,A56006,0
Royal Borough of Kingston,9/1/2022,90167894,"-2,828.57",LANGLEY COURT REST HOME,SOCIAL SERVICES RESIDENTIAL,Adult Social Care & Health,Other Private Contractors - Third Party,A56080,0
Royal Borough of Kingston,9/1/2022,90167895,-771.43,LANGLEY COURT REST HOME,SOCIAL SERVICES RESIDENTIAL,Adult Social Care & Health,Other Private Contractors - Third Party,A56080,0
Royal Borough of Kingston,9/1/2022,90167805,"3,349.16",LARCHE BOGNOR REGIS,SOCIAL SERVICES - OTHER,Adult Social Care & Health,Independent Placements,A56006,0
Royal Borough of Kingston,9/1/2022,90167855,621.56,LARCHE BOGNOR REGIS,SOCIAL SERVICES - OTHER,Adult Social Care & Health,Independent Placements,A56006,0
Royal Borough of Kingston,9/1/2022,90169053,865.71,LARCHE BOGNOR REGIS,SOCIAL SERVICES - OTHER,Adult Social Care & Health,Personal Budget - Third Party,A61019,0
Royal Borough of Kingston,9/1/2022,90167823,"11,132.14",LD CARE LIMITED,SOCIAL SERVICES RESIDENTIAL,Adult Social Care & Health,Independent Placements,A56006,0
Royal Borough of Kingston,9/1/2022,90167825,"10,664.61",LD CARE LIMITED,SOCIAL SERVICES RESIDENTIAL,Adult Social Care & Health,Independent Placements,A56006,0
Royal Borough of Kingston,9/1/2022,90167655,"5,303.83",LEONARD CHESHIRE DISABILITY,SOCIAL SERVICES - OTHER,Adult Social Care & Health,Independent Placements,A56006,0
Royal Borough of Kingston,9/1/2022,90167848,"6,676.50",LEONARD CHESHIRE DISABILITY,SOCIAL SERVICES - OTHER,Adult Social Care & Health,Independent Placements,A56006,0
Royal Borough of Kingston,9/1/2022,90167804,"13,941.13",LIAISE LODDON LTD,OPERATIONAL EQUIPMENT/MATERIAL,Adult Social Care & Health,Independent Placements,A56006,0
Royal Borough of Kingston,9/1/2022,90167777,"9,711.47",Lifeways Community Care Limited,SOCIAL SERVICES - OTHER,Adult Social Care & Health,Independent Placements,A56006,0
Royal Borough of Kingston,9/1/2022,90167829,"6,125.06",LIVING AMBITIONS LTD,SOCIAL SERVICES - OTHER,Adult Social Care & Health,Independent Placements,A56006,0
Royal Borough of Kingston,9/1/2022,90167838,"5,739.73",LIVING AMBITIONS LTD,SOCIAL SERVICES - OTHER,Adult Social Care & Health,Independent Placements,A56006,0
Royal Borough of Kingston,9/1/2022,70031168,"32,005.92",LONDON BOROUGH OF SUTTON,CENTRAL & LOCAL GOVERNMENT,Corporate & Communities,Other Roading-Related Expenditure,A56041,0
Royal Borough of Kingston,9/1/2022,70031195,"52,338.00",LONDON BOROUGH OF SUTTON,CENTRAL & LOCAL GOVERNMENT,Corporate & Communities,IT Hardware Maintenance,A45008,0
Royal Borough of Kingston,9/1/2022,70031020,"4,998.02",LONDON GRID  FOR LEARNING LIMITED,IT EQUIPMENT MAINTENANCE,Corporate & Communities,IT Hardware Maintenance,A45008,0
Royal Borough of Kingston,9/1/2022,90167465,"4,991.66",LONDON RESIDENTIAL HEALTHCARE LTD,SOCIAL SERVICES RESIDENTIAL,Adult Social Care & Health,Independent Placements,A56006,0
Royal Borough of Kingston,9/1/2022,90167466,"4,893.69",LONDON RESIDENTIAL HEALTHCARE LTD,SOCIAL SERVICES RESIDENTIAL,Adult Social Care & Health,Independent Placements,A56006,0
Royal Borough of Kingston,9/1/2022,90167467,"2,230.31",LONDON RESIDENTIAL HEALTHCARE LTD,SOCIAL SERVICES RESIDENTIAL,Adult Social Care & Health,Independent Placements,A56006,0
Royal Borough of Kingston,9/1/2022,90167471,"3,094.50",LONDON RESIDENTIAL HEALTHCARE LTD,SOCIAL SERVICES RESIDENTIAL,Adult Social Care & Health,Independent Placements,A56006,0
Royal Borough of Kingston,9/1/2022,90167473,"4,178.57",LONDON RESIDENTIAL HEALTHCARE LTD,SOCIAL SERVICES RESIDENTIAL,Adult Social Care & Health,Independent Placements,A56006,0
Royal Borough of Kingston,9/1/2022,90167475,"2,916.64",LONDON RESIDENTIAL HEALTHCARE LTD,SOCIAL SERVICES RESIDENTIAL,Adult Social Care & Health,Independent Placements,A56006,0
Royal Borough of Kingston,9/1/2022,90167477,"2,086.63",LONDON RESIDENTIAL HEALTHCARE LTD,SOCIAL SERVICES RESIDENTIAL,Adult Social Care & Health,Independent Placements,A56006,0
Royal Borough of Kingston,9/1/2022,90167490,"3,188.61",LONDON RESIDENTIAL HEALTHCARE LTD,SOCIAL SERVICES RESIDENTIAL,Adult Social Care & Health,Independent Placements,A56006,0
Royal Borough of Kingston,9/1/2022,90167496,786.29,LONDON RESIDENTIAL HEALTHCARE LTD,SOCIAL SERVICES RESIDENTIAL,Adult Social Care & Health,Independent Placements,A56006,0
Royal Borough of Kingston,9/1/2022,90167497,"4,875.02",LONDON RESIDENTIAL HEALTHCARE LTD,SOCIAL SERVICES RESIDENTIAL,Adult Social Care & Health,Independent Placements,A56006,0
Royal Borough of Kingston,9/1/2022,90167498,"3,508.84",LONDON RESIDENTIAL HEALTHCARE LTD,SOCIAL SERVICES RESIDENTIAL,Adult Social Care & Health,Independent Placements,A56006,0
Royal Borough of Kingston,9/1/2022,90167501,"3,188.61",LONDON RESIDENTIAL HEALTHCARE LTD,SOCIAL SERVICES RESIDENTIAL,Adult Social Care & Health,Independent Placements,A56006,0
Royal Borough of Kingston,9/1/2022,90167505,"3,617.49",LONDON RESIDENTIAL HEALTHCARE LTD,SOCIAL SERVICES RESIDENTIAL,Adult Social Care & Health,Independent Placements,A56006,0
Royal Borough of Kingston,9/1/2022,90167512,"3,339.64",LONDON RESIDENTIAL HEALTHCARE LTD,SOCIAL SERVICES RESIDENTIAL,Adult Social Care & Health,Independent Placements,A56006,0
Royal Borough of Kingston,9/1/2022,90167515,"3,323.61",LONDON RESIDENTIAL HEALTHCARE LTD,SOCIAL SERVICES RESIDENTIAL,Adult Social Care & Health,Independent Placements,A56006,0
Royal Borough of Kingston,9/1/2022,90167519,"2,916.64",LONDON RESIDENTIAL HEALTHCARE LTD,SOCIAL SERVICES RESIDENTIAL,Adult Social Care & Health,Independent Placements,A56006,0
Royal Borough of Kingston,9/1/2022,90167520,"3,642.86",LONDON RESIDENTIAL HEALTHCARE LTD,SOCIAL SERVICES RESIDENTIAL,Adult Social Care & Health,Independent Placements,A56006,0
Royal Borough of Kingston,9/1/2022,90167522,"3,339.64",LONDON RESIDENTIAL HEALTHCARE LTD,SOCIAL SERVICES RESIDENTIAL,Adult Social Care & Health,Independent Placements,A56006,0
Royal Borough of Kingston,9/1/2022,90167528,"3,562.29",LONDON RESIDENTIAL HEALTHCARE LTD,SOCIAL SERVICES RESIDENTIAL,Adult Social Care & Health,Independent Placements,A56006,0
Royal Borough of Kingston,9/1/2022,90167537,"2,086.63",LONDON RESIDENTIAL HEALTHCARE LTD,SOCIAL SERVICES RESIDENTIAL,Adult Social Care & Health,Independent Placements,A56006,0
Royal Borough of Kingston,9/1/2022,90167539,"1,016.28",LONDON RESIDENTIAL HEALTHCARE LTD,SOCIAL SERVICES RESIDENTIAL,Adult Social Care & Health,Independent Placements,A56006,0
Royal Borough of Kingston,9/1/2022,90167541,825,LONDON RESIDENTIAL HEALTHCARE LTD,SOCIAL SERVICES RESIDENTIAL,Adult Social Care & Health,Independent Placements,A56006,0
Royal Borough of Kingston,9/1/2022,90167546,"3,323.61",LONDON RESIDENTIAL HEALTHCARE LTD,SOCIAL SERVICES RESIDENTIAL,Adult Social Care & Health,Independent Placements,A56006,0
Royal Borough of Kingston,9/1/2022,90167548,"-1,202.27",LONDON RESIDENTIAL HEALTHCARE LTD,SOCIAL SERVICES RESIDENTIAL,Adult Social Care & Health,Independent Placements,A56006,0
Royal Borough of Kingston,9/1/2022,90167550,"2,507.14",LONDON RESIDENTIAL HEALTHCARE LTD,SOCIAL SERVICES RESIDENTIAL,Adult Social Care & Health,Independent Placements,A56006,0
Royal Borough of Kingston,9/1/2022,90167567,"2,916.64",LONDON RESIDENTIAL HEALTHCARE LTD,SOCIAL SERVICES RESIDENTIAL,Adult Social Care & Health,Independent Placements,A56006,0
Royal Borough of Kingston,9/1/2022,90167663,"5,632.89",LONDON RESIDENTIAL HEALTHCARE LTD,SOCIAL SERVICES RESIDENTIAL,Adult Social Care & Health,Independent Placements,A56006,0
Royal Borough of Kingston,9/1/2022,90167667,"3,910.29",LONDON RESIDENTIAL HEALTHCARE LTD,SOCIAL SERVICES RESIDENTIAL,Adult Social Care & Health,Independent Placements,A56006,0
Royal Borough of Kingston,9/1/2022,90167668,"3,857.14",LONDON RESIDENTIAL HEALTHCARE LTD,SOCIAL SERVICES RESIDENTIAL,Adult Social Care & Health,Independent Placements,A56006,0
Royal Borough of Kingston,9/1/2022,90167677,619.15,LONDON RESIDENTIAL HEALTHCARE LTD,SOCIAL SERVICES RESIDENTIAL,Adult Social Care & Health,Independent Placements,A56006,0
Royal Borough of Kingston,9/1/2022,90167679,"3,339.64",LONDON RESIDENTIAL HEALTHCARE LTD,SOCIAL SERVICES RESIDENTIAL,Adult Social Care & Health,Independent Placements,A56006,0
Royal Borough of Kingston,9/1/2022,90167680,"3,642.86",LONDON RESIDENTIAL HEALTHCARE LTD,SOCIAL SERVICES RESIDENTIAL,Adult Social Care & Health,Independent Placements,A56006,0
Royal Borough of Kingston,9/1/2022,90167684,"4,285.71",LONDON RESIDENTIAL HEALTHCARE LTD,SOCIAL SERVICES RESIDENTIAL,Adult Social Care & Health,Independent Placements,A56006,0
Royal Borough of Kingston,9/1/2022,90167469,"3,339.64",LYNTON HALL NURSING HOME,SOCIAL SERVICES RESIDENTIAL,Adult Social Care & Health,Independent Placements,A56006,0
Royal Borough of Kingston,9/1/2022,90167472,"4,551.43",LYNTON HALL NURSING HOME,SOCIAL SERVICES RESIDENTIAL,Adult Social Care & Health,Independent Placements,A56006,0
Royal Borough of Kingston,9/1/2022,90167491,"3,857.14",LYNTON HALL NURSING HOME,SOCIAL SERVICES RESIDENTIAL,Adult Social Care & Health,Independent Placements,A56006,0
Royal Borough of Kingston,9/1/2022,90167495,"3,339.64",LYNTON HALL NURSING HOME,SOCIAL SERVICES RESIDENTIAL,Adult Social Care & Health,Independent Placements,A56006,0
Royal Borough of Kingston,9/1/2022,90167504,"4,071.43",LYNTON HALL NURSING HOME,SOCIAL SERVICES RESIDENTIAL,Adult Social Care & Health,Independent Placements,A56006,0
Royal Borough of Kingston,9/1/2022,90167518,"2,825.06",LYNTON HALL NURSING HOME,SOCIAL SERVICES RESIDENTIAL,Adult Social Care & Health,Independent Placements,A56006,0
Royal Borough of Kingston,9/1/2022,90167524,"2,916.64",LYNTON HALL NURSING HOME,SOCIAL SERVICES RESIDENTIAL,Adult Social Care & Health,Independent Placements,A56006,0
Royal Borough of Kingston,9/1/2022,90167527,"2,635.37",LYNTON HALL NURSING HOME,SOCIAL SERVICES RESIDENTIAL,Adult Social Care & Health,Independent Placements,A56006,0
Royal Borough of Kingston,9/1/2022,90167529,"3,339.64",LYNTON HALL NURSING HOME,SOCIAL SERVICES RESIDENTIAL,Adult Social Care & Health,Independent Placements,A56006,0
Royal Borough of Kingston,9/1/2022,90167672,"3,117.00",LYNTON HALL NURSING HOME,SOCIAL SERVICES RESIDENTIAL,Adult Social Care & Health,Independent Placements,A56006,0
Royal Borough of Kingston,9/1/2022,90167675,"2,635.37",LYNTON HALL NURSING HOME,SOCIAL SERVICES RESIDENTIAL,Adult Social Care & Health,Independent Placements,A56006,0
Royal Borough of Kingston,9/1/2022,90167773,"3,201.94",LYNTON HALL NURSING HOME,SOCIAL SERVICES RESIDENTIAL,Adult Social Care & Health,Independent Placements,A56006,0
Royal Borough of Kingston,9/1/2022,90167640,"3,179.36",Madeprice Ltd,SOCIAL SERVICES RESIDENTIAL,Adult Social Care & Health,Independent Placements,A56006,0
Royal Borough of Kingston,9/1/2022,90169524,"9,912.26",MAGIC LIFE LIMITED,ACCOMMODATION - OTHER,Adult Social Care & Health,Personal Budget - Third Party,A61019,0
Royal Borough of Kingston,9/1/2022,90169569,"7,434.17",MAGIC LIFE LIMITED,ACCOMMODATION - OTHER,Adult Social Care & Health,Personal Budget - Third Party,A61019,0
Royal Borough of Kingston,9/1/2022,90169570,"5,699.53",MAGIC LIFE LIMITED,ACCOMMODATION - OTHER,Adult Social Care & Health,Personal Budget - Third Party,A61019,0
Royal Borough of Kingston,9/1/2022,90167586,"3,784.93",MAGICARE LTD,SOCIAL SERVICES - OTHER,Adult Social Care & Health,Independent Placements,A56006,0
Royal Borough of Kingston,9/1/2022,90167874,"2,894.36",MEDIHANDS CLIFTON,ACCOMMODATION - OTHER,Adult Social Care & Health,Independent Placements,A56006,0
Royal Borough of Kingston,9/1/2022,90167875,"2,417.10",MEDIHANDS CLIFTON,ACCOMMODATION - OTHER,Adult Social Care & Health,Independent Placements,A56006,0
Royal Borough of Kingston,9/1/2022,90167690,"2,417.10",MEDIHANDS HOUSE,SOCIAL SERVICES - OTHER,Adult Social Care & Health,Independent Placements,A56006,0
Royal Borough of Kingston,9/1/2022,90167694,"2,417.10",MEDIHANDS HOUSE,SOCIAL SERVICES - OTHER,Adult Social Care & Health,Independent Placements,A56006,0
Royal Borough of Kingston,9/1/2022,90167865,"2,671.71",MEDIHANDS HOUSE,SOCIAL SERVICES - OTHER,Adult Social Care & Health,Independent Placements,A56006,0
Royal Borough of Kingston,9/1/2022,90167866,"2,417.10",MEDIHANDS HOUSE,SOCIAL SERVICES - OTHER,Adult Social Care & Health,Independent Placements,A56006,0
Royal Borough of Kingston,9/1/2022,90167867,"2,417.10",MEDIHANDS HOUSE,SOCIAL SERVICES - OTHER,Adult Social Care & Health,Independent Placements,A56006,0
Royal Borough of Kingston,9/1/2022,90167869,"2,417.10",MEDIHANDS HOUSE,SOCIAL SERVICES - OTHER,Adult Social Care & Health,Independent Placements,A56006,0
Royal Borough of Kingston,9/1/2022,90167870,"2,417.10",MEDIHANDS HOUSE,SOCIAL SERVICES - OTHER,Adult Social Care & Health,Independent Placements,A56006,0
Royal Borough of Kingston,9/1/2022,90167873,"2,417.10",MEDIHANDS HOUSE,SOCIAL SERVICES - OTHER,Adult Social Care & Health,Independent Placements,A56006,0
Royal Borough of Kingston,9/1/2022,90167880,"2,862.39",MEDIHANDS HOUSE,SOCIAL SERVICES - OTHER,Adult Social Care & Health,Independent Placements,A56006,0
Royal Borough of Kingston,9/1/2022,90167784,"2,417.10",MEDIHANDS LODGE,SOCIAL SERVICES RESIDENTIAL,Adult Social Care & Health,Independent Placements,A56006,0
Royal Borough of Kingston,9/1/2022,90167872,"3,039.17",MEDIHANDS LODGE,SOCIAL SERVICES RESIDENTIAL,Adult Social Care & Health,Independent Placements,A56006,0
Royal Borough of Kingston,9/1/2022,90167876,"2,783.06",MEDIHANDS LODGE,SOCIAL SERVICES RESIDENTIAL,Adult Social Care & Health,Independent Placements,A56006,0
Royal Borough of Kingston,9/1/2022,90168993,"2,819.83",MENCAP,CHARITIES & VOLUNTARY ORGNS,Adult Social Care & Health,Personal Budget - Third Party,A61019,0
Royal Borough of Kingston,9/1/2022,90169152,"6,802.46",MENCAP,CHARITIES & VOLUNTARY ORGNS,Adult Social Care & Health,Personal Budget - Third Party,A61019,0
Royal Borough of Kingston,9/1/2022,90167701,"3,450.99",MERLING CARE,SOCIAL SERVICES RESIDENTIAL,Adult Social Care & Health,Independent Placements,A56006,0
Royal Borough of Kingston,9/1/2022,70030847,"2,978.07",REDACTED - PERSONAL DATA,PLS LANDLORDS,Place,Compensation (In Lieu Of Works),A20039,0
Royal Borough of Kingston,9/1/2022,90167458,"3,910.16",MMCG (2) LIMITED,SOCIAL SERVICES RESIDENTIAL,Adult Social Care & Health,Independent Placements,A56006,0
Royal Borough of Kingston,9/1/2022,90167691,"2,417.10",MEDIHANDS VILLA,SOCIAL SERVICES - OTHER,Adult Social Care & Health,Independent Placements,A56006,0
Royal Borough of Kingston,9/1/2022,90167702,"2,417.10",MEDIHANDS VILLA,SOCIAL SERVICES - OTHER,Adult Social Care & Health,Independent Placements,A56006,0
Royal Borough of Kingston,9/1/2022,90167871,"3,214.29",MEDIHANDS VILLA,SOCIAL SERVICES - OTHER,Adult Social Care & Health,Independent Placements,A56006,0
Royal Borough of Kingston,9/1/2022,90167879,"3,112.54",MEDIHANDS VILLA,SOCIAL SERVICES - OTHER,Adult Social Care & Health,Independent Placements,A56006,0
Royal Borough of Kingston,9/1/2022,90167593,"3,428.70",REDACTED - PERSONAL DATA,SOCIAL SERVICES RESIDENTIAL,Adult Social Care & Health,Independent Placements,A56006,0
Royal Borough of Kingston,9/1/2022,90167599,"3,428.70",REDACTED - PERSONAL DATA,SOCIAL SERVICES RESIDENTIAL,Adult Social Care & Health,Independent Placements,A56006,0
Royal Borough of Kingston,9/1/2022,90167601,"3,740.40",REDACTED - PERSONAL DATA,SOCIAL SERVICES RESIDENTIAL,Adult Social Care & Health,Independent Placements,A56006,0
Royal Borough of Kingston,9/1/2022,90167608,"3,428.70",REDACTED - PERSONAL DATA,SOCIAL SERVICES RESIDENTIAL,Adult Social Care & Health,Independent Placements,A56006,0
Royal Borough of Kingston,9/1/2022,90167631,"3,112.54",REDACTED - PERSONAL DATA,SOCIAL SERVICES RESIDENTIAL,Adult Social Care & Health,Independent Placements,A56006,0
Royal Borough of Kingston,9/1/2022,90167638,"3,112.54",REDACTED - PERSONAL DATA,SOCIAL SERVICES RESIDENTIAL,Adult Social Care & Health,Independent Placements,A56006,0
Royal Borough of Kingston,9/1/2022,90167642,"3,428.70",REDACTED - PERSONAL DATA,SOCIAL SERVICES RESIDENTIAL,Adult Social Care & Health,Independent Placements,A56006,0
Royal Borough of Kingston,9/1/2022,90167644,"3,849.51",REDACTED - PERSONAL DATA,SOCIAL SERVICES RESIDENTIAL,Adult Social Care & Health,Independent Placements,A56006,0
Royal Borough of Kingston,9/1/2022,90167645,"3,428.70",REDACTED - PERSONAL DATA,SOCIAL SERVICES RESIDENTIAL,Adult Social Care & Health,Independent Placements,A56006,0
Royal Borough of Kingston,9/1/2022,90167646,"3,542.99",REDACTED - PERSONAL DATA,SOCIAL SERVICES RESIDENTIAL,Adult Social Care & Health,Independent Placements,A56006,0
Royal Borough of Kingston,9/1/2022,90167647,"3,542.99",REDACTED - PERSONAL DATA,SOCIAL SERVICES RESIDENTIAL,Adult Social Care & Health,Independent Placements,A56006,0
Royal Borough of Kingston,9/1/2022,90167648,"3,428.70",REDACTED - PERSONAL DATA,SOCIAL SERVICES RESIDENTIAL,Adult Social Care & Health,Independent Placements,A56006,0
Royal Borough of Kingston,9/1/2022,90167695,"1,107.71",REDACTED - PERSONAL DATA,SOCIAL SERVICES RESIDENTIAL,Adult Social Care & Health,Independent Placements,A56006,0
Royal Borough of Kingston,9/1/2022,90167696,"1,993.89",REDACTED - PERSONAL DATA,SOCIAL SERVICES RESIDENTIAL,Adult Social Care & Health,Independent Placements,A56006,0
Royal Borough of Kingston,9/1/2022,90167697,"1,440.03",REDACTED - PERSONAL DATA,SOCIAL SERVICES RESIDENTIAL,Adult Social Care & Health,Independent Placements,A56006,0
Royal Borough of Kingston,9/1/2022,90167698,"3,323.14",REDACTED - PERSONAL DATA,SOCIAL SERVICES RESIDENTIAL,Adult Social Care & Health,Independent Placements,A56006,0
Royal Borough of Kingston,9/1/2022,90167715,"3,171.56",REDACTED - PERSONAL DATA,SOCIAL SERVICES RESIDENTIAL,Adult Social Care & Health,Independent Placements,A56006,0
Royal Borough of Kingston,9/1/2022,90167716,"3,428.70",REDACTED - PERSONAL DATA,SOCIAL SERVICES RESIDENTIAL,Adult Social Care & Health,Independent Placements,A56006,0
Royal Borough of Kingston,9/1/2022,90167718,"2,400.09",REDACTED - PERSONAL DATA,SOCIAL SERVICES RESIDENTIAL,Adult Social Care & Health,Independent Placements,A56006,0
Royal Borough of Kingston,9/1/2022,90167719,"3,542.99",REDACTED - PERSONAL DATA,SOCIAL SERVICES RESIDENTIAL,Adult Social Care & Health,Independent Placements,A56006,0
Royal Borough of Kingston,9/1/2022,90167720,"3,542.99",REDACTED - PERSONAL DATA,SOCIAL SERVICES RESIDENTIAL,Adult Social Care & Health,Independent Placements,A56006,0
Royal Borough of Kingston,9/1/2022,90167721,"3,428.70",REDACTED - PERSONAL DATA,SOCIAL SERVICES RESIDENTIAL,Adult Social Care & Health,Independent Placements,A56006,0
Royal Borough of Kingston,9/1/2022,90167722,"3,112.54",REDACTED - PERSONAL DATA,SOCIAL SERVICES RESIDENTIAL,Adult Social Care & Health,Independent Placements,A56006,0
Royal Borough of Kingston,9/1/2022,90167723,"3,428.70",REDACTED - PERSONAL DATA,SOCIAL SERVICES RESIDENTIAL,Adult Social Care & Health,Independent Placements,A56006,0
Royal Borough of Kingston,9/1/2022,90167727,"3,428.70",REDACTED - PERSONAL DATA,SOCIAL SERVICES RESIDENTIAL,Adult Social Care & Health,Independent Placements,A56006,0
Royal Borough of Kingston,9/1/2022,90167743,"3,740.40",REDACTED - PERSONAL DATA,SOCIAL SERVICES RESIDENTIAL,Adult Social Care & Health,Independent Placements,A56006,0
Royal Borough of Kingston,9/1/2022,90167882,"-3,300.00",REDACTED - PERSONAL DATA,SOCIAL SERVICES RESIDENTIAL,Adult Social Care & Health,Independent Placements,A56006,0
Royal Borough of Kingston,9/1/2022,90167883,"-3,410.00",REDACTED - PERSONAL DATA,SOCIAL SERVICES RESIDENTIAL,Adult Social Care & Health,Independent Placements,A56006,0
Royal Borough of Kingston,9/1/2022,90167884,"-2,200.00",REDACTED - PERSONAL DATA,SOCIAL SERVICES RESIDENTIAL,Adult Social Care & Health,Independent Placements,A56006,0
Royal Borough of Kingston,9/1/2022,90167898,"3,625.29",REDACTED - PERSONAL DATA,SOCIAL SERVICES RESIDENTIAL,Adult Social Care & Health,Other Private Contractors - Third Party,A56080,0
Royal Borough of Kingston,9/1/2022,90167899,"3,746.13",REDACTED - PERSONAL DATA,SOCIAL SERVICES RESIDENTIAL,Adult Social Care & Health,Other Private Contractors - Third Party,A56080,0
Royal Borough of Kingston,9/1/2022,90167900,"3,746.13",REDACTED - PERSONAL DATA,SOCIAL SERVICES RESIDENTIAL,Adult Social Care & Health,Other Private Contractors - Third Party,A56080,0
Royal Borough of Kingston,9/1/2022,90167901,"3,625.29",REDACTED - PERSONAL DATA,SOCIAL SERVICES RESIDENTIAL,Adult Social Care & Health,Other Private Contractors - Third Party,A56080,0
Royal Borough of Kingston,9/1/2022,90167904,"1,028.61",REDACTED - PERSONAL DATA,SOCIAL SERVICES RESIDENTIAL,Adult Social Care & Health,Other Private Contractors - Third Party,A56080,0
Royal Borough of Kingston,9/1/2022,90167905,"-3,428.70",REDACTED - PERSONAL DATA,SOCIAL SERVICES RESIDENTIAL,Adult Social Care & Health,Other Private Contractors - Third Party,A56080,0
Royal Borough of Kingston,9/1/2022,90167906,"-3,542.99",REDACTED - PERSONAL DATA,SOCIAL SERVICES RESIDENTIAL,Adult Social Care & Health,Other Private Contractors - Third Party,A56080,0
Royal Borough of Kingston,9/1/2022,90167907,"-3,542.99",REDACTED - PERSONAL DATA,SOCIAL SERVICES RESIDENTIAL,Adult Social Care & Health,Other Private Contractors - Third Party,A56080,0
Royal Borough of Kingston,9/1/2022,90167908,"3,000.00",REDACTED - PERSONAL DATA,SOCIAL SERVICES RESIDENTIAL,Adult Social Care & Health,Other Private Contractors - Third Party,A56080,0
Royal Borough of Kingston,9/1/2022,90167909,"3,214.29",REDACTED - PERSONAL DATA,SOCIAL SERVICES RESIDENTIAL,Adult Social Care & Health,Other Private Contractors - Third Party,A56080,0
Royal Borough of Kingston,9/1/2022,90166659,626.31,REDACTED - PERSONAL DATA,SOCIAL SERVICES - PERSONAL BUDGETS,Adult Social Care & Health,Personal Budget - Third Party,A61019,0
Royal Borough of Kingston,9/1/2022,90166662,"1,897.67",REDACTED - PERSONAL DATA,SOCIAL SERVICES - PERSONAL BUDGETS,Adult Social Care & Health,Personal Budget - Third Party,A61019,0
Royal Borough of Kingston,9/1/2022,90166663,618.09,REDACTED - PERSONAL DATA,SOCIAL SERVICES - PERSONAL BUDGETS,Adult Social Care & Health,Personal Budget - Third Party,A61019,0
Royal Borough of Kingston,9/1/2022,90166670,618.09,REDACTED - PERSONAL DATA,SOCIAL SERVICES - PERSONAL BUDGETS,Adult Social Care & Health,Personal Budget - Third Party,A61019,0
Royal Borough of Kingston,9/1/2022,90166676,"1,045.50",REDACTED - PERSONAL DATA,SOCIAL SERVICES - PERSONAL BUDGETS,Adult Social Care & Health,Personal Budget - Third Party,A61019,0
Royal Borough of Kingston,9/1/2022,90169131,"3,356.10",REDACTED - PERSONAL DATA,SOCIAL SERVICES - PERSONAL BUDGETS,Adult Social Care & Health,Personal Budget - Third Party,A61019,0
Royal Borough of Kingston,9/1/2022,90169145,"3,964.46",REDACTED - PERSONAL DATA,SOCIAL SERVICES - PERSONAL BUDGETS,Adult Social Care & Health,Personal Budget - Third Party,A61019,0
Royal Borough of Kingston,9/1/2022,90169289,"2,742.39",REDACTED - PERSONAL DATA,SOCIAL SERVICES - PERSONAL BUDGETS,Adult Social Care & Health,Personal Budget - Third Party,A61019,0
Royal Borough of Kingston,9/1/2022,90169294,"2,783.10",REDACTED - PERSONAL DATA,SOCIAL SERVICES - PERSONAL BUDGETS,Adult Social Care & Health,Personal Budget - Third Party,A61019,0
Royal Borough of Kingston,9/1/2022,90169295,"1,347.94",REDACTED - PERSONAL DATA,SOCIAL SERVICES - PERSONAL BUDGETS,Adult Social Care & Health,Personal Budget - Third Party,A61019,0
Royal Borough of Kingston,9/1/2022,90169296,"2,001.51",REDACTED - PERSONAL DATA,SOCIAL SERVICES - PERSONAL BUDGETS,Adult Social Care & Health,Personal Budget - Third Party,A61019,0
Royal Borough of Kingston,9/1/2022,90169304,714.81,REDACTED - PERSONAL DATA,SOCIAL SERVICES - PERSONAL BUDGETS,Adult Social Care & Health,Personal Budget - Third Party,A61019,0
Royal Borough of Kingston,9/1/2022,90169311,"4,622.36",REDACTED - PERSONAL DATA,SOCIAL SERVICES - PERSONAL BUDGETS,Adult Social Care & Health,Personal Budget - Third Party,A61019,0
Royal Borough of Kingston,9/1/2022,90167700,"4,714.29",ACORN LODGE,SOCIAL SERVICES RESIDENTIAL,Adult Social Care & Health,Independent Placements,A56006,0
Royal Borough of Kingston,9/1/2022,90167588,"3,270.30",REDACTED - PERSONAL DATA,SOCIAL SERVICES RESIDENTIAL,Adult Social Care & Health,Independent Placements,A56006,0
Royal Borough of Kingston,9/1/2022,90167654,"3,293.19",REDACTED - PERSONAL DATA,SOCIAL SERVICES RESIDENTIAL,Adult Social Care & Health,Independent Placements,A56006,0
Royal Borough of Kingston,9/1/2022,90167742,"2,805.30",REDACTED - PERSONAL DATA,SOCIAL SERVICES RESIDENTIAL,Adult Social Care & Health,Independent Placements,A56006,0
Royal Borough of Kingston,9/1/2022,90162448,"3,400.00",NIGHTINGALE HOUSE,SOCIAL SERVICES RESIDENTIAL,Adult Social Care & Health,Independent Placements,A56006,0
Royal Borough of Kingston,9/1/2022,90162449,"3,764.29",NIGHTINGALE HOUSE,SOCIAL SERVICES RESIDENTIAL,Adult Social Care & Health,Independent Placements,A56006,0
Royal Borough of Kingston,9/1/2022,90162450,"3,784.93",NIGHTINGALE HOUSE,SOCIAL SERVICES RESIDENTIAL,Adult Social Care & Health,Independent Placements,A56006,0
Royal Borough of Kingston,9/1/2022,90162451,"3,784.93",NIGHTINGALE HOUSE,SOCIAL SERVICES RESIDENTIAL,Adult Social Care & Health,Independent Placements,A56006,0
Royal Borough of Kingston,9/1/2022,90162452,"3,911.09",NIGHTINGALE HOUSE,SOCIAL SERVICES RESIDENTIAL,Adult Social Care & Health,Independent Placements,A56006,0
Royal Borough of Kingston,9/1/2022,90162453,"3,911.09",NIGHTINGALE HOUSE,SOCIAL SERVICES RESIDENTIAL,Adult Social Care & Health,Independent Placements,A56006,0
Royal Borough of Kingston,9/1/2022,90167614,"2,800.84",NIGHTINGALE HOUSE,SOCIAL SERVICES RESIDENTIAL,Adult Social Care & Health,Independent Placements,A56006,0
Royal Borough of Kingston,9/1/2022,90167624,"3,562.29",NIGHTINGALE HOUSE,SOCIAL SERVICES RESIDENTIAL,Adult Social Care & Health,Independent Placements,A56006,0
Royal Borough of Kingston,9/1/2022,90167634,"3,339.64",NIGHTINGALE HOUSE,SOCIAL SERVICES RESIDENTIAL,Adult Social Care & Health,Independent Placements,A56006,0
Royal Borough of Kingston,9/1/2022,90167650,"3,784.93",NIGHTINGALE HOUSE,SOCIAL SERVICES RESIDENTIAL,Adult Social Care & Health,Independent Placements,A56006,0
Royal Borough of Kingston,9/1/2022,90167704,"3,339.64",NIGHTINGALE HOUSE,SOCIAL SERVICES RESIDENTIAL,Adult Social Care & Health,Independent Placements,A56006,0
Royal Borough of Kingston,9/1/2022,90167713,"4,230.21",NIGHTINGALE HOUSE,SOCIAL SERVICES RESIDENTIAL,Adult Social Care & Health,Independent Placements,A56006,0
Royal Borough of Kingston,9/1/2022,90167844,"5,796.21",NORSACA (TRADING) LTD,SOCIAL SERVICES - OTHER,Adult Social Care & Health,Independent Placements,A56006,0
Royal Borough of Kingston,9/1/2022,90167797,"6,901.93",OPTIMA CARE LIMITED,SOCIAL SERVICES RESIDENTIAL,Adult Social Care & Health,Independent Placements,A56006,0
Royal Borough of Kingston,9/1/2022,90169022,"2,042.36",PALM LODGE,SOCIAL SERVICES RESIDENTIAL,Adult Social Care & Health,Personal Budget - Third Party,A61019,0
Royal Borough of Kingston,9/1/2022,90169525,"1,928.57",PALM LODGE,SOCIAL SERVICES RESIDENTIAL,Adult Social Care & Health,Personal Budget - Third Party,A61019,0
Royal Borough of Kingston,9/1/2022,90169528,"2,042.36",PALM LODGE,SOCIAL SERVICES RESIDENTIAL,Adult Social Care & Health,Personal Budget - Third Party,A61019,0
Royal Borough of Kingston,9/1/2022,90169532,"1,996.97",PALM LODGE,SOCIAL SERVICES RESIDENTIAL,Adult Social Care & Health,Personal Budget - Third Party,A61019,0
Royal Borough of Kingston,9/1/2022,90169533,"1,225.41",PALM LODGE,SOCIAL SERVICES RESIDENTIAL,Adult Social Care & Health,Personal Budget - Third Party,A61019,0
Royal Borough of Kingston,9/1/2022,90169537,"2,042.36",PALM LODGE,SOCIAL SERVICES RESIDENTIAL,Adult Social Care & Health,Personal Budget - Third Party,A61019,0
Royal Borough of Kingston,9/1/2022,90169542,"1,225.41",PALM LODGE,SOCIAL SERVICES RESIDENTIAL,Adult Social Care & Health,Personal Budget - Third Party,A61019,0
Royal Borough of Kingston,9/1/2022,90169543,"2,042.36",PALM LODGE,SOCIAL SERVICES RESIDENTIAL,Adult Social Care & Health,Personal Budget - Third Party,A61019,0
Royal Borough of Kingston,9/1/2022,90169552,"1,225.41",PALM LODGE,SOCIAL SERVICES RESIDENTIAL,Adult Social Care & Health,Personal Budget - Third Party,A61019,0
Royal Borough of Kingston,9/1/2022,90169566,"1,180.03",PALM LODGE,SOCIAL SERVICES RESIDENTIAL,Adult Social Care & Health,Personal Budget - Third Party,A61019,0
Royal Borough of Kingston,9/1/2022,70030987,"2,565.30",PFP LEISURE,LEGAL & PROFESSIONAL SERVICES,Corporate & Communities,Property Repairs & Maintenance & Alterations - Responsive,A20011,0
Royal Borough of Kingston,9/1/2022,70030987,"3,157.30",PFP LEISURE,LEGAL & PROFESSIONAL SERVICES,Corporate & Communities,Property Repairs & Maintenance & Alterations - Responsive,A20011,0
Royal Borough of Kingston,9/1/2022,70030987,"7,103.91",PFP LEISURE,LEGAL & PROFESSIONAL SERVICES,Corporate & Communities,Property Repairs & Maintenance & Alterations - Responsive,A20011,0
Royal Borough of Kingston,9/1/2022,90169314,"13,699.46",Precious Homes,SOCIAL SERVICES-HOME CARE,Adult Social Care & Health,Personal Budget - Third Party,A61019,0
Royal Borough of Kingston,9/1/2022,90169383,684,PREMIER MINICAB SERVICES UK LTD,TAXI AND COACH HIRE,Adult Social Care & Health,Personal Budget - Third Party,A61019,0
Royal Borough of Kingston,9/1/2022,70031536,"2,253.70",QUARTZ PROPERTIES (LONDON) LTD,ACCOMMODATION BED & BREAKFAST,Place,Bed & Breakfast,A56000,0
Royal Borough of Kingston,9/1/2022,70031536,"1,546.90",QUARTZ PROPERTIES (LONDON) LTD,ACCOMMODATION BED & BREAKFAST,Place,Bed & Breakfast,A56000,0
Royal Borough of Kingston,9/1/2022,70031536,"1,147.00",QUARTZ PROPERTIES (LONDON) LTD,ACCOMMODATION BED & BREAKFAST,Place,Bed & Breakfast,A56000,0
Royal Borough of Kingston,9/1/2022,70031536,"1,147.00",QUARTZ PROPERTIES (LONDON) LTD,ACCOMMODATION BED & BREAKFAST,Place,Bed & Breakfast,A56000,0
Royal Borough of Kingston,9/1/2022,70031536,"1,302.00",QUARTZ PROPERTIES (LONDON) LTD,ACCOMMODATION BED & BREAKFAST,Place,Bed & Breakfast,A56000,0
Royal Borough of Kingston,9/1/2022,70031536,"1,922.00",QUARTZ PROPERTIES (LONDON) LTD,ACCOMMODATION BED & BREAKFAST,Place,Bed & Breakfast,A56000,0
Royal Borough of Kingston,9/1/2022,70031536,"1,209.00",QUARTZ PROPERTIES (LONDON) LTD,ACCOMMODATION BED & BREAKFAST,Place,Bed & Breakfast,A56000,0
Royal Borough of Kingston,9/1/2022,70031536,"1,147.00",QUARTZ PROPERTIES (LONDON) LTD,ACCOMMODATION BED & BREAKFAST,Place,Bed & Breakfast,A56000,0
Royal Borough of Kingston,9/1/2022,70031536,"1,147.00",QUARTZ PROPERTIES (LONDON) LTD,ACCOMMODATION BED & BREAKFAST,Place,Bed & Breakfast,A56000,0
Royal Borough of Kingston,9/1/2022,70031536,"1,147.00",QUARTZ PROPERTIES (LONDON) LTD,ACCOMMODATION BED & BREAKFAST,Place,Bed & Breakfast,A56000,0
Royal Borough of Kingston,9/1/2022,70031536,"1,147.00",QUARTZ PROPERTIES (LONDON) LTD,ACCOMMODATION BED & BREAKFAST,Place,Bed & Breakfast,A56000,0
Royal Borough of Kingston,9/1/2022,70031536,"1,546.90",QUARTZ PROPERTIES (LONDON) LTD,ACCOMMODATION BED & BREAKFAST,Place,Bed & Breakfast,A56000,0
Royal Borough of Kingston,9/1/2022,70031536,"1,929.75",QUARTZ PROPERTIES (LONDON) LTD,ACCOMMODATION BED & BREAKFAST,Place,Bed & Breakfast,A56000,0
Royal Borough of Kingston,9/1/2022,70031536,"1,674.00",QUARTZ PROPERTIES (LONDON) LTD,ACCOMMODATION BED & BREAKFAST,Place,Bed & Breakfast,A56000,0
Royal Borough of Kingston,9/1/2022,70031536,"1,929.75",QUARTZ PROPERTIES (LONDON) LTD,ACCOMMODATION BED & BREAKFAST,Place,Bed & Breakfast,A56000,0
Royal Borough of Kingston,9/1/2022,70031536,37,QUARTZ PROPERTIES (LONDON) LTD,ACCOMMODATION BED & BREAKFAST,Place,Bed & Breakfast,A56000,0
Royal Borough of Kingston,9/1/2022,70031536,"1,147.00",QUARTZ PROPERTIES (LONDON) LTD,ACCOMMODATION BED & BREAKFAST,Place,Bed & Breakfast,A56000,0
Royal Borough of Kingston,9/1/2022,70031536,"1,488.00",QUARTZ PROPERTIES (LONDON) LTD,ACCOMMODATION BED & BREAKFAST,Place,Bed & Breakfast,A56000,0
Royal Borough of Kingston,9/1/2022,70031536,"1,829.00",QUARTZ PROPERTIES (LONDON) LTD,ACCOMMODATION BED & BREAKFAST,Place,Bed & Breakfast,A56000,0
Royal Borough of Kingston,9/1/2022,70031536,"1,643.00",QUARTZ PROPERTIES (LONDON) LTD,ACCOMMODATION BED & BREAKFAST,Place,Bed & Breakfast,A56000,0
Royal Borough of Kingston,9/1/2022,70031536,"1,643.00",QUARTZ PROPERTIES (LONDON) LTD,ACCOMMODATION BED & BREAKFAST,Place,Bed & Breakfast,A56000,0
Royal Borough of Kingston,9/1/2022,70031536,"1,643.00",QUARTZ PROPERTIES (LONDON) LTD,ACCOMMODATION BED & BREAKFAST,Place,Bed & Breakfast,A56000,0
Royal Borough of Kingston,9/1/2022,70031536,"1,147.00",QUARTZ PROPERTIES (LONDON) LTD,ACCOMMODATION BED & BREAKFAST,Place,Bed & Breakfast,A56000,0
Royal Borough of Kingston,9/1/2022,70031536,"1,147.00",QUARTZ PROPERTIES (LONDON) LTD,ACCOMMODATION BED & BREAKFAST,Place,Bed & Breakfast,A56000,0
Royal Borough of Kingston,9/1/2022,70031536,"1,147.00",QUARTZ PROPERTIES (LONDON) LTD,ACCOMMODATION BED & BREAKFAST,Place,Bed & Breakfast,A56000,0
Royal Borough of Kingston,9/1/2022,70031536,"1,829.00",QUARTZ PROPERTIES (LONDON) LTD,ACCOMMODATION BED & BREAKFAST,Place,Bed & Breakfast,A56000,0
Royal Borough of Kingston,9/1/2022,70031536,"2,480.00",QUARTZ PROPERTIES (LONDON) LTD,ACCOMMODATION BED & BREAKFAST,Place,Bed & Breakfast,A56000,0
Royal Borough of Kingston,9/1/2022,70031536,"1,302.00",QUARTZ PROPERTIES (LONDON) LTD,ACCOMMODATION BED & BREAKFAST,Place,Bed & Breakfast,A56000,0
Royal Borough of Kingston,9/1/2022,70031536,"1,302.00",QUARTZ PROPERTIES (LONDON) LTD,ACCOMMODATION BED & BREAKFAST,Place,Bed & Breakfast,A56000,0
Royal Borough of Kingston,9/1/2022,70031536,"1,147.00",QUARTZ PROPERTIES (LONDON) LTD,ACCOMMODATION BED & BREAKFAST,Place,Bed & Breakfast,A56000,0
Royal Borough of Kingston,9/1/2022,70031536,"2,046.00",QUARTZ PROPERTIES (LONDON) LTD,ACCOMMODATION BED & BREAKFAST,Place,Bed & Breakfast,A56000,0
Royal Borough of Kingston,9/1/2022,70031536,"1,147.00",QUARTZ PROPERTIES (LONDON) LTD,ACCOMMODATION BED & BREAKFAST,Place,Bed & Breakfast,A56000,0
Royal Borough of Kingston,9/1/2022,70031536,"2,046.00",QUARTZ PROPERTIES (LONDON) LTD,ACCOMMODATION BED & BREAKFAST,Place,Bed & Breakfast,A56000,0
Royal Borough of Kingston,9/1/2022,70031536,"1,147.00",QUARTZ PROPERTIES (LONDON) LTD,ACCOMMODATION BED & BREAKFAST,Place,Bed & Breakfast,A56000,0
Royal Borough of Kingston,9/1/2022,70031536,"1,036.00",QUARTZ PROPERTIES (LONDON) LTD,ACCOMMODATION BED & BREAKFAST,Place,Bed & Breakfast,A56000,0
Royal Borough of Kingston,9/1/2022,90167652,"9,907.63",QUEEN ELIZABETHS FOUND FOR DISABLED,CHARITIES & VOLUNTARY ORGNS,Adult Social Care & Health,Independent Placements,A56006,0
Royal Borough of Kingston,9/1/2022,90167816,"8,176.89",QUEEN ELIZABETHS FOUND FOR DISABLED,CHARITIES & VOLUNTARY ORGNS,Adult Social Care & Health,Independent Placements,A56006,0
Royal Borough of Kingston,9/1/2022,90167851,"11,822.44",R M E T,SOCIAL SERVICES RESIDENTIAL,Adult Social Care & Health,Independent Placements,A56006,0
Royal Borough of Kingston,9/1/2022,90169275,"8,704.67",REAMCARE LTD,SOCIAL SERVICES RESIDENTIAL,Adult Social Care & Health,Personal Budget - Third Party,A61019,0
Royal Borough of Kingston,9/1/2022,90166661,788.57,REMARK ! LIMITED,INTERPRETERS,Adult Social Care & Health,Personal Budget - Third Party,A61019,0
Royal Borough of Kingston,9/1/2022,90166673,591.43,REMARK ! LIMITED,INTERPRETERS,Adult Social Care & Health,Personal Budget - Third Party,A61019,0
Royal Borough of Kingston,9/1/2022,70031807,"1,056.00",RESIDE HOUSING ASSOCIATION LTD,SOCIAL SERVICES - OTHER,Adult Social Care & Health,Personal Budget - Third Party,A61019,0
Royal Borough of Kingston,9/1/2022,90169538,"6,154.29",REVON HEALTHCARE LTD,SOCIAL SERVICES RESIDENTIAL,Adult Social Care & Health,Personal Budget - Third Party,A61019,0
Royal Borough of Kingston,9/1/2022,90169540,"7,379.70",REVON HEALTHCARE LTD,SOCIAL SERVICES RESIDENTIAL,Adult Social Care & Health,Personal Budget - Third Party,A61019,0
Royal Borough of Kingston,9/1/2022,90169546,"5,927.36",REVON HEALTHCARE LTD,SOCIAL SERVICES RESIDENTIAL,Adult Social Care & Health,Personal Budget - Third Party,A61019,0
Royal Borough of Kingston,9/1/2022,90167912,"23,238.60",Right Support Management Limited,SOCIAL SERVICES - DIRECT PAYMENTS,Adult Social Care & Health,Other Private Contractors - Third Party,A56080,0
Royal Borough of Kingston,9/1/2022,90167488,"3,406.46",Rodwell House Limited,SOCIAL SERVICES RESIDENTIAL,Adult Social Care & Health,Independent Placements,A56006,0
Royal Borough of Kingston,9/1/2022,90167594,"3,339.64",ROSCLARE RESIDENTIAL HOME,SOCIAL SERVICES RESIDENTIAL,Adult Social Care & Health,Independent Placements,A56006,0
Royal Borough of Kingston,9/1/2022,90167734,"3,339.64",ROSCLARE RESIDENTIAL HOME,SOCIAL SERVICES RESIDENTIAL,Adult Social Care & Health,Independent Placements,A56006,0
Royal Borough of Kingston,9/1/2022,90167736,"3,642.86",ROSCLARE RESIDENTIAL HOME,SOCIAL SERVICES RESIDENTIAL,Adult Social Care & Health,Independent Placements,A56006,0
Royal Borough of Kingston,9/1/2022,90167750,"3,857.14",ROSCLARE RESIDENTIAL HOME,SOCIAL SERVICES RESIDENTIAL,Adult Social Care & Health,Independent Placements,A56006,0
Royal Borough of Kingston,9/1/2022,90167783,"2,983.41",ROSCLARE RESIDENTIAL HOME,SOCIAL SERVICES RESIDENTIAL,Adult Social Care & Health,Independent Placements,A56006,0
Royal Borough of Kingston,9/1/2022,90167801,"9,093.21",SEEABILITY,CHARITIES & VOLUNTARY ORGNS,Adult Social Care & Health,Independent Placements,A56006,0
Royal Borough of Kingston,9/1/2022,90167812,"13,382.14",SEEABILITY,CHARITIES & VOLUNTARY ORGNS,Adult Social Care & Health,Independent Placements,A56006,0
Royal Borough of Kingston,9/1/2022,90167824,"10,718.19",SEEABILITY,CHARITIES & VOLUNTARY ORGNS,Adult Social Care & Health,Independent Placements,A56006,0
Royal Borough of Kingston,9/1/2022,90167853,"10,176.86",SEEABILITY,CHARITIES & VOLUNTARY ORGNS,Adult Social Care & Health,Independent Placements,A56006,0
Royal Borough of Kingston,9/1/2022,90167854,"9,848.57",SEEABILITY,CHARITIES & VOLUNTARY ORGNS,Adult Social Care & Health,Independent Placements,A56006,0
Royal Borough of Kingston,9/1/2022,90169180,"1,601.23",SEEABILITY,CHARITIES & VOLUNTARY ORGNS,Adult Social Care & Health,Personal Budget - Third Party,A61019,0
Royal Borough of Kingston,9/1/2022,90169202,"1,601.23",SEEABILITY,CHARITIES & VOLUNTARY ORGNS,Adult Social Care & Health,Personal Budget - Third Party,A61019,0
Royal Borough of Kingston,9/1/2022,90169215,"10,179.13",SEEABILITY,CHARITIES & VOLUNTARY ORGNS,Adult Social Care & Health,Personal Budget - Third Party,A61019,0
Royal Borough of Kingston,9/1/2022,70031012,"9,017.00",Shaker Designs,SUNDRY SUPPLIER - HOUSING,Capital Programme,Grants Given For Capital Purposes,C20004,0
Royal Borough of Kingston,9/1/2022,90166660,"2,345.74",SIGN HEALTH,SOCIAL SERVICES - OTHER,Adult Social Care & Health,Personal Budget - Third Party,A61019,0
Royal Borough of Kingston,9/1/2022,70031038,"1,937.50",Smartspace Properties,ACCOMMODATION BED & BREAKFAST,Place,Bed & Breakfast,A56000,0
Royal Borough of Kingston,9/1/2022,70031038,"1,488.00",Smartspace Properties,ACCOMMODATION BED & BREAKFAST,Place,Bed & Breakfast,A56000,0
Royal Borough of Kingston,9/1/2022,70031038,"1,426.00",Smartspace Properties,ACCOMMODATION BED & BREAKFAST,Place,Bed & Breakfast,A56000,0
Royal Borough of Kingston,9/1/2022,70031038,"1,488.00",Smartspace Properties,ACCOMMODATION BED & BREAKFAST,Place,Bed & Breakfast,A56000,0
Royal Borough of Kingston,9/1/2022,70031038,"2,294.00",Smartspace Properties,ACCOMMODATION BED & BREAKFAST,Place,Bed & Breakfast,A56000,0
Royal Borough of Kingston,9/1/2022,70031038,"1,984.00",Smartspace Properties,ACCOMMODATION BED & BREAKFAST,Place,Bed & Breakfast,A56000,0
Royal Borough of Kingston,9/1/2022,90167525,"3,339.64",SOUTH LONDON NURSING HOMES,SOCIAL SERVICES RESIDENTIAL,Adult Social Care & Health,Independent Placements,A56006,0
Royal Borough of Kingston,9/1/2022,90167531,"2,916.64",SOUTH LONDON NURSING HOMES,SOCIAL SERVICES RESIDENTIAL,Adult Social Care & Health,Independent Placements,A56006,0
Royal Borough of Kingston,9/1/2022,90167565,"3,535.71",SOUTH LONDON NURSING HOMES,SOCIAL SERVICES RESIDENTIAL,Adult Social Care & Health,Independent Placements,A56006,0
Royal Borough of Kingston,9/1/2022,90167536,"3,857.14",SPEIRS HOUSE,SOCIAL SERVICES RESIDENTIAL,Adult Social Care & Health,Independent Placements,A56006,0
Royal Borough of Kingston,9/1/2022,90167553,"3,784.93",SPEIRS HOUSE,SOCIAL SERVICES RESIDENTIAL,Adult Social Care & Health,Independent Placements,A56006,0
Royal Borough of Kingston,9/1/2022,90167557,"1,396.29",SPEIRS HOUSE,SOCIAL SERVICES RESIDENTIAL,Adult Social Care & Health,Independent Placements,A56006,0
Royal Borough of Kingston,9/1/2022,90167558,"7,214.14",SPEIRS HOUSE,SOCIAL SERVICES RESIDENTIAL,Adult Social Care & Health,Independent Placements,A56006,0
Royal Borough of Kingston,9/1/2022,90167559,"6,981.43",SPEIRS HOUSE,SOCIAL SERVICES RESIDENTIAL,Adult Social Care & Health,Independent Placements,A56006,0
Royal Borough of Kingston,9/1/2022,90167560,"7,214.14",SPEIRS HOUSE,SOCIAL SERVICES RESIDENTIAL,Adult Social Care & Health,Independent Placements,A56006,0
Royal Borough of Kingston,9/1/2022,90167561,"7,214.14",SPEIRS HOUSE,SOCIAL SERVICES RESIDENTIAL,Adult Social Care & Health,Independent Placements,A56006,0
Royal Borough of Kingston,9/1/2022,90167562,"6,981.43",SPEIRS HOUSE,SOCIAL SERVICES RESIDENTIAL,Adult Social Care & Health,Independent Placements,A56006,0
Royal Borough of Kingston,9/1/2022,90167787,"4,987.41",ST ANN'S  LIMITED,SOCIAL SERVICES RESIDENTIAL,Adult Social Care & Health,Independent Placements,A56006,0
Royal Borough of Kingston,9/1/2022,90167792,"4,546.59",ST ANN'S  LIMITED,SOCIAL SERVICES RESIDENTIAL,Adult Social Care & Health,Independent Placements,A56006,0
Royal Borough of Kingston,9/1/2022,90167796,"4,546.59",ST ANN'S  LIMITED,SOCIAL SERVICES RESIDENTIAL,Adult Social Care & Health,Independent Placements,A56006,0
Royal Borough of Kingston,9/1/2022,90167800,"4,546.59",ST ANN'S  LIMITED,SOCIAL SERVICES RESIDENTIAL,Adult Social Care & Health,Independent Placements,A56006,0
Royal Borough of Kingston,9/1/2022,90167803,"5,060.91",ST ANN'S  LIMITED,SOCIAL SERVICES RESIDENTIAL,Adult Social Care & Health,Independent Placements,A56006,0
Royal Borough of Kingston,9/1/2022,90167818,"4,546.59",ST ANN'S  LIMITED,SOCIAL SERVICES RESIDENTIAL,Adult Social Care & Health,Independent Placements,A56006,0
Royal Borough of Kingston,9/1/2022,90167827,"4,546.59",ST ANN'S  LIMITED,SOCIAL SERVICES RESIDENTIAL,Adult Social Care & Health,Independent Placements,A56006,0
Royal Borough of Kingston,9/1/2022,90167828,"4,987.41",ST ANN'S  LIMITED,SOCIAL SERVICES RESIDENTIAL,Adult Social Care & Health,Independent Placements,A56006,0
Royal Borough of Kingston,9/1/2022,90167832,"4,546.59",ST ANN'S  LIMITED,SOCIAL SERVICES RESIDENTIAL,Adult Social Care & Health,Independent Placements,A56006,0
Royal Borough of Kingston,9/1/2022,90167834,"4,987.41",ST ANN'S  LIMITED,SOCIAL SERVICES RESIDENTIAL,Adult Social Care & Health,Independent Placements,A56006,0
Royal Borough of Kingston,9/1/2022,90169626,"-3,133.52",ST ANN'S  LIMITED,SOCIAL SERVICES RESIDENTIAL,Adult Social Care & Health,Independent Placements,A56006,0
Royal Borough of Kingston,9/1/2022,90169627,"-6,938.51",ST ANN'S  LIMITED,SOCIAL SERVICES RESIDENTIAL,Adult Social Care & Health,Independent Placements,A56006,0
Royal Borough of Kingston,9/1/2022,90169628,"4,546.59",ST ANN'S  LIMITED,SOCIAL SERVICES RESIDENTIAL,Adult Social Care & Health,Independent Placements,A56006,0
Royal Borough of Kingston,9/1/2022,90167693,"4,898.14",ST AUGUSTINE'S HOME,SOCIAL SERVICES RESIDENTIAL,Adult Social Care & Health,Independent Placements,A56006,0
Royal Borough of Kingston,9/1/2022,90167843,"6,011.36",STALLCOMBE HOUSE,SOCIAL SERVICES - OTHER,Adult Social Care & Health,Independent Placements,A56006,0
Royal Borough of Kingston,9/1/2022,90169274,"8,373.69",STANMORE HOUSE,SOCIAL SERVICES RESIDENTIAL,Adult Social Care & Health,Personal Budget - Third Party,A61019,0
Royal Borough of Kingston,9/1/2022,70031892,"1,085.00",Stef and Philips,ACCOMMODATION BED & BREAKFAST,Place,Bed & Breakfast,A56000,0
Royal Borough of Kingston,9/1/2022,70031893,"2,015.00",Stef and Philips,ACCOMMODATION BED & BREAKFAST,Place,Bed & Breakfast,A56000,0
Royal Borough of Kingston,9/1/2022,70031894,"1,023.00",Stef and Philips,ACCOMMODATION BED & BREAKFAST,Place,Bed & Breakfast,A56000,0
Royal Borough of Kingston,9/1/2022,70031895,"1,470.00",Stef and Philips,ACCOMMODATION BED & BREAKFAST,Place,Bed & Breakfast,A56000,0
Royal Borough of Kingston,9/1/2022,70031896,"1,116.00",Stef and Philips,ACCOMMODATION BED & BREAKFAST,Place,Bed & Breakfast,A56000,0
Royal Borough of Kingston,9/1/2022,70031897,"1,085.00",Stef and Philips,ACCOMMODATION BED & BREAKFAST,Place,Bed & Breakfast,A56000,0
Royal Borough of Kingston,9/1/2022,70031898,"1,085.00",Stef and Philips,ACCOMMODATION BED & BREAKFAST,Place,Bed & Breakfast,A56000,0
Royal Borough of Kingston,9/1/2022,70031899,"1,116.00",Stef and Philips,ACCOMMODATION BED & BREAKFAST,Place,Bed & Breakfast,A56000,0
Royal Borough of Kingston,9/1/2022,70031899,"1,116.00",Stef and Philips,ACCOMMODATION BED & BREAKFAST,Place,Bed & Breakfast,A56000,0
Royal Borough of Kingston,9/1/2022,70031900,"1,116.00",Stef and Philips,ACCOMMODATION BED & BREAKFAST,Place,Bed & Breakfast,A56000,0
Royal Borough of Kingston,9/1/2022,70031900,"1,085.00",Stef and Philips,ACCOMMODATION BED & BREAKFAST,Place,Bed & Breakfast,A56000,0
Royal Borough of Kingston,9/1/2022,70031901,"1,085.00",Stef and Philips,ACCOMMODATION BED & BREAKFAST,Place,Bed & Breakfast,A56000,0
Royal Borough of Kingston,9/1/2022,70031901,"1,085.00",Stef and Philips,ACCOMMODATION BED & BREAKFAST,Place,Bed & Breakfast,A56000,0
Royal Borough of Kingston,9/1/2022,70031902,"1,085.00",Stef and Philips,ACCOMMODATION BED & BREAKFAST,Place,Bed & Breakfast,A56000,0
Royal Borough of Kingston,9/1/2022,70031902,"1,085.00",Stef and Philips,ACCOMMODATION BED & BREAKFAST,Place,Bed & Breakfast,A56000,0
Royal Borough of Kingston,9/1/2022,70031902,"1,085.00",Stef and Philips,ACCOMMODATION BED & BREAKFAST,Place,Bed & Breakfast,A56000,0
Royal Borough of Kingston,9/1/2022,70031903,756,Stef and Philips,ACCOMMODATION BED & BREAKFAST,Place,Bed & Breakfast,A56000,0
Royal Borough of Kingston,9/1/2022,70031903,"1,116.00",Stef and Philips,ACCOMMODATION BED & BREAKFAST,Place,Bed & Breakfast,A56000,0
Royal Borough of Kingston,9/1/2022,70031903,"1,116.00",Stef and Philips,ACCOMMODATION BED & BREAKFAST,Place,Bed & Breakfast,A56000,0
Royal Borough of Kingston,9/1/2022,70031904,"1,116.00",Stef and Philips,ACCOMMODATION BED & BREAKFAST,Place,Bed & Breakfast,A56000,0
Royal Borough of Kingston,9/1/2022,70031906,"1,023.00",Stef and Philips,ACCOMMODATION BED & BREAKFAST,Place,Bed & Breakfast,A56000,0
Royal Borough of Kingston,9/1/2022,70031907,"1,116.00",Stef and Philips,ACCOMMODATION BED & BREAKFAST,Place,Bed & Breakfast,A56000,0
Royal Borough of Kingston,9/1/2022,70031908,"1,023.00",Stef and Philips,ACCOMMODATION BED & BREAKFAST,Place,Bed & Breakfast,A56000,0
Royal Borough of Kingston,9/1/2022,70031908,"1,023.00",Stef and Philips,ACCOMMODATION BED & BREAKFAST,Place,Bed & Breakfast,A56000,0
Royal Borough of Kingston,9/1/2022,70031908,"1,023.00",Stef and Philips,ACCOMMODATION BED & BREAKFAST,Place,Bed & Breakfast,A56000,0
Royal Borough of Kingston,9/1/2022,70031908,"1,023.00",Stef and Philips,ACCOMMODATION BED & BREAKFAST,Place,Bed & Breakfast,A56000,0
Royal Borough of Kingston,9/1/2022,70031908,"1,023.00",Stef and Philips,ACCOMMODATION BED & BREAKFAST,Place,Bed & Breakfast,A56000,0
Royal Borough of Kingston,9/1/2022,70031909,"1,085.00",Stef and Philips,ACCOMMODATION BED & BREAKFAST,Place,Bed & Breakfast,A56000,0
Royal Borough of Kingston,9/1/2022,70031909,"1,085.00",Stef and Philips,ACCOMMODATION BED & BREAKFAST,Place,Bed & Breakfast,A56000,0
Royal Borough of Kingston,9/1/2022,70031909,"1,085.00",Stef and Philips,ACCOMMODATION BED & BREAKFAST,Place,Bed & Breakfast,A56000,0
Royal Borough of Kingston,9/1/2022,70031911,"1,116.00",Stef and Philips,ACCOMMODATION BED & BREAKFAST,Place,Bed & Breakfast,A56000,0
Royal Borough of Kingston,9/1/2022,70031911,"1,085.00",Stef and Philips,ACCOMMODATION BED & BREAKFAST,Place,Bed & Breakfast,A56000,0
Royal Borough of Kingston,9/1/2022,70031911,"1,705.00",Stef and Philips,ACCOMMODATION BED & BREAKFAST,Place,Bed & Breakfast,A56000,0
Royal Borough of Kingston,9/1/2022,90169188,"5,219.36",SUGARMAN HEALTH & WELLBEING LTD,TEMP STAFF & CONSULTANCY,Adult Social Care & Health,Personal Budget - Third Party,A61019,0
Royal Borough of Kingston,9/1/2022,90167459,"4,452.86",SURBITON CARE HOMES LTD,SOCIAL SERVICES DAY CARE,Adult Social Care & Health,Independent Placements,A56006,0
Royal Borough of Kingston,9/1/2022,90167500,"2,916.64",SURBITON CARE HOMES LTD,SOCIAL SERVICES DAY CARE,Adult Social Care & Health,Independent Placements,A56006,0
Royal Borough of Kingston,9/1/2022,90167509,"1,578.57",SURBITON CARE HOMES LTD,SOCIAL SERVICES DAY CARE,Adult Social Care & Health,Independent Placements,A56006,0
Royal Borough of Kingston,9/1/2022,90167510,"3,642.86",SURBITON CARE HOMES LTD,SOCIAL SERVICES DAY CARE,Adult Social Care & Health,Independent Placements,A56006,0
Royal Borough of Kingston,9/1/2022,90167543,"2,916.64",SURBITON CARE HOMES LTD,SOCIAL SERVICES DAY CARE,Adult Social Care & Health,Independent Placements,A56006,0
Royal Borough of Kingston,9/1/2022,90167545,"3,339.64",SURBITON CARE HOMES LTD,SOCIAL SERVICES DAY CARE,Adult Social Care & Health,Independent Placements,A56006,0
Royal Borough of Kingston,9/1/2022,90167566,"3,535.71",SURBITON CARE HOMES LTD,SOCIAL SERVICES DAY CARE,Adult Social Care & Health,Independent Placements,A56006,0
Royal Borough of Kingston,9/1/2022,90167681,"3,938.27",SURBITON CARE HOMES LTD,SOCIAL SERVICES DAY CARE,Adult Social Care & Health,Independent Placements,A56006,0
Royal Borough of Kingston,9/1/2022,90167775,"16,110.34",SURREY AND BORDERS PARTNERSHIP NHS FOUNDATION TRUST,SOCIAL SERVICES DAY CARE,Adult Social Care & Health,Independent Placements,A56006,0
Royal Borough of Kingston,9/1/2022,90167769,"3,214.29",SUSASH UK Ltd ,SOCIAL SERVICES RESIDENTIAL,Adult Social Care & Health,Independent Placements,A56006,0
Royal Borough of Kingston,9/1/2022,70031847,"6,084.07",SWEET TREE HOME CARE SERVICES LTD,SOCIAL SERVICES-HOME CARE,Adult Social Care & Health,Personal Budget - Third Party,A61019,0
Royal Borough of Kingston,9/1/2022,90167835,"15,478.07",THE DAVID LEWIS CENTRE,CHARITIES & VOLUNTARY ORGNS,Adult Social Care & Health,Independent Placements,A56006,0
Royal Borough of Kingston,9/1/2022,90167781,"4,781.79",THE FIRCROFT TRUST,CHARITIES & VOLUNTARY ORGNS,Adult Social Care & Health,Independent Placements,A56006,0
Royal Borough of Kingston,9/1/2022,90167782,"4,732.11",THE FIRCROFT TRUST,CHARITIES & VOLUNTARY ORGNS,Adult Social Care & Health,Independent Placements,A56006,0
Royal Borough of Kingston,9/1/2022,90167841,"5,228.40",THE FIRCROFT TRUST,CHARITIES & VOLUNTARY ORGNS,Adult Social Care & Health,Independent Placements,A56006,0
Royal Borough of Kingston,9/1/2022,90169156,"2,653.11",THE FIRCROFT TRUST,CHARITIES & VOLUNTARY ORGNS,Adult Social Care & Health,Personal Budget - Third Party,A61019,0
Royal Borough of Kingston,9/1/2022,90169220,"2,747.91",THE FIRCROFT TRUST,CHARITIES & VOLUNTARY ORGNS,Adult Social Care & Health,Personal Budget - Third Party,A61019,0
Royal Borough of Kingston,9/1/2022,90169270,"2,311.11",THE FIRCROFT TRUST,CHARITIES & VOLUNTARY ORGNS,Adult Social Care & Health,Personal Budget - Third Party,A61019,0
Royal Borough of Kingston,9/1/2022,90169292,"2,743.16",THE FIRCROFT TRUST,CHARITIES & VOLUNTARY ORGNS,Adult Social Care & Health,Personal Budget - Third Party,A61019,0
Royal Borough of Kingston,9/1/2022,90169299,"2,795.23",THE FIRCROFT TRUST,CHARITIES & VOLUNTARY ORGNS,Adult Social Care & Health,Personal Budget - Third Party,A61019,0
Royal Borough of Kingston,9/1/2022,90169319,"1,658.74",THE FIRCROFT TRUST,CHARITIES & VOLUNTARY ORGNS,Adult Social Care & Health,Personal Budget - Third Party,A61019,0
Royal Borough of Kingston,9/1/2022,90169338,"3,090.60",THE FIRCROFT TRUST,CHARITIES & VOLUNTARY ORGNS,Adult Social Care & Health,Personal Budget - Third Party,A61019,0
Royal Borough of Kingston,9/1/2022,90169551,"1,381.67",THE FIRCROFT TRUST,CHARITIES & VOLUNTARY ORGNS,Adult Social Care & Health,Personal Budget - Third Party,A61019,0
Royal Borough of Kingston,9/1/2022,90169607,-672.64,THE FIRCROFT TRUST,CHARITIES & VOLUNTARY ORGNS,Adult Social Care & Health,Financially Assessed Contributions clients � Non VAT,A92047,0
Royal Borough of Kingston,9/1/2022,90169608,-672.64,THE FIRCROFT TRUST,CHARITIES & VOLUNTARY ORGNS,Adult Social Care & Health,Financially Assessed Contributions clients � Non VAT,A92047,0
Royal Borough of Kingston,9/1/2022,90167820,"2,565.64",THE FRANCES TAYLOR FOUNDATION,SOCIAL SERVICES RESIDENTIAL,Adult Social Care & Health,Independent Placements,A56006,0
Royal Borough of Kingston,9/1/2022,90167913,837.04,THE FRANCES TAYLOR FOUNDATION,SOCIAL SERVICES RESIDENTIAL,Adult Social Care & Health,Other Private Contractors - Third Party,A56080,0
Royal Borough of Kingston,9/1/2022,90169055,"1,355.66",THE GRANGE CENTRE,SOCIAL SERVICES RESIDENTIAL,Adult Social Care & Health,Personal Budget - Third Party,A61019,0
Royal Borough of Kingston,9/1/2022,90169062,"1,016.74",THE GRANGE CENTRE,SOCIAL SERVICES RESIDENTIAL,Adult Social Care & Health,Personal Budget - Third Party,A61019,0
Royal Borough of Kingston,9/1/2022,90169091,"1,050.00",THE GRANGE CENTRE,SOCIAL SERVICES RESIDENTIAL,Adult Social Care & Health,Personal Budget - Third Party,A61019,0
Royal Borough of Kingston,9/1/2022,90169193,"3,643.24",THE GRANGE CENTRE,SOCIAL SERVICES RESIDENTIAL,Adult Social Care & Health,Personal Budget - Third Party,A61019,0
Royal Borough of Kingston,9/1/2022,90169268,"2,629.33",THE GRANGE CENTRE,SOCIAL SERVICES RESIDENTIAL,Adult Social Care & Health,Personal Budget - Third Party,A61019,0
Royal Borough of Kingston,9/1/2022,90167811,"4,408.33",THE MANOR CARE HOME (SUSSEX) LLP,SOCIAL SERVICES RESIDENTIAL,Adult Social Care & Health,Independent Placements,A56006,0
Royal Borough of Kingston,9/1/2022,90167790,"5,655.34",THE MEATH TRUST,SOCIAL SERVICES RESIDENTIAL,Adult Social Care & Health,Independent Placements,A56006,0
Royal Borough of Kingston,9/1/2022,90167798,"5,280.00",THE MEATH TRUST,SOCIAL SERVICES RESIDENTIAL,Adult Social Care & Health,Independent Placements,A56006,0
Royal Borough of Kingston,9/1/2022,90167916,"7,960.93",THE MEATH TRUST,SOCIAL SERVICES RESIDENTIAL,Adult Social Care & Health,Other Private Contractors - Third Party,A56080,0
Royal Borough of Kingston,9/1/2022,90167861,"5,343.43",The Partnership In Care Ltd,ACCOMMODATION - OTHER,Adult Social Care & Health,Independent Placements,A56006,0
Royal Borough of Kingston,9/1/2022,90167840,"10,766.40",THE PRIORY GROUP-NORTHERN OFFICE,SOCIAL SERVICES RESIDENTIAL,Adult Social Care & Health,Independent Placements,A56006,0
Royal Borough of Kingston,9/1/2022,90167492,"3,339.64",THE ROYAL STAR AND GARTER HOME,SOCIAL SERVICES RESIDENTIAL,Adult Social Care & Health,Independent Placements,A56006,0
Royal Borough of Kingston,9/1/2022,90167523,"3,406.46",THE ROYAL STAR AND GARTER HOME,SOCIAL SERVICES RESIDENTIAL,Adult Social Care & Health,Independent Placements,A56006,0
Royal Borough of Kingston,9/1/2022,90167549,"3,339.64",THE ROYAL STAR AND GARTER HOME,SOCIAL SERVICES RESIDENTIAL,Adult Social Care & Health,Independent Placements,A56006,0
Royal Borough of Kingston,9/1/2022,90167552,"3,406.46",THE ROYAL STAR AND GARTER HOME,SOCIAL SERVICES RESIDENTIAL,Adult Social Care & Health,Independent Placements,A56006,0
Royal Borough of Kingston,9/1/2022,90167554,"3,406.46",THE ROYAL STAR AND GARTER HOME,SOCIAL SERVICES RESIDENTIAL,Adult Social Care & Health,Independent Placements,A56006,0
Royal Borough of Kingston,9/1/2022,90167555,"3,339.64",THE ROYAL STAR AND GARTER HOME,SOCIAL SERVICES RESIDENTIAL,Adult Social Care & Health,Independent Placements,A56006,0
Royal Borough of Kingston,9/1/2022,90167563,"3,406.46",THE ROYAL STAR AND GARTER HOME,SOCIAL SERVICES RESIDENTIAL,Adult Social Care & Health,Independent Placements,A56006,0
Royal Borough of Kingston,9/1/2022,90167666,"3,406.46",THE ROYAL STAR AND GARTER HOME,SOCIAL SERVICES RESIDENTIAL,Adult Social Care & Health,Independent Placements,A56006,0
Royal Borough of Kingston,9/1/2022,90167685,"3,406.46",THE ROYAL STAR AND GARTER HOME,SOCIAL SERVICES RESIDENTIAL,Adult Social Care & Health,Independent Placements,A56006,0
Royal Borough of Kingston,9/1/2022,90167686,"3,406.46",THE ROYAL STAR AND GARTER HOME,SOCIAL SERVICES RESIDENTIAL,Adult Social Care & Health,Independent Placements,A56006,0
Royal Borough of Kingston,9/1/2022,90167503,"3,339.64",THE WHITE HOUSE NURSING HOME LTD,SOCIAL SERVICES RESIDENTIAL,Adult Social Care & Health,Independent Placements,A56006,0
Royal Borough of Kingston,9/1/2022,90167514,"3,740.40",THE WHITE HOUSE NURSING HOME LTD,SOCIAL SERVICES RESIDENTIAL,Adult Social Care & Health,Independent Placements,A56006,0
Royal Borough of Kingston,9/1/2022,90167516,"3,740.40",THE WHITE HOUSE NURSING HOME LTD,SOCIAL SERVICES RESIDENTIAL,Adult Social Care & Health,Independent Placements,A56006,0
Royal Borough of Kingston,9/1/2022,90167517,"3,740.40",THE WHITE HOUSE NURSING HOME LTD,SOCIAL SERVICES RESIDENTIAL,Adult Social Care & Health,Independent Placements,A56006,0
Royal Borough of Kingston,9/1/2022,90167526,"3,339.64",THE WHITE HOUSE NURSING HOME LTD,SOCIAL SERVICES RESIDENTIAL,Adult Social Care & Health,Independent Placements,A56006,0
Royal Borough of Kingston,9/1/2022,90167533,"4,898.14",THE WHITE HOUSE NURSING HOME LTD,SOCIAL SERVICES RESIDENTIAL,Adult Social Care & Health,Independent Placements,A56006,0
Royal Borough of Kingston,9/1/2022,90167540,"3,642.43",THE WHITE HOUSE NURSING HOME LTD,SOCIAL SERVICES RESIDENTIAL,Adult Social Care & Health,Independent Placements,A56006,0
Royal Borough of Kingston,9/1/2022,90167547,"3,600.00",THE WHITE HOUSE NURSING HOME LTD,SOCIAL SERVICES RESIDENTIAL,Adult Social Care & Health,Independent Placements,A56006,0
Royal Borough of Kingston,9/1/2022,90167564,"3,740.40",THE WHITE HOUSE NURSING HOME LTD,SOCIAL SERVICES RESIDENTIAL,Adult Social Care & Health,Independent Placements,A56006,0
Royal Borough of Kingston,9/1/2022,90167864,"3,562.29",THEANA LIMITED,SOCIAL SERVICES RESIDENTIAL,Adult Social Care & Health,Independent Placements,A56006,0
Royal Borough of Kingston,9/1/2022,90167587,"11,132.14",TITLEWORTH NEURO,SOCIAL SERVICES RESIDENTIAL,Adult Social Care & Health,Independent Placements,A56006,0
Royal Borough of Kingston,9/1/2022,90167602,"5,343.43",TREEMONT CARE LTD  ,SOCIAL SERVICES - OTHER,Adult Social Care & Health,Independent Placements,A56006,0
Royal Borough of Kingston,9/1/2022,90167611,"3,954.13",TREEMONT CARE LTD  ,SOCIAL SERVICES - OTHER,Adult Social Care & Health,Independent Placements,A56006,0
Royal Borough of Kingston,9/1/2022,90167623,"4,007.57",TREEMONT CARE LTD  ,SOCIAL SERVICES - OTHER,Adult Social Care & Health,Independent Placements,A56006,0
Royal Borough of Kingston,9/1/2022,90167627,"3,094.76",TREEMONT CARE LTD  ,SOCIAL SERVICES - OTHER,Adult Social Care & Health,Independent Placements,A56006,0
Royal Borough of Kingston,9/1/2022,90167706,"3,339.64",TREEMONT CARE LTD  ,SOCIAL SERVICES - OTHER,Adult Social Care & Health,Independent Placements,A56006,0
Royal Borough of Kingston,9/1/2022,90167731,"1,142.86",TREEMONT CARE LTD  ,SOCIAL SERVICES - OTHER,Adult Social Care & Health,Independent Placements,A56006,0
Royal Borough of Kingston,9/1/2022,90167732,"4,285.71",TREEMONT CARE LTD  ,SOCIAL SERVICES - OTHER,Adult Social Care & Health,Independent Placements,A56006,0
Royal Borough of Kingston,9/1/2022,90167745,"3,339.64",TREEMONT CARE LTD  ,SOCIAL SERVICES - OTHER,Adult Social Care & Health,Independent Placements,A56006,0
Royal Borough of Kingston,9/1/2022,90167746,"3,784.93",TREEMONT CARE LTD  ,SOCIAL SERVICES - OTHER,Adult Social Care & Health,Independent Placements,A56006,0
Royal Borough of Kingston,9/1/2022,90167747,"4,500.00",TREEMONT CARE LTD  ,SOCIAL SERVICES - OTHER,Adult Social Care & Health,Independent Placements,A56006,0
Royal Borough of Kingston,9/1/2022,90169014,810,TREEMONT CARE LTD  ,SOCIAL SERVICES - OTHER,Adult Social Care & Health,Personal Budget - Third Party,A61019,0
Royal Borough of Kingston,9/1/2022,70031340,"1,560.00",VM COURIERS,DELIVERY AND COURIER SERVICES,Corporate & Communities,Postage & Couriers,A45015,0
Royal Borough of Kingston,9/1/2022,90167808,"9,798.51",VOYAGE LTD,SOCIAL SERVICES RESIDENTIAL,Adult Social Care & Health,Independent Placements,A56006,0
Royal Borough of Kingston,9/1/2022,90169189,"7,535.23",VOYAGE LTD,SOCIAL SERVICES RESIDENTIAL,Adult Social Care & Health,Personal Budget - Third Party,A61019,0
Royal Borough of Kingston,9/1/2022,90169204,"7,535.23",VOYAGE LTD,SOCIAL SERVICES RESIDENTIAL,Adult Social Care & Health,Personal Budget - Third Party,A61019,0
Royal Borough of Kingston,9/1/2022,90169214,864.94,VOYAGE LTD,SOCIAL SERVICES RESIDENTIAL,Adult Social Care & Health,Personal Budget - Third Party,A61019,0
Royal Borough of Kingston,9/1/2022,90169221,"2,024.19",VOYAGE LTD,SOCIAL SERVICES RESIDENTIAL,Adult Social Care & Health,Personal Budget - Third Party,A61019,0
Royal Borough of Kingston,9/1/2022,90169300,"3,775.93",VOYAGE LTD,SOCIAL SERVICES RESIDENTIAL,Adult Social Care & Health,Personal Budget - Third Party,A61019,0
Royal Borough of Kingston,9/1/2022,90169328,"8,285.40",VOYAGE LTD,SOCIAL SERVICES RESIDENTIAL,Adult Social Care & Health,Personal Budget - Third Party,A61019,0
Royal Borough of Kingston,9/1/2022,90169335,"1,006.46",VOYAGE LTD,SOCIAL SERVICES RESIDENTIAL,Adult Social Care & Health,Personal Budget - Third Party,A61019,0
Royal Borough of Kingston,9/1/2022,90167779,"7,986.43",WELMEDE HOUSING ASSOCIATION LTD,ACCOMMODATION - OTHER,Adult Social Care & Health,Independent Placements,A56006,0
Royal Borough of Kingston,9/1/2022,90167780,"6,548.14",WELMEDE HOUSING ASSOCIATION LTD,ACCOMMODATION - OTHER,Adult Social Care & Health,Independent Placements,A56006,0
Royal Borough of Kingston,9/1/2022,90169143,"5,394.56",WELMEDE HOUSING ASSOCIATION LTD,ACCOMMODATION - OTHER,Adult Social Care & Health,Personal Budget - Third Party,A61019,0
Royal Borough of Kingston,9/1/2022,90169149,"4,835.40",WELMEDE HOUSING ASSOCIATION LTD,ACCOMMODATION - OTHER,Adult Social Care & Health,Personal Budget - Third Party,A61019,0
Royal Borough of Kingston,9/1/2022,90169158,"5,394.56",WELMEDE HOUSING ASSOCIATION LTD,ACCOMMODATION - OTHER,Adult Social Care & Health,Personal Budget - Third Party,A61019,0
Royal Borough of Kingston,9/1/2022,90169163,"4,835.40",WELMEDE HOUSING ASSOCIATION LTD,ACCOMMODATION - OTHER,Adult Social Care & Health,Personal Budget - Third Party,A61019,0
Royal Borough of Kingston,9/1/2022,90169164,"1,960.67",WELMEDE HOUSING ASSOCIATION LTD,ACCOMMODATION - OTHER,Adult Social Care & Health,Personal Budget - Third Party,A61019,0
Royal Borough of Kingston,9/1/2022,90169165,"5,419.97",WELMEDE HOUSING ASSOCIATION LTD,ACCOMMODATION - OTHER,Adult Social Care & Health,Personal Budget - Third Party,A61019,0
Royal Borough of Kingston,9/1/2022,90169175,"4,312.54",WELMEDE HOUSING ASSOCIATION LTD,ACCOMMODATION - OTHER,Adult Social Care & Health,Personal Budget - Third Party,A61019,0
Royal Borough of Kingston,9/1/2022,90169184,"5,706.51",WELMEDE HOUSING ASSOCIATION LTD,ACCOMMODATION - OTHER,Adult Social Care & Health,Personal Budget - Third Party,A61019,0
Royal Borough of Kingston,9/1/2022,90169185,"5,419.97",WELMEDE HOUSING ASSOCIATION LTD,ACCOMMODATION - OTHER,Adult Social Care & Health,Personal Budget - Third Party,A61019,0
Royal Borough of Kingston,9/1/2022,90169190,"2,876.74",WELMEDE HOUSING ASSOCIATION LTD,ACCOMMODATION - OTHER,Adult Social Care & Health,Personal Budget - Third Party,A61019,0
Royal Borough of Kingston,9/1/2022,90169209,"1,884.77",WELMEDE HOUSING ASSOCIATION LTD,ACCOMMODATION - OTHER,Adult Social Care & Health,Personal Budget - Third Party,A61019,0
Royal Borough of Kingston,9/1/2022,90169217,"2,360.06",WELMEDE HOUSING ASSOCIATION LTD,ACCOMMODATION - OTHER,Adult Social Care & Health,Personal Budget - Third Party,A61019,0
Royal Borough of Kingston,9/1/2022,90169218,"4,050.43",WELMEDE HOUSING ASSOCIATION LTD,ACCOMMODATION - OTHER,Adult Social Care & Health,Personal Budget - Third Party,A61019,0
Royal Borough of Kingston,9/1/2022,90169219,"13,806.34",WELMEDE HOUSING ASSOCIATION LTD,ACCOMMODATION - OTHER,Adult Social Care & Health,Personal Budget - Third Party,A61019,0
Royal Borough of Kingston,9/1/2022,90169226,"4,835.40",WELMEDE HOUSING ASSOCIATION LTD,ACCOMMODATION - OTHER,Adult Social Care & Health,Personal Budget - Third Party,A61019,0
Royal Borough of Kingston,9/1/2022,90169227,"4,312.54",WELMEDE HOUSING ASSOCIATION LTD,ACCOMMODATION - OTHER,Adult Social Care & Health,Personal Budget - Third Party,A61019,0
Royal Borough of Kingston,9/1/2022,90169269,"6,053.36",WELMEDE HOUSING ASSOCIATION LTD,ACCOMMODATION - OTHER,Adult Social Care & Health,Personal Budget - Third Party,A61019,0
Royal Borough of Kingston,9/1/2022,90169271,"1,995.77",WELMEDE HOUSING ASSOCIATION LTD,ACCOMMODATION - OTHER,Adult Social Care & Health,Personal Budget - Third Party,A61019,0
Royal Borough of Kingston,9/1/2022,90169288,"5,419.97",WELMEDE HOUSING ASSOCIATION LTD,ACCOMMODATION - OTHER,Adult Social Care & Health,Personal Budget - Third Party,A61019,0
Royal Borough of Kingston,9/1/2022,90169312,"4,312.54",WELMEDE HOUSING ASSOCIATION LTD,ACCOMMODATION - OTHER,Adult Social Care & Health,Personal Budget - Third Party,A61019,0
Royal Borough of Kingston,9/1/2022,90169315,"5,394.56",WELMEDE HOUSING ASSOCIATION LTD,ACCOMMODATION - OTHER,Adult Social Care & Health,Personal Budget - Third Party,A61019,0
Royal Borough of Kingston,9/1/2022,90169321,"4,312.54",WELMEDE HOUSING ASSOCIATION LTD,ACCOMMODATION - OTHER,Adult Social Care & Health,Personal Budget - Third Party,A61019,0
Royal Borough of Kingston,9/1/2022,90169340,"1,652.06",WELMEDE HOUSING ASSOCIATION LTD,ACCOMMODATION - OTHER,Adult Social Care & Health,Personal Budget - Third Party,A61019,0
Royal Borough of Kingston,9/1/2022,90169354,"4,312.54",WELMEDE HOUSING ASSOCIATION LTD,ACCOMMODATION - OTHER,Adult Social Care & Health,Personal Budget - Third Party,A61019,0
Royal Borough of Kingston,9/1/2022,90169606,-672.64,WELMEDE HOUSING ASSOCIATION LTD,ACCOMMODATION - OTHER,Adult Social Care & Health,Financially Assessed Contributions clients � Non VAT,A92047,0
Royal Borough of Kingston,9/1/2022,90167460,"2,270.96",WILLOW GRANGE CARE LTD,SOCIAL SERVICES RESIDENTIAL,Adult Social Care & Health,Independent Placements,A56006,0
Royal Borough of Kingston,9/1/2022,90167461,"4,230.21",WILLOW GRANGE CARE LTD,SOCIAL SERVICES RESIDENTIAL,Adult Social Care & Health,Independent Placements,A56006,0
Royal Borough of Kingston,9/1/2022,90167462,"3,784.93",WILLOW GRANGE CARE LTD,SOCIAL SERVICES RESIDENTIAL,Adult Social Care & Health,Independent Placements,A56006,0
Royal Borough of Kingston,9/1/2022,90167468,"3,428.57",WILLOW GRANGE CARE LTD,SOCIAL SERVICES RESIDENTIAL,Adult Social Care & Health,Independent Placements,A56006,0
Royal Borough of Kingston,9/1/2022,90167478,"3,562.29",WILLOW GRANGE CARE LTD,SOCIAL SERVICES RESIDENTIAL,Adult Social Care & Health,Independent Placements,A56006,0
Royal Borough of Kingston,9/1/2022,90167479,750,WILLOW GRANGE CARE LTD,SOCIAL SERVICES RESIDENTIAL,Adult Social Care & Health,Independent Placements,A56006,0
Royal Borough of Kingston,9/1/2022,90167480,964.29,WILLOW GRANGE CARE LTD,SOCIAL SERVICES RESIDENTIAL,Adult Social Care & Health,Independent Placements,A56006,0
Royal Borough of Kingston,9/1/2022,90167481,"2,250.00",WILLOW GRANGE CARE LTD,SOCIAL SERVICES RESIDENTIAL,Adult Social Care & Health,Independent Placements,A56006,0
Royal Borough of Kingston,9/1/2022,90167521,"2,172.99",WILLOW GRANGE CARE LTD,SOCIAL SERVICES RESIDENTIAL,Adult Social Care & Health,Independent Placements,A56006,0
Royal Borough of Kingston,9/1/2022,90167538,"2,916.64",WILLOW GRANGE CARE LTD,SOCIAL SERVICES RESIDENTIAL,Adult Social Care & Health,Independent Placements,A56006,0
Royal Borough of Kingston,9/1/2022,90167542,"3,562.29",WILLOW GRANGE CARE LTD,SOCIAL SERVICES RESIDENTIAL,Adult Social Care & Health,Independent Placements,A56006,0
Royal Borough of Kingston,9/1/2022,90167544,"3,179.36",WILLOW GRANGE CARE LTD,SOCIAL SERVICES RESIDENTIAL,Adult Social Care & Health,Independent Placements,A56006,0
Royal Borough of Kingston,9/1/2022,90167551,"3,339.64",WILLOW GRANGE CARE LTD,SOCIAL SERVICES RESIDENTIAL,Adult Social Care & Health,Independent Placements,A56006,0
Royal Borough of Kingston,9/1/2022,90167572,"3,784.93",WILLOW GRANGE CARE LTD,SOCIAL SERVICES RESIDENTIAL,Adult Social Care & Health,Independent Placements,A56006,0
Royal Borough of Kingston,9/1/2022,90167582,"3,784.93",WILLOW GRANGE CARE LTD,SOCIAL SERVICES RESIDENTIAL,Adult Social Care & Health,Independent Placements,A56006,0
Royal Borough of Kingston,9/1/2022,90167583,"4,007.57",WILLOW GRANGE CARE LTD,SOCIAL SERVICES RESIDENTIAL,Adult Social Care & Health,Independent Placements,A56006,0
Royal Borough of Kingston,9/1/2022,90167653,"3,179.36",WILLOW GRANGE CARE LTD,SOCIAL SERVICES RESIDENTIAL,Adult Social Care & Health,Independent Placements,A56006,0
Royal Borough of Kingston,9/1/2022,90167678,"2,916.64",WILLOW GRANGE CARE LTD,SOCIAL SERVICES RESIDENTIAL,Adult Social Care & Health,Independent Placements,A56006,0
Royal Borough of Kingston,9/1/2022,90167687,"3,731.49",WILLOW GRANGE CARE LTD,SOCIAL SERVICES RESIDENTIAL,Adult Social Care & Health,Independent Placements,A56006,0
Royal Borough of Kingston,9/1/2022,90167755,"2,357.14",WILLOW GRANGE CARE LTD,SOCIAL SERVICES RESIDENTIAL,Adult Social Care & Health,Independent Placements,A56006,0
Royal Borough of Kingston,9/1/2022,90167774,"3,988.37",WILLOW GRANGE CARE LTD,SOCIAL SERVICES RESIDENTIAL,Adult Social Care & Health,Independent Placements,A56006,0
Royal Borough of Kingston,9/1/2022,90167776,"3,991.20",WILLOW GRANGE CARE LTD,SOCIAL SERVICES RESIDENTIAL,Adult Social Care & Health,Independent Placements,A56006,0
Royal Borough of Kingston,9/1/2022,90167896,"2,250.00",WILLOW GRANGE CARE LTD,SOCIAL SERVICES RESIDENTIAL,Adult Social Care & Health,Other Private Contractors - Third Party,A56080,0
Royal Borough of Kingston,9/1/2022,90167897,750,WILLOW GRANGE CARE LTD,SOCIAL SERVICES RESIDENTIAL,Adult Social Care & Health,Other Private Contractors - Third Party,A56080,0
Royal Borough of Kingston,9/1/2022,90167530,"3,517.76",Willow Lodge Nursing Home Ltd,SOCIAL SERVICES RESIDENTIAL,Adult Social Care & Health,Independent Placements,A56006,0
Royal Borough of Kingston,9/1/2022,70031025,"1,577.90",Wise Move Estate Agents LTD,ACCOMMODATION BED & BREAKFAST,Place,Bed & Breakfast,A56000,0
Royal Borough of Kingston,9/1/2022,70031026,"2,597.18",Wise Move Estate Agents LTD,ACCOMMODATION BED & BREAKFAST,Place,Bed & Breakfast,A56000,0
Royal Borough of Kingston,9/1/2022,70031028,"2,022.75",Wise Move Estate Agents LTD,ACCOMMODATION BED & BREAKFAST,Place,Bed & Breakfast,A56000,0
Royal Borough of Kingston,9/1/2022,70031029,"2,022.75",Wise Move Estate Agents LTD,ACCOMMODATION BED & BREAKFAST,Place,Bed & Breakfast,A56000,0
Royal Borough of Kingston,9/1/2022,70031030,"1,922.00",Wise Move Estate Agents LTD,ACCOMMODATION BED & BREAKFAST,Place,Bed & Breakfast,A56000,0
Royal Borough of Kingston,9/1/2022,70031031,"2,022.75",Wise Move Estate Agents LTD,ACCOMMODATION BED & BREAKFAST,Place,Bed & Breakfast,A56000,0
Royal Borough of Kingston,9/1/2022,70031032,"2,022.75",Wise Move Estate Agents LTD,ACCOMMODATION BED & BREAKFAST,Place,Bed & Breakfast,A56000,0
Royal Borough of Kingston,9/1/2022,70031033,"1,922.00",Wise Move Estate Agents LTD,ACCOMMODATION BED & BREAKFAST,Place,Bed & Breakfast,A56000,0
Royal Borough of Kingston,9/1/2022,70031034,"2,346.70",Wise Move Estate Agents LTD,ACCOMMODATION BED & BREAKFAST,Place,Bed & Breakfast,A56000,0
Royal Borough of Kingston,9/1/2022,70031035,"1,922.00",Wise Move Estate Agents LTD,ACCOMMODATION BED & BREAKFAST,Place,Bed & Breakfast,A56000,0
Royal Borough of Kingston,9/1/2022,70031036,"2,261.14",Wise Move Estate Agents LTD,ACCOMMODATION BED & BREAKFAST,Place,Bed & Breakfast,A56000,0
Royal Borough of Kingston,9/1/2022,70031037,"1,767.00",Wise Move Estate Agents LTD,ACCOMMODATION BED & BREAKFAST,Place,Bed & Breakfast,A56000,0
Royal Borough of Kingston,9/1/2022,70032022,"2,387.00",Wise Move Estate Agents LTD,ACCOMMODATION BED & BREAKFAST,Place,Bed & Breakfast,A56000,0
Royal Borough of Kingston,9/1/2022,90169380,520.67,ZEDCARZ LTD,TAXI AND COACH HIRE,Adult Social Care & Health,Personal Budget - Third Party,A61019,0
Royal Borough of Kingston,9/1/2022,90169392,618.13,ZEDCARZ LTD,TAXI AND COACH HIRE,Adult Social Care & Health,Personal Budget - Third Party,A61019,0
Royal Borough of Kingston,9/1/2022,90169393,866.57,ZEDCARZ LTD,TAXI AND COACH HIRE,Adult Social Care & Health,Personal Budget - Third Party,A61019,0
Royal Borough of Kingston,9/2/2022,70030981,"2,000.00",Algiz Technology Limited,BUSINESS & COMPUTER SYSTEMS,Corporate & Communities,Consultancy Services - Other,A44065,0
Royal Borough of Kingston,9/2/2022,70030904,"1,200.00",AP RENTAL INC LTD,LANDLORDS,Adult Social Care & Health,Housing Benefit - Rent Allowances -Private Tenants Only,A62009,0
Royal Borough of Kingston,9/2/2022,70030905,"1,035.00",AP RENTAL INC LTD,LANDLORDS,Adult Social Care & Health,Housing Benefit - Rent Allowances -Private Tenants Only,A62009,0
Royal Borough of Kingston,9/2/2022,70030906,"1,085.00",AP RENTAL INC LTD,LANDLORDS,Adult Social Care & Health,Housing Benefit - Rent Allowances -Private Tenants Only,A62009,0
Royal Borough of Kingston,9/2/2022,70030907,"1,260.00",AP RENTAL INC LTD,LANDLORDS,Adult Social Care & Health,Housing Benefit - Rent Allowances -Private Tenants Only,A62009,0
Royal Borough of Kingston,9/2/2022,70030908,"1,235.00",AP RENTAL INC LTD,LANDLORDS,Adult Social Care & Health,Housing Benefit - Rent Allowances -Private Tenants Only,A62009,0
Royal Borough of Kingston,9/2/2022,70030909,"1,235.00",AP RENTAL INC LTD,LANDLORDS,Adult Social Care & Health,Housing Benefit - Rent Allowances -Private Tenants Only,A62009,0
Royal Borough of Kingston,9/2/2022,70031226,"1,256.00",AVICENNA PSYCHIATRY,SOCIAL SERVICES - OTHER,Adult Social Care & Health,Other Private Contractors - Third Party,A56080,0
Royal Borough of Kingston,9/2/2022,70031830,"3,375.61",BRITISH GAS,UTILITIES,Place,Electricity,A21000,0
Royal Borough of Kingston,9/2/2022,70030911,"4,000.00",CASTLE RESIDENTIAL PROPERTIES LTD,PLS LANDLORDS,Place,Housing Incentives,A62025,0
Royal Borough of Kingston,9/2/2022,70030910,950,DEXTERS LIMITED,LANDLORDS,Adult Social Care & Health,Building Rents,A22005,0
Royal Borough of Kingston,9/2/2022,70030982,"26,908.02",F.M. CONWAY LTD,CONSTRUCTION INDUSTRY,Capital Programme,Infrastructure Assets - Project Management,C12000,0
Royal Borough of Kingston,9/2/2022,70031009,"1,127.13",INDEPENDENT LIVING LTD,SOCIAL SERVICES - OTHER,Capital Programme,Grants Given For Capital Purposes,C20004,0
Royal Borough of Kingston,9/2/2022,70030980,"13,615.26",ITC Concepts Limited,CONSTRUCTION INDUSTRY,Place,Miscellaneous Expenses,A49000,0
Royal Borough of Kingston,9/2/2022,70031294,"7,100.00",REDACTED - PERSONAL DATA,SUNDRY SUPPLIER - HOUSING,Capital Programme,Buildings - Project Management,C14003,0
Royal Borough of Kingston,9/2/2022,70031318,"7,100.00",REDACTED - PERSONAL DATA,SUNDRY SUPPLIER - HOUSING,Capital Programme,Buildings - Project Management,C14003,0
Royal Borough of Kingston,9/2/2022,70030935,"1,321.00",REDACTED - PERSONAL DATA,SUNDRY SUPPLIER - HOUSING,Place,Prevention Of Homelessness,A44141,0
Royal Borough of Kingston,9/2/2022,70030936,"2,800.00",REDACTED - PERSONAL DATA,SUNDRY SUPPLIER - HOUSING,Place,Housing Incentives,A62025,0
Royal Borough of Kingston,9/2/2022,70031316,"7,100.00",REDACTED - PERSONAL DATA,SUNDRY SUPPLIER - HOUSING,Capital Programme,Buildings - Project Management,C14003,0
Royal Borough of Kingston,9/2/2022,90162074,"1,155.00",R J LIFT SERVICES LTD,CONSTRUCTION INDUSTRY,Housing Revenue Account,Lift Servicing And Repairs,A20006,0
Royal Borough of Kingston,9/2/2022,70030960,"20,481.48",SIRSI DYNIX,BUSINESS & COMPUTER SYSTEMS,Corporate & Communities,IT Software Maintenance,A45045,0
Royal Borough of Kingston,9/4/2022,70031665,"5,000.00",SI Research Limited,CHARITIES & VOLUNTARY ORGNS,Housing Revenue Account,Consultancy Services - Other,A44065,0
Royal Borough of Kingston,9/5/2022,90165889,796.26,ALPENBEST LTD,SOCIAL SERVICES DAY CARE,Adult Social Care & Health,Homecare - new framework,A56127,0
Royal Borough of Kingston,9/5/2022,90165915,612.51,ALPENBEST LTD,SOCIAL SERVICES DAY CARE,Adult Social Care & Health,Homecare - new framework,A56127,0
Royal Borough of Kingston,9/5/2022,90165918,560,ALPENBEST LTD,SOCIAL SERVICES DAY CARE,Adult Social Care & Health,Homecare - new framework,A56127,0
Royal Borough of Kingston,9/5/2022,90165936,507.5,ALPENBEST LTD,SOCIAL SERVICES DAY CARE,Adult Social Care & Health,Homecare - new framework,A56127,0
Royal Borough of Kingston,9/5/2022,90165937,507.5,ALPENBEST LTD,SOCIAL SERVICES DAY CARE,Adult Social Care & Health,Homecare - new framework,A56127,0
Royal Borough of Kingston,9/5/2022,90165941,"1,470.01",ALPENBEST LTD,SOCIAL SERVICES DAY CARE,Adult Social Care & Health,Homecare - new framework,A56127,0
Royal Borough of Kingston,9/5/2022,90165958,612.5,ALPENBEST LTD,SOCIAL SERVICES DAY CARE,Adult Social Care & Health,Homecare - new framework,A56127,0
Royal Borough of Kingston,9/5/2022,90165983,551.25,ALPENBEST LTD,SOCIAL SERVICES DAY CARE,Adult Social Care & Health,Homecare - new framework,A56127,0
Royal Borough of Kingston,9/5/2022,90166013,735.01,ALPENBEST LTD,SOCIAL SERVICES DAY CARE,Adult Social Care & Health,Homecare - new framework,A56127,0
Royal Borough of Kingston,9/5/2022,90166048,551.25,ALPENBEST LTD,SOCIAL SERVICES DAY CARE,Adult Social Care & Health,Homecare - new framework,A56127,0
Royal Borough of Kingston,9/5/2022,90166093,551.25,ALPENBEST LTD,SOCIAL SERVICES DAY CARE,Adult Social Care & Health,Homecare - new framework,A56127,0
Royal Borough of Kingston,9/5/2022,90166103,577.5,ALPENBEST LTD,SOCIAL SERVICES DAY CARE,Adult Social Care & Health,Homecare - new framework,A56127,0
Royal Borough of Kingston,9/5/2022,90166195,630,ALPENBEST LTD,SOCIAL SERVICES DAY CARE,Adult Social Care & Health,Homecare - new framework,A56127,0
Royal Borough of Kingston,9/5/2022,90166196,551.25,ALPENBEST LTD,SOCIAL SERVICES DAY CARE,Adult Social Care & Health,Homecare - new framework,A56127,0
Royal Borough of Kingston,9/5/2022,90166203,568.75,ALPENBEST LTD,SOCIAL SERVICES DAY CARE,Adult Social Care & Health,Homecare - new framework,A56127,0
Royal Borough of Kingston,9/5/2022,90166206,551.25,ALPENBEST LTD,SOCIAL SERVICES DAY CARE,Adult Social Care & Health,Homecare - new framework,A56127,0
Royal Borough of Kingston,9/5/2022,90166278,551.25,ALPENBEST LTD,SOCIAL SERVICES DAY CARE,Adult Social Care & Health,Homecare - new framework,A56127,0
Royal Borough of Kingston,9/5/2022,90166356,551.25,ALPENBEST LTD,SOCIAL SERVICES DAY CARE,Adult Social Care & Health,Homecare - new framework,A56127,0
Royal Borough of Kingston,9/5/2022,90166360,735.01,ALPENBEST LTD,SOCIAL SERVICES DAY CARE,Adult Social Care & Health,Homecare - new framework,A56127,0
Royal Borough of Kingston,9/5/2022,90166400,525,ALPENBEST LTD,SOCIAL SERVICES DAY CARE,Adult Social Care & Health,Homecare - new framework,A56127,0
Royal Borough of Kingston,9/5/2022,90166402,603.75,ALPENBEST LTD,SOCIAL SERVICES DAY CARE,Adult Social Care & Health,Homecare - new framework,A56127,0
Royal Borough of Kingston,9/5/2022,90166411,612.5,ALPENBEST LTD,SOCIAL SERVICES DAY CARE,Adult Social Care & Health,Homecare - new framework,A56127,0
Royal Borough of Kingston,9/5/2022,90166418,726.26,ALPENBEST LTD,SOCIAL SERVICES DAY CARE,Adult Social Care & Health,Homecare - new framework,A56127,0
Royal Borough of Kingston,9/5/2022,90166435,612.5,ALPENBEST LTD,SOCIAL SERVICES DAY CARE,Adult Social Care & Health,Homecare - new framework,A56127,0
Royal Borough of Kingston,9/5/2022,90166593,670.95,ALPENBEST LTD,SOCIAL SERVICES DAY CARE,Adult Social Care & Health,Personal Budget - Third Party,A61019,0
Royal Borough of Kingston,9/5/2022,90166610,612.5,ALPENBEST LTD,SOCIAL SERVICES DAY CARE,Adult Social Care & Health,Personal Budget - Third Party,A61019,0
Royal Borough of Kingston,9/5/2022,90166631,745.5,ALPENBEST LTD,SOCIAL SERVICES DAY CARE,Adult Social Care & Health,Personal Budget - Third Party,A61019,0
Royal Borough of Kingston,9/5/2022,90168957,"1,372.00",ALPENBEST LTD,SOCIAL SERVICES DAY CARE,Adult Social Care & Health,Personal Budget - Third Party,A61019,0
Royal Borough of Kingston,9/5/2022,90168958,686,ALPENBEST LTD,SOCIAL SERVICES DAY CARE,Adult Social Care & Health,Personal Budget - Third Party,A61019,0
Royal Borough of Kingston,9/5/2022,90166598,603.63,BLUE ARROW CARE LTD,SOCIAL SERVICES-HOME CARE,Adult Social Care & Health,Personal Budget - Third Party,A61019,0
Royal Borough of Kingston,9/5/2022,90166601,543.26,BLUE ARROW CARE LTD,SOCIAL SERVICES-HOME CARE,Adult Social Care & Health,Personal Budget - Third Party,A61019,0
Royal Borough of Kingston,9/5/2022,90166612,543.26,BLUE ARROW CARE LTD,SOCIAL SERVICES-HOME CARE,Adult Social Care & Health,Personal Budget - Third Party,A61019,0
Royal Borough of Kingston,9/5/2022,90166625,543.26,BLUE ARROW CARE LTD,SOCIAL SERVICES-HOME CARE,Adult Social Care & Health,Personal Budget - Third Party,A61019,0
Royal Borough of Kingston,9/5/2022,90168217,551.25,Bright Star Care Service Ltd,SOCIAL SERVICES - OTHER,Adult Social Care & Health,Homecare - new framework,A56127,0
Royal Borough of Kingston,9/5/2022,90168258,551.25,Bright Star Care Service Ltd,SOCIAL SERVICES - OTHER,Adult Social Care & Health,Homecare - new framework,A56127,0
Royal Borough of Kingston,9/5/2022,90168290,"1,100.73",Bright Star Care Service Ltd,SOCIAL SERVICES - OTHER,Adult Social Care & Health,Homecare - new framework,A56127,0
Royal Borough of Kingston,9/5/2022,90169487,612.5,Bright Star Care Service Ltd,SOCIAL SERVICES - OTHER,Adult Social Care & Health,Personal Budget - Third Party,A61019,0
Royal Borough of Kingston,9/5/2022,70031468,"98,727.63",Capri Mechanical Services Limited,CONSTRUCTION INDUSTRY,Capital Programme,Buildings - Design & Planning,C14001,0
Royal Borough of Kingston,9/5/2022,90166005,735.01,CARLCARE LTD,SOCIAL SERVICES-HOME CARE,Adult Social Care & Health,Homecare - new framework,A56127,0
Royal Borough of Kingston,9/5/2022,90166406,595.01,CARLCARE LTD,SOCIAL SERVICES-HOME CARE,Adult Social Care & Health,Homecare - new framework,A56127,0
Royal Borough of Kingston,9/5/2022,90168169,918.76,CN Healthcare,SOCIAL SERVICES - OTHER,Adult Social Care & Health,Homecare - new framework,A56127,0
Royal Borough of Kingston,9/5/2022,90168218,551.25,CN Healthcare,SOCIAL SERVICES - OTHER,Adult Social Care & Health,Homecare - new framework,A56127,0
Royal Borough of Kingston,9/5/2022,90166559,543.26,DAY AND NITE SERVICES (KINGSTON),SOCIAL SERVICES-HOME CARE,Adult Social Care & Health,Personal Budget - Third Party,A61019,0
Royal Borough of Kingston,9/5/2022,90166574,603.63,DAY AND NITE SERVICES (KINGSTON),SOCIAL SERVICES-HOME CARE,Adult Social Care & Health,Personal Budget - Third Party,A61019,0
Royal Borough of Kingston,9/5/2022,90166648,663.99,DAY AND NITE SERVICES (KINGSTON),SOCIAL SERVICES-HOME CARE,Adult Social Care & Health,Personal Budget - Third Party,A61019,0
Royal Borough of Kingston,9/5/2022,90166655,603.63,DAY AND NITE SERVICES (KINGSTON),SOCIAL SERVICES-HOME CARE,Adult Social Care & Health,Personal Budget - Third Party,A61019,0
Royal Borough of Kingston,9/5/2022,90166292,"1,209.00",FIRST CHOICE SOCIAL CARE & SHELTERED HOUSING LTD,SOCIAL SERVICES - OTHER,Adult Social Care & Health,Homecare - new framework,A56127,0
Royal Borough of Kingston,9/5/2022,90166293,"2,821.00",FIRST CHOICE SOCIAL CARE & SHELTERED HOUSING LTD,SOCIAL SERVICES - OTHER,Adult Social Care & Health,Homecare - new framework,A56127,0
Royal Borough of Kingston,9/5/2022,90166294,"2,821.00",FIRST CHOICE SOCIAL CARE & SHELTERED HOUSING LTD,SOCIAL SERVICES - OTHER,Adult Social Care & Health,Homecare - new framework,A56127,0
Royal Borough of Kingston,9/5/2022,90166295,"2,821.00",FIRST CHOICE SOCIAL CARE & SHELTERED HOUSING LTD,SOCIAL SERVICES - OTHER,Adult Social Care & Health,Homecare - new framework,A56127,0
Royal Borough of Kingston,9/5/2022,90166296,"2,821.00",FIRST CHOICE SOCIAL CARE & SHELTERED HOUSING LTD,SOCIAL SERVICES - OTHER,Adult Social Care & Health,Homecare - new framework,A56127,0
Royal Borough of Kingston,9/5/2022,90166297,"2,821.00",FIRST CHOICE SOCIAL CARE & SHELTERED HOUSING LTD,SOCIAL SERVICES - OTHER,Adult Social Care & Health,Homecare - new framework,A56127,0
Royal Borough of Kingston,9/5/2022,90166298,"2,821.00",FIRST CHOICE SOCIAL CARE & SHELTERED HOUSING LTD,SOCIAL SERVICES - OTHER,Adult Social Care & Health,Homecare - new framework,A56127,0
Royal Borough of Kingston,9/5/2022,90166299,"2,821.00",FIRST CHOICE SOCIAL CARE & SHELTERED HOUSING LTD,SOCIAL SERVICES - OTHER,Adult Social Care & Health,Homecare - new framework,A56127,0
Royal Borough of Kingston,9/5/2022,90166300,"2,821.00",FIRST CHOICE SOCIAL CARE & SHELTERED HOUSING LTD,SOCIAL SERVICES - OTHER,Adult Social Care & Health,Homecare - new framework,A56127,0
Royal Borough of Kingston,9/5/2022,90166301,"2,821.00",FIRST CHOICE SOCIAL CARE & SHELTERED HOUSING LTD,SOCIAL SERVICES - OTHER,Adult Social Care & Health,Homecare - new framework,A56127,0
Royal Borough of Kingston,9/5/2022,90166302,"2,821.00",FIRST CHOICE SOCIAL CARE & SHELTERED HOUSING LTD,SOCIAL SERVICES - OTHER,Adult Social Care & Health,Homecare - new framework,A56127,0
Royal Borough of Kingston,9/5/2022,90166303,"2,821.00",FIRST CHOICE SOCIAL CARE & SHELTERED HOUSING LTD,SOCIAL SERVICES - OTHER,Adult Social Care & Health,Homecare - new framework,A56127,0
Royal Borough of Kingston,9/5/2022,90166304,"2,821.00",FIRST CHOICE SOCIAL CARE & SHELTERED HOUSING LTD,SOCIAL SERVICES - OTHER,Adult Social Care & Health,Homecare - new framework,A56127,0
Royal Borough of Kingston,9/5/2022,90166305,"2,821.00",FIRST CHOICE SOCIAL CARE & SHELTERED HOUSING LTD,SOCIAL SERVICES - OTHER,Adult Social Care & Health,Homecare - new framework,A56127,0
Royal Borough of Kingston,9/5/2022,90166306,"2,821.00",FIRST CHOICE SOCIAL CARE & SHELTERED HOUSING LTD,SOCIAL SERVICES - OTHER,Adult Social Care & Health,Homecare - new framework,A56127,0
Royal Borough of Kingston,9/5/2022,90166307,"2,821.00",FIRST CHOICE SOCIAL CARE & SHELTERED HOUSING LTD,SOCIAL SERVICES - OTHER,Adult Social Care & Health,Homecare - new framework,A56127,0
Royal Borough of Kingston,9/5/2022,90166308,"2,821.00",FIRST CHOICE SOCIAL CARE & SHELTERED HOUSING LTD,SOCIAL SERVICES - OTHER,Adult Social Care & Health,Homecare - new framework,A56127,0
Royal Borough of Kingston,9/5/2022,90166309,"2,821.00",FIRST CHOICE SOCIAL CARE & SHELTERED HOUSING LTD,SOCIAL SERVICES - OTHER,Adult Social Care & Health,Homecare - new framework,A56127,0
Royal Borough of Kingston,9/5/2022,90166310,"2,821.00",FIRST CHOICE SOCIAL CARE & SHELTERED HOUSING LTD,SOCIAL SERVICES - OTHER,Adult Social Care & Health,Homecare - new framework,A56127,0
Royal Borough of Kingston,9/5/2022,90166311,"2,821.00",FIRST CHOICE SOCIAL CARE & SHELTERED HOUSING LTD,SOCIAL SERVICES - OTHER,Adult Social Care & Health,Homecare - new framework,A56127,0
Royal Borough of Kingston,9/5/2022,90166312,"2,821.00",FIRST CHOICE SOCIAL CARE & SHELTERED HOUSING LTD,SOCIAL SERVICES - OTHER,Adult Social Care & Health,Homecare - new framework,A56127,0
Royal Borough of Kingston,9/5/2022,90166313,"2,821.00",FIRST CHOICE SOCIAL CARE & SHELTERED HOUSING LTD,SOCIAL SERVICES - OTHER,Adult Social Care & Health,Homecare - new framework,A56127,0
Royal Borough of Kingston,9/5/2022,90166430,551.25,FIRST CHOICE SOCIAL CARE & SHELTERED HOUSING LTD,SOCIAL SERVICES - OTHER,Adult Social Care & Health,Homecare - new framework,A56127,0
Royal Borough of Kingston,9/5/2022,70031788,"-348,565.00",KINGSTON HOSPITAL NHS FT,CENTRAL & LOCAL GOVERNMENT,Adult Social Care & Health,Other Private Contractors - Third Party,A56080,0
Royal Borough of Kingston,9/5/2022,90166042,735.01,Global Homecare,SOCIAL SERVICES-HOME CARE,Adult Social Care & Health,Homecare - new framework,A56127,0
Royal Borough of Kingston,9/5/2022,90166220,"2,861.90",Global Homecare,SOCIAL SERVICES-HOME CARE,Adult Social Care & Health,Homecare - new framework,A56127,0
Royal Borough of Kingston,9/5/2022,90166365,"2,861.90",Global Homecare,SOCIAL SERVICES-HOME CARE,Adult Social Care & Health,Homecare - new framework,A56127,0
Royal Borough of Kingston,9/5/2022,90166204,"2,453.06",Goldsmith Personnel Ltd,SOCIAL SERVICES - OTHER,Adult Social Care & Health,Homecare - new framework,A56127,0
Royal Borough of Kingston,9/5/2022,90165995,673.76,HELMAR CARE AND COMMUNITY SERVICES LTD,SOCIAL SERVICES DAY CARE,Adult Social Care & Health,Homecare - new framework,A56127,0
Royal Borough of Kingston,9/5/2022,90166210,963.78,HELMAR CARE AND COMMUNITY SERVICES LTD,SOCIAL SERVICES DAY CARE,Adult Social Care & Health,Homecare - new framework,A56127,0
Royal Borough of Kingston,9/5/2022,90166366,"2,861.90",HELMAR CARE AND COMMUNITY SERVICES LTD,SOCIAL SERVICES DAY CARE,Adult Social Care & Health,Homecare - new framework,A56127,0
Royal Borough of Kingston,9/5/2022,90166492,630,HELMAR CARE AND COMMUNITY SERVICES LTD,SOCIAL SERVICES DAY CARE,Adult Social Care & Health,Homecare - new framework,A56127,0
Royal Borough of Kingston,9/5/2022,90166493,550.73,HELMAR CARE AND COMMUNITY SERVICES LTD,SOCIAL SERVICES DAY CARE,Adult Social Care & Health,Homecare - new framework,A56127,0
Royal Borough of Kingston,9/5/2022,90168034,735.01,Humble Healthcare Ltd,SOCIAL SERVICES - OTHER,Adult Social Care & Health,Homecare - new framework,A56127,0
Royal Borough of Kingston,9/5/2022,90165890,"2,044.22",INSPIRE MANAGEMENT GROUP LTD,SOCIAL SERVICES DAY CARE,Adult Social Care & Health,Homecare - new framework,A56127,0
Royal Borough of Kingston,9/5/2022,90166249,"1,100.73",INSPIRE MANAGEMENT GROUP LTD,SOCIAL SERVICES DAY CARE,Adult Social Care & Health,Homecare - new framework,A56127,0
Royal Borough of Kingston,9/5/2022,90166373,612.5,INSPIRE MANAGEMENT GROUP LTD,SOCIAL SERVICES DAY CARE,Adult Social Care & Health,Homecare - new framework,A56127,0
Royal Borough of Kingston,9/5/2022,90166388,551.25,INSPIRE MANAGEMENT GROUP LTD,SOCIAL SERVICES DAY CARE,Adult Social Care & Health,Homecare - new framework,A56127,0
Royal Borough of Kingston,9/5/2022,90166416,787.51,INSPIRE MANAGEMENT GROUP LTD,SOCIAL SERVICES DAY CARE,Adult Social Care & Health,Homecare - new framework,A56127,0
Royal Borough of Kingston,9/5/2022,90166425,551.25,INSPIRE MANAGEMENT GROUP LTD,SOCIAL SERVICES DAY CARE,Adult Social Care & Health,Homecare - new framework,A56127,0
Royal Borough of Kingston,9/5/2022,90166446,560,INSPIRE MANAGEMENT GROUP LTD,SOCIAL SERVICES DAY CARE,Adult Social Care & Health,Homecare - new framework,A56127,0
Royal Borough of Kingston,9/5/2022,90167889,621,REDACTED - PERSONAL DATA,SOCIAL SERVICES - DIRECT PAYMENTS,Adult Social Care & Health,Payments To Carers,A56030,0
Royal Borough of Kingston,9/5/2022,90166637,"1,400.00",OZUMBA TRAINING AND CONSULTANCY SERVICES LIMITED,SOCIAL SERVICES DAY CARE,Adult Social Care & Health,Personal Budget - Third Party,A61019,0
Royal Borough of Kingston,9/5/2022,90168373,551.25,Rapid Improvement Ltd,SOCIAL SERVICES - OTHER,Adult Social Care & Health,Homecare - new framework,A56127,0
Royal Borough of Kingston,9/5/2022,90168423,612.51,Rapid Improvement Ltd,SOCIAL SERVICES - OTHER,Adult Social Care & Health,Homecare - new framework,A56127,0
Royal Borough of Kingston,9/5/2022,90168430,551.25,Rapid Improvement Ltd,SOCIAL SERVICES - OTHER,Adult Social Care & Health,Homecare - new framework,A56127,0
Royal Borough of Kingston,9/5/2022,70031512,500,RC Old Bos FC,SUNDRY SUPPLIER - FINANCE,Corporate & Communities,"Grants, Contributions & Donations",A47005,0
Royal Borough of Kingston,9/5/2022,70031193,"1,933.30",ROYAL MAIL GROUP LTD,OFFICE SERVICES,Corporate & Communities,Postage & Couriers,A45015,0
Royal Borough of Kingston,9/5/2022,90166556,793.34,SURBITON HOMECARE MANAGEMENT LTD,SOCIAL SERVICES-HOME CARE,Adult Social Care & Health,Personal Budget - Third Party,A61019,0
Royal Borough of Kingston,9/5/2022,90166683,875.26,SURBITON HOMECARE MANAGEMENT LTD,SOCIAL SERVICES-HOME CARE,Adult Social Care & Health,Personal Budget - Third Party,A61019,0
Royal Borough of Kingston,9/5/2022,90165969,857.51,WANDLE HEALTHCARE SERVICES,SOCIAL SERVICES-HOME CARE,Adult Social Care & Health,Homecare - new framework,A56127,0
Royal Borough of Kingston,9/5/2022,90166007,551.25,WANDLE HEALTHCARE SERVICES,SOCIAL SERVICES-HOME CARE,Adult Social Care & Health,Homecare - new framework,A56127,0
Royal Borough of Kingston,9/5/2022,90166183,"2,861.90",WANDLE HEALTHCARE SERVICES,SOCIAL SERVICES-HOME CARE,Adult Social Care & Health,Homecare - new framework,A56127,0
Royal Borough of Kingston,9/5/2022,90166198,612.51,WANDLE HEALTHCARE SERVICES,SOCIAL SERVICES-HOME CARE,Adult Social Care & Health,Homecare - new framework,A56127,0
Royal Borough of Kingston,9/5/2022,90166259,612.5,WANDLE HEALTHCARE SERVICES,SOCIAL SERVICES-HOME CARE,Adult Social Care & Health,Homecare - new framework,A56127,0
Royal Borough of Kingston,9/5/2022,90166375,516.25,WANDLE HEALTHCARE SERVICES,SOCIAL SERVICES-HOME CARE,Adult Social Care & Health,Homecare - new framework,A56127,0
Royal Borough of Kingston,9/5/2022,90166485,963.78,WANDLE HEALTHCARE SERVICES,SOCIAL SERVICES-HOME CARE,Adult Social Care & Health,Homecare - new framework,A56127,0
Royal Borough of Kingston,9/5/2022,90166522,980.01,WANDLE HEALTHCARE SERVICES,SOCIAL SERVICES-HOME CARE,Adult Social Care & Health,Homecare - new framework,A56127,0
Royal Borough of Kingston,9/5/2022,90166523,"1,100.73",WANDLE HEALTHCARE SERVICES,SOCIAL SERVICES-HOME CARE,Adult Social Care & Health,Homecare - new framework,A56127,0
Royal Borough of Kingston,9/5/2022,90166571,784.72,WINSOR CARE SERVICES LTD,SOCIAL SERVICES RESIDENTIAL,Adult Social Care & Health,Personal Budget - Third Party,A61019,0
Royal Borough of Kingston,9/5/2022,90166595,603.63,WINSOR CARE SERVICES LTD,SOCIAL SERVICES RESIDENTIAL,Adult Social Care & Health,Personal Budget - Third Party,A61019,0
Royal Borough of Kingston,9/5/2022,90166597,603.63,WINSOR CARE SERVICES LTD,SOCIAL SERVICES RESIDENTIAL,Adult Social Care & Health,Personal Budget - Third Party,A61019,0
Royal Borough of Kingston,9/5/2022,90166605,603.63,WINSOR CARE SERVICES LTD,SOCIAL SERVICES RESIDENTIAL,Adult Social Care & Health,Personal Budget - Third Party,A61019,0
Royal Borough of Kingston,9/5/2022,90166613,603.63,WINSOR CARE SERVICES LTD,SOCIAL SERVICES RESIDENTIAL,Adult Social Care & Health,Personal Budget - Third Party,A61019,0
Royal Borough of Kingston,9/5/2022,90166614,551.89,WINSOR CARE SERVICES LTD,SOCIAL SERVICES RESIDENTIAL,Adult Social Care & Health,Personal Budget - Third Party,A61019,0
Royal Borough of Kingston,9/5/2022,90166617,663.99,WINSOR CARE SERVICES LTD,SOCIAL SERVICES RESIDENTIAL,Adult Social Care & Health,Personal Budget - Third Party,A61019,0
Royal Borough of Kingston,9/5/2022,90166621,603.63,WINSOR CARE SERVICES LTD,SOCIAL SERVICES RESIDENTIAL,Adult Social Care & Health,Personal Budget - Third Party,A61019,0
Royal Borough of Kingston,9/5/2022,90166633,543.26,WINSOR CARE SERVICES LTD,SOCIAL SERVICES RESIDENTIAL,Adult Social Care & Health,Personal Budget - Third Party,A61019,0
Royal Borough of Kingston,9/6/2022,70031305,"1,581.00",ADAM HOTEL MANAGEMENT LTD,ACCOMMODATION BED & BREAKFAST,Place,Bed & Breakfast,A56000,0
Royal Borough of Kingston,9/6/2022,70031306,770,ADAM HOTEL MANAGEMENT LTD,ACCOMMODATION BED & BREAKFAST,Place,Bed & Breakfast,A56000,0
Royal Borough of Kingston,9/6/2022,70031307,"1,085.00",ADAM HOTEL MANAGEMENT LTD,ACCOMMODATION BED & BREAKFAST,Place,Bed & Breakfast,A56000,0
Royal Borough of Kingston,9/6/2022,70031309,"1,302.00",ADAM HOTEL MANAGEMENT LTD,ACCOMMODATION BED & BREAKFAST,Place,Bed & Breakfast,A56000,0
Royal Borough of Kingston,9/6/2022,70031310,770,ADAM HOTEL MANAGEMENT LTD,ACCOMMODATION BED & BREAKFAST,Place,Bed & Breakfast,A56000,0
Royal Borough of Kingston,9/6/2022,70031311,"1,581.00",ADAM HOTEL MANAGEMENT LTD,ACCOMMODATION BED & BREAKFAST,Place,Bed & Breakfast,A56000,0
Royal Borough of Kingston,9/6/2022,70031312,"1,302.00",ADAM HOTEL MANAGEMENT LTD,ACCOMMODATION BED & BREAKFAST,Place,Bed & Breakfast,A56000,0
Royal Borough of Kingston,9/6/2022,70031313,"1,085.00",ADAM HOTEL MANAGEMENT LTD,ACCOMMODATION BED & BREAKFAST,Place,Bed & Breakfast,A56000,0
Royal Borough of Kingston,9/6/2022,70031314,"1,085.00",ADAM HOTEL MANAGEMENT LTD,ACCOMMODATION BED & BREAKFAST,Place,Bed & Breakfast,A56000,0
Royal Borough of Kingston,9/6/2022,90160995,"158,026.51",ALEXANDRA SCHOOL ,CENTRAL & LOCAL GOVERNMENT,Schools,Miscellaneous Expenses,A49000,0
Royal Borough of Kingston,9/6/2022,90161022,"1,737.14",ALEXANDRA SCHOOL ,CENTRAL & LOCAL GOVERNMENT,Schools,Miscellaneous Expenses,A49000,0
Royal Borough of Kingston,9/6/2022,90160996,"143,612.71",BURLINGTON INFANT AND NURSERY SCHOOL,SCHOOL FUNDS,Schools,Miscellaneous Expenses,A49000,0
Royal Borough of Kingston,9/6/2022,90161026,868.57,BURLINGTON INFANT AND NURSERY SCHOOL,SCHOOL FUNDS,Schools,Miscellaneous Expenses,A49000,0
Royal Borough of Kingston,9/6/2022,90160997,"176,936.56",BURLINGTON JUNIOR SCHOOL,SCHOOL FUNDS,Schools,Miscellaneous Expenses,A49000,0
Royal Borough of Kingston,9/6/2022,90161028,868.57,BURLINGTON JUNIOR SCHOOL,SCHOOL FUNDS,Schools,Miscellaneous Expenses,A49000,0
Royal Borough of Kingston,9/6/2022,90160999,"158,749.86",CHRIST CHURCH  C. OF E.  PRIMARY SCHOOL (NEW MALDEN),SCHOOL FUNDS,Schools,Miscellaneous Expenses,A49000,0
Royal Borough of Kingston,9/6/2022,90161021,868.57,CHRIST CHURCH  C. OF E.  PRIMARY SCHOOL (NEW MALDEN),SCHOOL FUNDS,Schools,Miscellaneous Expenses,A49000,0
Royal Borough of Kingston,9/6/2022,90160998,"173,569.93",CHRIST CHURCH C.OF E. PRIMARY SCHOOL - (SURBITON),ACADEMIC INSTNS - OTHER,Schools,Miscellaneous Expenses,A49000,0
Royal Borough of Kingston,9/6/2022,90161023,"1,737.14",CHRIST CHURCH C.OF E. PRIMARY SCHOOL - (SURBITON),ACADEMIC INSTNS - OTHER,Schools,Miscellaneous Expenses,A49000,0
Royal Borough of Kingston,9/6/2022,90161000,"107,636.54",COOMBE HILL INFANTS SCHOOL,ACADEMIC INSTNS - OTHER,Schools,Miscellaneous Expenses,A49000,0
Royal Borough of Kingston,9/6/2022,90161001,"155,365.37",COOMBE HILL JUNIOR SCHOOL,ACADEMIC INSTNS - OTHER,Schools,Miscellaneous Expenses,A49000,0
Royal Borough of Kingston,9/6/2022,90161027,"1,737.14",COOMBE HILL JUNIOR SCHOOL,ACADEMIC INSTNS - OTHER,Schools,Miscellaneous Expenses,A49000,0
Royal Borough of Kingston,9/6/2022,90161002,"149,458.59",CORPUS CHRISTI CATHOLIC PRIMARY SCHOOL ,ACADEMIC INSTNS - OTHER,Schools,Miscellaneous Expenses,A49000,0
Royal Borough of Kingston,9/6/2022,90161013,"9,357.60",ELLINGHAM PRIMARY SCHOOL,ACADEMIC INSTNS - OTHER,Schools,Miscellaneous Expenses,A49000,0
Royal Borough of Kingston,9/6/2022,90161030,868.57,ELLINGHAM PRIMARY SCHOOL,ACADEMIC INSTNS - OTHER,Schools,Miscellaneous Expenses,A49000,0
Royal Borough of Kingston,9/6/2022,90161003,"220,043.01",GRAND AVENUE PRIMARY AND NURSERY SCHOOL,CENTRAL & LOCAL GOVERNMENT,Schools,Miscellaneous Expenses,A49000,0
Royal Borough of Kingston,9/6/2022,70031549,-551.02,KENT COUNTY COUNCIL,UTILITIES,Housing Revenue Account,Gas,A21003,0
Royal Borough of Kingston,9/6/2022,90161017,"2,605.71",KINGS OAK PRIMARY SCHOOL,CENTRAL & LOCAL GOVERNMENT,Schools,Miscellaneous Expenses,A49000,0
Royal Borough of Kingston,9/6/2022,90161004,"138,497.70",LIME TREE PRIMARY,ACADEMIC INSTNS - OTHER,Schools,Miscellaneous Expenses,A49000,0
Royal Borough of Kingston,9/6/2022,90161020,"3,474.28",LOVELACE PRIMARY SCHOOL,ACADEMIC INSTNS - OTHER,Schools,Miscellaneous Expenses,A49000,0
Royal Borough of Kingston,9/6/2022,70031217,"4,500.00",MALDEN & COOMBE RES ASS LTD ,GRANTS & EX GRATIA PAYMENTS,Corporate & Communities,Other Roading-Related Expenditure,A56041,0
Royal Borough of Kingston,9/6/2022,90161005,"151,550.25",MALDEN MANOR PRIMARY & NURSERY SCHOOL,SCHOOL FUNDS,Schools,Miscellaneous Expenses,A49000,0
Royal Borough of Kingston,9/6/2022,90161024,"1,737.14",MALDEN MANOR PRIMARY & NURSERY SCHOOL,SCHOOL FUNDS,Schools,Miscellaneous Expenses,A49000,0
Royal Borough of Kingston,9/6/2022,90161006,"81,767.06",MALDEN PAROCHIAL COFE PRIMARY,ACADEMIC INSTNS - OTHER,Schools,Miscellaneous Expenses,A49000,0
Royal Borough of Kingston,9/6/2022,90161025,"1,737.14",MALDEN PAROCHIAL COFE PRIMARY,ACADEMIC INSTNS - OTHER,Schools,Miscellaneous Expenses,A49000,0
Royal Borough of Kingston,9/6/2022,70030996,641.93,REDACTED - PERSONAL DATA,SUNDRY SUPPLIER - HOUSING,Place,Compensation (In Lieu Of Works),A20039,0
Royal Borough of Kingston,9/6/2022,90161007,"149,909.44",OUR LADY IMMACULATE CATHOLIC PRIMARY SCHOOL ,ACADEMIC INSTNS - OTHER,Schools,Miscellaneous Expenses,A49000,0
Royal Borough of Kingston,9/6/2022,70030995,"2,472.00",REDACTED - PERSONAL DATA,PLS LANDLORDS,Place,Housing Incentives,A62025,0
Royal Borough of Kingston,9/6/2022,90161008,"130,316.43",ST ANDREWS & ST MARKS C OF E JUNIOR SCHOOL,SCHOOL FUNDS,Schools,Miscellaneous Expenses,A49000,0
Royal Borough of Kingston,9/6/2022,90161018,"2,605.71",ST ANDREWS & ST MARKS C OF E JUNIOR SCHOOL,SCHOOL FUNDS,Schools,Miscellaneous Expenses,A49000,0
Royal Borough of Kingston,9/6/2022,90161009,"83,077.70",ST JOHN'S COFE PRIMARY SCHOOL ,ACADEMIC INSTNS - OTHER,Schools,Miscellaneous Expenses,A49000,0
Royal Borough of Kingston,9/6/2022,90161019,"1,737.14",ST JOSEPH'S RC PRIMARY SCHOOL ,ACADEMIC INSTNS - OTHER,Schools,Miscellaneous Expenses,A49000,0
Royal Borough of Kingston,9/6/2022,90161010,"101,704.23",ST LUKES C OF E PRIMARY,SCHOOL FUNDS,Schools,Miscellaneous Expenses,A49000,0
Royal Borough of Kingston,9/6/2022,90161011,"73,888.08",ST MARY'S COFE PRIMARY SCHOOL,ACADEMIC INSTNS - OTHER,Schools,Miscellaneous Expenses,A49000,0
Royal Borough of Kingston,9/6/2022,90161031,868.57,ST MARY'S COFE PRIMARY SCHOOL,ACADEMIC INSTNS - OTHER,Schools,Miscellaneous Expenses,A49000,0
Royal Borough of Kingston,9/6/2022,90161012,"144,626.52",ST MATTHEW'S CE PRIMARY SCHOOL,SCHOOL FUNDS,Schools,Miscellaneous Expenses,A49000,0
Royal Borough of Kingston,9/6/2022,90161016,"4,959.87",ST PAUL'S COFE PRIMARY SCHOOL (KINGSTON HILL),SCHOOL FUNDS,Schools,Miscellaneous Expenses,A49000,0
Royal Borough of Kingston,9/6/2022,90161029,868.57,ST PAUL'S COFE PRIMARY SCHOOL (KINGSTON HILL),SCHOOL FUNDS,Schools,Miscellaneous Expenses,A49000,0
Royal Borough of Kingston,9/6/2022,90161015,"16,107.30",ST PAUL'S COFE PRIMARY SCHOOL (CHESSINGTON),ACADEMIC INSTNS - OTHER,Schools,Miscellaneous Expenses,A49000,0
Royal Borough of Kingston,9/6/2022,70031018,"2,000.00",WESSEX ARCHEOLOGY LTD,LEGAL & PROFESSIONAL SERVICES,Capital Programme,Buildings - Design & Planning,C14001,0
Royal Borough of Kingston,9/7/2022,70031280,"5,590,020.83",ACHIEVING FOR CHILDREN LIMITED,LEGAL & PROFESSIONAL SERVICES,Childrens Services,Fixed Childrens Services Contract Strategic,A51019,0
Royal Borough of Kingston,9/7/2022,70031832,"11,247.50",ADAM HTT LIMITED,TAXI AND COACH HIRE,Adult Social Care & Health,Home To School Transport Taxis,A33016,0
Royal Borough of Kingston,9/7/2022,70031450,"161,862.17",MATRIX SCM LTD,TEMP STAFF & CONSULTANCY,Corporate & Communities,Agency Staff - Other,A10505,0
Royal Borough of Kingston,9/7/2022,70031459,684.76,NEWSQUEST MEDIA GROUP LTD,PRESS & PUBLICITY,Place,Publicity And Promotions,A45026,0
Royal Borough of Kingston,9/8/2022,70031482,"3,000.00",BYTES SOFTWARE SERVICES LTD,BUSINESS & COMPUTER SYSTEMS,Corporate & Communities,ICT Software Development,A45041,0
Royal Borough of Kingston,9/8/2022,70031440,"1,000.00",REDACTED - PERSONAL DATA,LANDLORDS,Adult Social Care & Health,Housing Incentives,A62025,0
Royal Borough of Kingston,9/8/2022,70031276,"1,500.00",GP Tech Serv,BUILDING MNTCE - SERVICES,Place,Surveys,A44136,0
Royal Borough of Kingston,9/8/2022,70031277,"2,400.00",GP Tech Serv,BUILDING MNTCE - SERVICES,Place,Surveys,A44136,0
Royal Borough of Kingston,9/8/2022,70031278,"2,793.78",GP Tech Serv,BUILDING MNTCE - SERVICES,Place,Security / Surveillance Equipment Maintenance,A20009,0
Royal Borough of Kingston,9/8/2022,70031451,"10,194.63",MATRIX SCM LTD,TEMP STAFF & CONSULTANCY,SLWP,Waste Management Strategy,A44090,0
Royal Borough of Kingston,9/8/2022,70031317,954.3,REDACTED - PERSONAL DATA,SUNDRY SUPPLIER - HOUSING,Place,Prevention Of Homelessness,A44141,0
Royal Borough of Kingston,9/9/2022,70031464,650,F H & G LIMITED,LEGAL & PROFESSIONAL SERVICES,Housing Revenue Account,Professional Fees,A44066,0
Royal Borough of Kingston,9/9/2022,70032004,"1,612.00",GOLFRATE PROPERTY MANAGEMENT LIMITED,ACCOMMODATION BED & BREAKFAST,Place,Bed & Breakfast,A56000,0
Royal Borough of Kingston,9/9/2022,70032005,"1,658.50",GOLFRATE PROPERTY MANAGEMENT LIMITED,ACCOMMODATION BED & BREAKFAST,Place,Bed & Breakfast,A56000,0
Royal Borough of Kingston,9/9/2022,70031518,"1,600.00",LONDON BOROUGH OF SUTTON,CENTRAL & LOCAL GOVERNMENT,Corporate & Communities,ICT Expenses,A45009,0
Royal Borough of Kingston,9/12/2022,90167975,-682.51,ALPENBEST LTD,SOCIAL SERVICES DAY CARE,Adult Social Care & Health,Homecare - new framework,A56127,0
Royal Borough of Kingston,9/12/2022,90167999,612.51,ALPENBEST LTD,SOCIAL SERVICES DAY CARE,Adult Social Care & Health,Homecare - new framework,A56127,0
Royal Borough of Kingston,9/12/2022,90168002,560,ALPENBEST LTD,SOCIAL SERVICES DAY CARE,Adult Social Care & Health,Homecare - new framework,A56127,0
Royal Borough of Kingston,9/12/2022,90168013,"1,470.01",ALPENBEST LTD,SOCIAL SERVICES DAY CARE,Adult Social Care & Health,Homecare - new framework,A56127,0
Royal Borough of Kingston,9/12/2022,90168030,700,ALPENBEST LTD,SOCIAL SERVICES DAY CARE,Adult Social Care & Health,Homecare - new framework,A56127,0
Royal Borough of Kingston,9/12/2022,90168039,551.25,ALPENBEST LTD,SOCIAL SERVICES DAY CARE,Adult Social Care & Health,Homecare - new framework,A56127,0
Royal Borough of Kingston,9/12/2022,90168056,551.25,ALPENBEST LTD,SOCIAL SERVICES DAY CARE,Adult Social Care & Health,Homecare - new framework,A56127,0
Royal Borough of Kingston,9/12/2022,90168084,735.01,ALPENBEST LTD,SOCIAL SERVICES DAY CARE,Adult Social Care & Health,Homecare - new framework,A56127,0
Royal Borough of Kingston,9/12/2022,90168155,551.25,ALPENBEST LTD,SOCIAL SERVICES DAY CARE,Adult Social Care & Health,Homecare - new framework,A56127,0
Royal Borough of Kingston,9/12/2022,90168168,551.25,ALPENBEST LTD,SOCIAL SERVICES DAY CARE,Adult Social Care & Health,Homecare - new framework,A56127,0
Royal Borough of Kingston,9/12/2022,90168222,551.25,ALPENBEST LTD,SOCIAL SERVICES DAY CARE,Adult Social Care & Health,Homecare - new framework,A56127,0
Royal Borough of Kingston,9/12/2022,90168233,577.5,ALPENBEST LTD,SOCIAL SERVICES DAY CARE,Adult Social Care & Health,Homecare - new framework,A56127,0
Royal Borough of Kingston,9/12/2022,90168273,612.5,ALPENBEST LTD,SOCIAL SERVICES DAY CARE,Adult Social Care & Health,Homecare - new framework,A56127,0
Royal Borough of Kingston,9/12/2022,90168274,551.25,ALPENBEST LTD,SOCIAL SERVICES DAY CARE,Adult Social Care & Health,Homecare - new framework,A56127,0
Royal Borough of Kingston,9/12/2022,90168281,551.25,ALPENBEST LTD,SOCIAL SERVICES DAY CARE,Adult Social Care & Health,Homecare - new framework,A56127,0
Royal Borough of Kingston,9/12/2022,90168284,551.25,ALPENBEST LTD,SOCIAL SERVICES DAY CARE,Adult Social Care & Health,Homecare - new framework,A56127,0
Royal Borough of Kingston,9/12/2022,90168334,770.01,ALPENBEST LTD,SOCIAL SERVICES DAY CARE,Adult Social Care & Health,Homecare - new framework,A56127,0
Royal Borough of Kingston,9/12/2022,90168367,-551.25,ALPENBEST LTD,SOCIAL SERVICES DAY CARE,Adult Social Care & Health,Homecare - new framework,A56127,0
Royal Borough of Kingston,9/12/2022,90168395,796.26,ALPENBEST LTD,SOCIAL SERVICES DAY CARE,Adult Social Care & Health,Homecare - new framework,A56127,0
Royal Borough of Kingston,9/12/2022,90168396,796.26,ALPENBEST LTD,SOCIAL SERVICES DAY CARE,Adult Social Care & Health,Homecare - new framework,A56127,0
Royal Borough of Kingston,9/12/2022,90168417,551.25,ALPENBEST LTD,SOCIAL SERVICES DAY CARE,Adult Social Care & Health,Homecare - new framework,A56127,0
Royal Borough of Kingston,9/12/2022,90168421,735.01,ALPENBEST LTD,SOCIAL SERVICES DAY CARE,Adult Social Care & Health,Homecare - new framework,A56127,0
Royal Borough of Kingston,9/12/2022,90168460,525,ALPENBEST LTD,SOCIAL SERVICES DAY CARE,Adult Social Care & Health,Homecare - new framework,A56127,0
Royal Borough of Kingston,9/12/2022,90168462,603.75,ALPENBEST LTD,SOCIAL SERVICES DAY CARE,Adult Social Care & Health,Homecare - new framework,A56127,0
Royal Borough of Kingston,9/12/2022,90168471,612.5,ALPENBEST LTD,SOCIAL SERVICES DAY CARE,Adult Social Care & Health,Homecare - new framework,A56127,0
Royal Borough of Kingston,9/12/2022,90168496,612.5,ALPENBEST LTD,SOCIAL SERVICES DAY CARE,Adult Social Care & Health,Homecare - new framework,A56127,0
Royal Borough of Kingston,9/12/2022,90169456,670.95,ALPENBEST LTD,SOCIAL SERVICES DAY CARE,Adult Social Care & Health,Personal Budget - Third Party,A61019,0
Royal Borough of Kingston,9/12/2022,90169472,612.5,ALPENBEST LTD,SOCIAL SERVICES DAY CARE,Adult Social Care & Health,Personal Budget - Third Party,A61019,0
Royal Borough of Kingston,9/12/2022,90169490,745.5,ALPENBEST LTD,SOCIAL SERVICES DAY CARE,Adult Social Care & Health,Personal Budget - Third Party,A61019,0
Royal Borough of Kingston,9/12/2022,90169462,603.63,BLUE ARROW CARE LTD,SOCIAL SERVICES-HOME CARE,Adult Social Care & Health,Personal Budget - Third Party,A61019,0
Royal Borough of Kingston,9/12/2022,90169464,543.26,BLUE ARROW CARE LTD,SOCIAL SERVICES-HOME CARE,Adult Social Care & Health,Personal Budget - Third Party,A61019,0
Royal Borough of Kingston,9/12/2022,90169473,543.26,BLUE ARROW CARE LTD,SOCIAL SERVICES-HOME CARE,Adult Social Care & Health,Personal Budget - Third Party,A61019,0
Royal Borough of Kingston,9/12/2022,90168076,735.01,CARLCARE LTD,SOCIAL SERVICES-HOME CARE,Adult Social Care & Health,Homecare - new framework,A56127,0
Royal Borough of Kingston,9/12/2022,90168466,595.01,CARLCARE LTD,SOCIAL SERVICES-HOME CARE,Adult Social Care & Health,Homecare - new framework,A56127,0
Royal Borough of Kingston,9/12/2022,70031520,"9,456.25",CRANWELL-WARD LTD,LANDLORDS,Corporate & Communities,Building Rents,A22005,0
Royal Borough of Kingston,9/12/2022,90169399,543.26,DAY AND NITE SERVICES (KINGSTON),SOCIAL SERVICES-HOME CARE,Adult Social Care & Health,Personal Budget - Third Party,A61019,0
Royal Borough of Kingston,9/12/2022,90169437,603.63,DAY AND NITE SERVICES (KINGSTON),SOCIAL SERVICES-HOME CARE,Adult Social Care & Health,Personal Budget - Third Party,A61019,0
Royal Borough of Kingston,9/12/2022,90169505,663.99,DAY AND NITE SERVICES (KINGSTON),SOCIAL SERVICES-HOME CARE,Adult Social Care & Health,Personal Budget - Third Party,A61019,0
Royal Borough of Kingston,9/12/2022,90169510,603.63,DAY AND NITE SERVICES (KINGSTON),SOCIAL SERVICES-HOME CARE,Adult Social Care & Health,Personal Budget - Third Party,A61019,0
Royal Borough of Kingston,9/12/2022,70031424,"2,404.00",DEXTERS LIMITED,LANDLORDS,Place,Prevention Of Homelessness,A44141,0
Royal Borough of Kingston,9/12/2022,90168492,551.25,FIRST CHOICE SOCIAL CARE & SHELTERED HOUSING LTD,SOCIAL SERVICES - OTHER,Adult Social Care & Health,Homecare - new framework,A56127,0
Royal Borough of Kingston,9/12/2022,90168148,735.01,Global Homecare,SOCIAL SERVICES-HOME CARE,Adult Social Care & Health,Homecare - new framework,A56127,0
Royal Borough of Kingston,9/12/2022,90168298,"2,861.90",Global Homecare,SOCIAL SERVICES-HOME CARE,Adult Social Care & Health,Homecare - new framework,A56127,0
Royal Borough of Kingston,9/12/2022,90168425,"2,861.90",Global Homecare,SOCIAL SERVICES-HOME CARE,Adult Social Care & Health,Homecare - new framework,A56127,0
Royal Borough of Kingston,9/12/2022,90168282,"2,861.90",Goldsmith Personnel Ltd,SOCIAL SERVICES - OTHER,Adult Social Care & Health,Homecare - new framework,A56127,0
Royal Borough of Kingston,9/12/2022,90168067,673.76,HELMAR CARE AND COMMUNITY SERVICES LTD,SOCIAL SERVICES DAY CARE,Adult Social Care & Health,Homecare - new framework,A56127,0
Royal Borough of Kingston,9/12/2022,90168288,963.78,HELMAR CARE AND COMMUNITY SERVICES LTD,SOCIAL SERVICES DAY CARE,Adult Social Care & Health,Homecare - new framework,A56127,0
Royal Borough of Kingston,9/12/2022,90168426,"2,861.90",HELMAR CARE AND COMMUNITY SERVICES LTD,SOCIAL SERVICES DAY CARE,Adult Social Care & Health,Homecare - new framework,A56127,0
Royal Borough of Kingston,9/12/2022,90168551,630,HELMAR CARE AND COMMUNITY SERVICES LTD,SOCIAL SERVICES DAY CARE,Adult Social Care & Health,Homecare - new framework,A56127,0
Royal Borough of Kingston,9/12/2022,90168552,550.73,HELMAR CARE AND COMMUNITY SERVICES LTD,SOCIAL SERVICES DAY CARE,Adult Social Care & Health,Homecare - new framework,A56127,0
Royal Borough of Kingston,9/12/2022,70031435,"5,850.00",High Street Solicitors ,SUNDRY SUPPLIER - FINANCE,Housing Revenue Account,Legal Services,A44025,0
Royal Borough of Kingston,9/12/2022,90168341,"1,100.73",INSPIRE MANAGEMENT GROUP LTD,SOCIAL SERVICES DAY CARE,Adult Social Care & Health,Homecare - new framework,A56127,0
Royal Borough of Kingston,9/12/2022,90168434,612.5,INSPIRE MANAGEMENT GROUP LTD,SOCIAL SERVICES DAY CARE,Adult Social Care & Health,Homecare - new framework,A56127,0
Royal Borough of Kingston,9/12/2022,90168449,551.25,INSPIRE MANAGEMENT GROUP LTD,SOCIAL SERVICES DAY CARE,Adult Social Care & Health,Homecare - new framework,A56127,0
Royal Borough of Kingston,9/12/2022,90168476,787.51,INSPIRE MANAGEMENT GROUP LTD,SOCIAL SERVICES DAY CARE,Adult Social Care & Health,Homecare - new framework,A56127,0
Royal Borough of Kingston,9/12/2022,90168486,551.25,INSPIRE MANAGEMENT GROUP LTD,SOCIAL SERVICES DAY CARE,Adult Social Care & Health,Homecare - new framework,A56127,0
Royal Borough of Kingston,9/12/2022,90168506,507.5,INSPIRE MANAGEMENT GROUP LTD,SOCIAL SERVICES DAY CARE,Adult Social Care & Health,Homecare - new framework,A56127,0
Royal Borough of Kingston,9/12/2022,70031628,"2,225.00",JB LIFT CONSULTANTS LTD,TEMP STAFF & CONSULTANCY,Capital Programme,Council Dwellings - Construction & Renovation,C10002,0
Royal Borough of Kingston,9/12/2022,70031676,"5,551.51",KENT COUNTY COUNCIL,UTILITIES,Adult Social Care & Health,Gas,A21003,0
Royal Borough of Kingston,9/12/2022,70031999,"1,273.65",KENT COUNTY COUNCIL,UTILITIES,Place,Gas,A21003,0
Royal Borough of Kingston,9/12/2022,70032116,959.29,KENT COUNTY COUNCIL,UTILITIES,Place,Gas,A21003,0
Royal Borough of Kingston,9/12/2022,70032117,"2,867.80",KENT COUNTY COUNCIL,UTILITIES,Place,Gas,A21003,0
Royal Borough of Kingston,9/12/2022,70032122,605.03,KENT COUNTY COUNCIL,UTILITIES,Place,Gas,A21003,0
Royal Borough of Kingston,9/12/2022,70031495,855.85,REDACTED - PERSONAL DATA,SUNDRY SUPPLIER - HOUSING,Capital Programme,Buildings - Project Management,C14003,0
Royal Borough of Kingston,9/12/2022,90169495,"1,400.00",OZUMBA TRAINING AND CONSULTANCY SERVICES LIMITED,SOCIAL SERVICES DAY CARE,Adult Social Care & Health,Personal Budget - Third Party,A61019,0
Royal Borough of Kingston,9/12/2022,70031664,"3,680.36",ROYAL MAIL GROUP LTD,OFFICE SERVICES,Corporate & Communities,Postage & Couriers,A45015,0
Royal Borough of Kingston,9/12/2022,90169396,793.34,SURBITON HOMECARE MANAGEMENT LTD,SOCIAL SERVICES-HOME CARE,Adult Social Care & Health,Personal Budget - Third Party,A61019,0
Royal Borough of Kingston,9/12/2022,90169519,875.26,SURBITON HOMECARE MANAGEMENT LTD,SOCIAL SERVICES-HOME CARE,Adult Social Care & Health,Personal Budget - Third Party,A61019,0
Royal Borough of Kingston,9/12/2022,90168041,857.51,WANDLE HEALTHCARE SERVICES,SOCIAL SERVICES-HOME CARE,Adult Social Care & Health,Homecare - new framework,A56127,0
Royal Borough of Kingston,9/12/2022,90168078,551.25,WANDLE HEALTHCARE SERVICES,SOCIAL SERVICES-HOME CARE,Adult Social Care & Health,Homecare - new framework,A56127,0
Royal Borough of Kingston,9/12/2022,90168269,"2,861.90",WANDLE HEALTHCARE SERVICES,SOCIAL SERVICES-HOME CARE,Adult Social Care & Health,Homecare - new framework,A56127,0
Royal Borough of Kingston,9/12/2022,90168276,612.51,WANDLE HEALTHCARE SERVICES,SOCIAL SERVICES-HOME CARE,Adult Social Care & Health,Homecare - new framework,A56127,0
Royal Borough of Kingston,9/12/2022,90168351,612.5,WANDLE HEALTHCARE SERVICES,SOCIAL SERVICES-HOME CARE,Adult Social Care & Health,Homecare - new framework,A56127,0
Royal Borough of Kingston,9/12/2022,90168422,"2,861.90",WANDLE HEALTHCARE SERVICES,SOCIAL SERVICES-HOME CARE,Adult Social Care & Health,Homecare - new framework,A56127,0
Royal Borough of Kingston,9/12/2022,90168436,516.25,WANDLE HEALTHCARE SERVICES,SOCIAL SERVICES-HOME CARE,Adult Social Care & Health,Homecare - new framework,A56127,0
Royal Borough of Kingston,9/12/2022,90168544,963.78,WANDLE HEALTHCARE SERVICES,SOCIAL SERVICES-HOME CARE,Adult Social Care & Health,Homecare - new framework,A56127,0
Royal Borough of Kingston,9/12/2022,90168596,980.01,WANDLE HEALTHCARE SERVICES,SOCIAL SERVICES-HOME CARE,Adult Social Care & Health,Homecare - new framework,A56127,0
Royal Borough of Kingston,9/12/2022,90168597,"1,100.73",WANDLE HEALTHCARE SERVICES,SOCIAL SERVICES-HOME CARE,Adult Social Care & Health,Homecare - new framework,A56127,0
Royal Borough of Kingston,9/12/2022,90169421,-784.72,WINSOR CARE SERVICES LTD,SOCIAL SERVICES RESIDENTIAL,Adult Social Care & Health,Personal Budget - Third Party,A61019,0
Royal Borough of Kingston,9/12/2022,90169422,-784.72,WINSOR CARE SERVICES LTD,SOCIAL SERVICES RESIDENTIAL,Adult Social Care & Health,Personal Budget - Third Party,A61019,0
Royal Borough of Kingston,9/12/2022,90169423,-784.72,WINSOR CARE SERVICES LTD,SOCIAL SERVICES RESIDENTIAL,Adult Social Care & Health,Personal Budget - Third Party,A61019,0
Royal Borough of Kingston,9/12/2022,90169424,-784.72,WINSOR CARE SERVICES LTD,SOCIAL SERVICES RESIDENTIAL,Adult Social Care & Health,Personal Budget - Third Party,A61019,0
Royal Borough of Kingston,9/12/2022,90169425,-784.72,WINSOR CARE SERVICES LTD,SOCIAL SERVICES RESIDENTIAL,Adult Social Care & Health,Personal Budget - Third Party,A61019,0
Royal Borough of Kingston,9/12/2022,90169426,-784.72,WINSOR CARE SERVICES LTD,SOCIAL SERVICES RESIDENTIAL,Adult Social Care & Health,Personal Budget - Third Party,A61019,0
Royal Borough of Kingston,9/12/2022,90169427,-784.72,WINSOR CARE SERVICES LTD,SOCIAL SERVICES RESIDENTIAL,Adult Social Care & Health,Personal Budget - Third Party,A61019,0
Royal Borough of Kingston,9/12/2022,90169428,-784.72,WINSOR CARE SERVICES LTD,SOCIAL SERVICES RESIDENTIAL,Adult Social Care & Health,Personal Budget - Third Party,A61019,0
Royal Borough of Kingston,9/12/2022,90169429,-784.72,WINSOR CARE SERVICES LTD,SOCIAL SERVICES RESIDENTIAL,Adult Social Care & Health,Personal Budget - Third Party,A61019,0
Royal Borough of Kingston,9/12/2022,90169430,-784.72,WINSOR CARE SERVICES LTD,SOCIAL SERVICES RESIDENTIAL,Adult Social Care & Health,Personal Budget - Third Party,A61019,0
Royal Borough of Kingston,9/12/2022,90169431,-784.72,WINSOR CARE SERVICES LTD,SOCIAL SERVICES RESIDENTIAL,Adult Social Care & Health,Personal Budget - Third Party,A61019,0
Royal Borough of Kingston,9/12/2022,90169432,-784.72,WINSOR CARE SERVICES LTD,SOCIAL SERVICES RESIDENTIAL,Adult Social Care & Health,Personal Budget - Third Party,A61019,0
Royal Borough of Kingston,9/12/2022,90169459,603.63,WINSOR CARE SERVICES LTD,SOCIAL SERVICES RESIDENTIAL,Adult Social Care & Health,Personal Budget - Third Party,A61019,0
Royal Borough of Kingston,9/12/2022,90169461,603.63,WINSOR CARE SERVICES LTD,SOCIAL SERVICES RESIDENTIAL,Adult Social Care & Health,Personal Budget - Third Party,A61019,0
Royal Borough of Kingston,9/12/2022,90169466,603.63,WINSOR CARE SERVICES LTD,SOCIAL SERVICES RESIDENTIAL,Adult Social Care & Health,Personal Budget - Third Party,A61019,0
Royal Borough of Kingston,9/12/2022,90169474,603.63,WINSOR CARE SERVICES LTD,SOCIAL SERVICES RESIDENTIAL,Adult Social Care & Health,Personal Budget - Third Party,A61019,0
Royal Borough of Kingston,9/12/2022,90169475,551.89,WINSOR CARE SERVICES LTD,SOCIAL SERVICES RESIDENTIAL,Adult Social Care & Health,Personal Budget - Third Party,A61019,0
Royal Borough of Kingston,9/12/2022,90169478,663.99,WINSOR CARE SERVICES LTD,SOCIAL SERVICES RESIDENTIAL,Adult Social Care & Health,Personal Budget - Third Party,A61019,0
Royal Borough of Kingston,9/12/2022,90169482,603.63,WINSOR CARE SERVICES LTD,SOCIAL SERVICES RESIDENTIAL,Adult Social Care & Health,Personal Budget - Third Party,A61019,0
Royal Borough of Kingston,9/12/2022,90169492,543.26,WINSOR CARE SERVICES LTD,SOCIAL SERVICES RESIDENTIAL,Adult Social Care & Health,Personal Budget - Third Party,A61019,0
Royal Borough of Kingston,9/13/2022,90163258,"1,183.14",ABACUS PRE-SCHOOL,ACADEMIC INSTNS - OTHER,Schools,2 Yr Old Place Funding,A60000,0
Royal Borough of Kingston,9/13/2022,90163299,"1,729.35",ABACUS PRE-SCHOOL,ACADEMIC INSTNS - OTHER,Schools,PVI Providers,A60014,0
Royal Borough of Kingston,9/13/2022,90163259,"2,602.91",ACACIA PRE-SCHOOL,ACADEMIC INSTNS - OTHER,Schools,2 Yr Old Place Funding,A60000,0
Royal Borough of Kingston,9/13/2022,90163300,"9,822.71",ACACIA PRE-SCHOOL,ACADEMIC INSTNS - OTHER,Schools,PVI Providers,A60014,0
Royal Borough of Kingston,9/13/2022,90163260,"2,366.28",Acorn to Oak Nursery and Preschool Ltd,CHILDMINDERS START UP GRANT,Schools,2 Yr Old Place Funding,A60000,0
Royal Borough of Kingston,9/13/2022,90163301,"18,660.51",Acorn to Oak Nursery and Preschool Ltd,CHILDMINDERS START UP GRANT,Schools,PVI Providers,A60014,0
Royal Borough of Kingston,9/13/2022,90163261,"11,042.64",ADVANTAGE DAY NURSERY LTD,ACADEMIC INSTNS - OTHER,Schools,2 Yr Old Place Funding,A60000,0
Royal Borough of Kingston,9/13/2022,90163303,"47,038.32",ADVANTAGE DAY NURSERY LTD,ACADEMIC INSTNS - OTHER,Schools,PVI Providers,A60014,0
Royal Borough of Kingston,9/13/2022,90163304,"20,490.33",ALEXANDRA SCHOOL ,CENTRAL & LOCAL GOVERNMENT,Schools,Miscellaneous Expenses,A49000,0
Royal Borough of Kingston,9/13/2022,90163309,"3,689.28",BRIGHT HORIZONS FAMILY SOLUTIONS,CHILDMINDERS START UP GRANT,Schools,PVI Providers,A60014,0
Royal Borough of Kingston,9/13/2022,90163311,"4,842.18",BRIGHT HORIZONS FAMILY SOLUTIONS,CHILDMINDERS START UP GRANT,Schools,PVI Providers,A60014,0
Royal Borough of Kingston,9/13/2022,90163312,"6,917.40",BRIGHT HORIZONS FAMILY SOLUTIONS,CHILDMINDERS START UP GRANT,Schools,PVI Providers,A60014,0
Royal Borough of Kingston,9/13/2022,90163313,"3,458.70",BRIGHT HORIZONS FAMILY SOLUTIONS,CHILDMINDERS START UP GRANT,Schools,PVI Providers,A60014,0
Royal Borough of Kingston,9/13/2022,90163314,"4,611.60",BRIGHT HORIZONS FAMILY SOLUTIONS,CHILDMINDERS START UP GRANT,Schools,PVI Providers,A60014,0
Royal Borough of Kingston,9/13/2022,90163264,"5,915.70",BURLINGTON INFANT AND NURSERY SCHOOL,SCHOOL FUNDS,Schools,2 Yr Old Place Funding,A60000,0
Royal Borough of Kingston,9/13/2022,90163316,"38,391.57",BURLINGTON INFANT AND NURSERY SCHOOL,SCHOOL FUNDS,Schools,Miscellaneous Expenses,A49000,0
Royal Borough of Kingston,9/13/2022,70031557,"10,806.66",Business Stream,SUNDRY SUPPLIER - FINANCE,Place,Water Services,A24005,0
Royal Borough of Kingston,9/13/2022,90163294,"1,971.90",CAREROOM LTD,ACADEMIC INSTNS - OTHER,Schools,2 Yr Old Place Funding,A60000,0
Royal Borough of Kingston,9/13/2022,90163395,"12,220.74",CAREROOM LTD,ACADEMIC INSTNS - OTHER,Schools,PVI Providers,A60014,0
Royal Borough of Kingston,9/13/2022,90163296,788.76,REDACTED - PERSONAL DATA,CHILDMINDERS START UP GRANT,Schools,2 Yr Old Place Funding,A60000,0
Royal Borough of Kingston,9/13/2022,90163397,691.74,REDACTED - PERSONAL DATA,CHILDMINDERS START UP GRANT,Schools,PVI Providers,A60014,0
Royal Borough of Kingston,9/13/2022,90163318,"20,752.20",CASTLE HILL SCHOOL,SCHOOL FUNDS,Schools,Miscellaneous Expenses,A49000,0
Royal Borough of Kingston,9/13/2022,90163319,"1,383.48",CASTLE HILL SCHOOL,SCHOOL FUNDS,Schools,PVI Providers,A60014,0
Royal Borough of Kingston,9/13/2022,90163401,691.74,REDACTED - PERSONAL DATA,CHILDMINDERS START UP GRANT,Schools,PVI Providers,A60014,0
Royal Borough of Kingston,9/13/2022,90163320,"7,885.84",CHILDS PLAY NURSERY SCHOOL LTD,GRANTS & EX GRATIA PAYMENTS,Schools,PVI Providers,A60014,0
